Workbook

Sheet Introduction
C4: Joint Monitoring Programme for Water Supply, Sanitation and Hygiene
C6: Estimates on household water, sanitation and hygiene by wealth quintile and sub-national region in
C7: =+Water!B5 -> Panama
C9: Updated May 2021
C11: Follow the links below to find the following information:
C13: JMP Estimates
C14: WASH status and trends by wealth quintile (customized quintiles made without water and sanitation assets)
C15: Water
C16: Sanitation
C17: Hygiene
C19: Data inputs
C20: customized wealth quintiles and subnational data:
C21: =IF(INDIRECT(CONCATENATE("Water","!B105"))=0,"",INDIRECT(CONCATENATE("Water","!B105"))) -> MICS13
C22: =IF(INDIRECT(CONCATENATE("Water","!B106"))=0,"",INDIRECT(CONCATENATE("Water","!B106"))) -> 
C23: =IF(INDIRECT(CONCATENATE("Water","!B107"))=0,"",INDIRECT(CONCATENATE("Water","!B107"))) -> 
C24: =IF(INDIRECT(CONCATENATE("Water","!B108"))=0,"",INDIRECT(CONCATENATE("Water","!B108"))) -> 
C25: =IF(INDIRECT(CONCATENATE("Water","!B109"))=0,"",INDIRECT(CONCATENATE("Water","!B109"))) -> 
C26: =IF(INDIRECT(CONCATENATE("Water","!B110"))=0,"",INDIRECT(CONCATENATE("Water","!B110"))) -> 
C27: =IF(INDIRECT(CONCATENATE("Water","!B111"))=0,"",INDIRECT(CONCATENATE("Water","!B111"))) -> 
C28: =IF(INDIRECT(CONCATENATE("Water","!B112"))=0,"",INDIRECT(CONCATENATE("Water","!B112"))) -> 
C29: =IF(INDIRECT(CONCATENATE("Water","!B113"))=0,"",INDIRECT(CONCATENATE("Water","!B113"))) -> 
C30: =IF(INDIRECT(CONCATENATE("Water","!B114"))=0,"",INDIRECT(CONCATENATE("Water","!B114"))) -> 
C31: =IF(INDIRECT(CONCATENATE("Water","!B115"))=0,"",INDIRECT(CONCATENATE("Water","!B115"))) -> 
C32: =IF(INDIRECT(CONCATENATE("Water","!B116"))=0,"",INDIRECT(CONCATENATE("Water","!B116"))) -> 
L55: =+IF(ISNUMBER(M48), "", "Insufficient data to estimate safely managed sanitation services at national level") -> Insufficient data to estimate safely managed sanitation services at national level

Sheet Water
A1: BGD
B4: Summary of trends in use of drinking water by wealth quintile (%)
B5: =IF(ISERROR(INDIRECT(CONCATENATE($B105,"!A2"))),"",INDIRECT(CONCATENATE($B105,"!A2"))) -> Panama
B7: =B118 -> National use of drinking water sources, 2009–2017 | J7: =B218 -> Urban use of drinking water sources, 2009–2017 | R7: =B318 -> Rural use of drinking water sources, 2009–2017
B31: =IF(ISERROR(INDIRECT(CONCATENATE($B105,"!A2"))),"",INDIRECT(CONCATENATE($B105,"!A2"))) -> Panama | F31: Poorest | J31: Poor | N31: Middle | R31: Rich | V31: Richest
F32: Basic | G32: Limited | H32: Unimproved | I32: Surface water | J32: Basic | K32: Limited | L32: Unimproved | M32: Surface water | N32: Basic | O32: Limited | P32: Unimproved | Q32: Surface water | R32: Basic | S32: Limited | T32: Unimproved | U32: Surface water | V32: Basic | W32: Limited | X32: Unimproved | Y32: Surface water
B33: NATIONAL | D33: Estimate | E33: =C99 -> 2009 | F33: =E99 -> 86.5765325 | G33: =F99 -> 0.1735000651 | H33: 10.18372863 | I33: 3.066238805 | J33: =J99 -> 99.83208607 | K33: =K99 -> 0 | L33: 0.1573737283 | M33: 0.01054019975 | N33: =O99 -> 99.86535941 | O33: =P99 -> 0 | P33: 0.1312502103 | Q33: 0.003390375011 | R33: =T99 -> 100 | S33: =U99 -> 0 | T33: 0 | U33: 0 | V33: =Y99 -> 99.77626678 | W33: =Z99 -> 0 | X33: 0.2237332241 | Y33: 0
E34: =C100 -> 2017 | F34: =E100 -> 86.5765325 | G34: 0.1735000651 | H34: 10.18372863 | I34: 3.066238805 | J34: =J100 -> 99.83208607 | K34: 0 | L34: 0.1573737283 | M34: 0.01054019975 | N34: =O100 -> 99.86535941 | O34: 0 | P34: 0.1312502103 | Q34: 0.003390375011 | R34: =T100 -> 100 | S34: 0 | T34: 0 | U34: 0 | V34: =Y100 -> 99.77626678 | W34: 0 | X34: 0.2237332241 | Y34: 0
B36: URBAN | D36: Estimate | E36: =C199 -> 2009 | F36: =E199 -> 99.7389625 | G36: =F199 -> 0.0998388013 | H36: 0.1611986989 | I36: 0 | J36: =J199 -> 99.98774218 | K36: =K199 -> 0 | L36: 0.01225781943 | M36: 0 | N36: =O199 -> 100 | O36: =P199 -> 0 | P36: 0 | Q36: 0 | R36: =T199 -> 99.93070535 | S36: =U199 -> 0 | T36: 0.0692946545 | U36: 0 | V36: =Y199 -> 100 | W36: =Z199 -> 0 | X36: 0 | Y36: 0
E37: =C200 -> 2017 | F37: =E200 -> 99.7389625 | G37: 0.0998388013 | H37: 0.1611986989 | I37: 0 | J37: =J200 -> 99.98774218 | K37: 0 | L37: 0.01225781943 | M37: 0 | N37: =O200 -> 100 | O37: 0 | P37: 0 | Q37: 0 | R37: =T200 -> 99.93070535 | S37: 0 | T37: 0.0692946545 | U37: 0 | V37: =Y200 -> 100 | W37: 0 | X37: 0 | Y37: 0
B39: RURAL | D39: Estimate | E39: =C299 -> 2009 | F39: =E299 -> 66.59276722 | G39: =F299 -> 0.2674408322 | H39: 26.13940892 | I39: 7.000383027 | J39: =J299 -> 91.24301295 | K39: =K299 -> 0 | L39: 6.010236172 | M39: 2.746750873 | N39: =O299 -> 98.46499552 | O39: =P299 -> 0 | P39: 1.15572588 | Q39: 0.3792785958 | R39: =T299 -> 99.30334948 | S39: =U299 -> 0 | T39: 0.6595769084 | U39: 0.03707361198 | V39: =Y299 -> 99.15075281 | W39: =Z299 -> 0 | X39: 0.8492471938 | Y39: 0
E40: =C300 -> 2017 | F40: =E300 -> 66.59276722 | G40: 0.2674408322 | H40: 26.13940892 | I40: 7.000383027 | J40: =J300 -> 91.24301295 | K40: 0 | L40: 6.010236172 | M40: 2.746750873 | N40: =O300 -> 98.46499552 | O40: 0 | P40: 1.15572588 | Q40: 0.3792785958 | R40: =T300 -> 99.30334948 | S40: 0 | T40: 0.6595769084 | U40: 0.03707361198 | V40: =Y300 -> 99.15075281 | W40: 0 | X40: 0.8492471938 | Y40: 0
A97: NATIONAL | D97: Poorest | I97: Poor | N97: Middle | S97: Rich | X97: Richest
D98: Improved | E98: Basic | F98: Limited | G98: Unimproved | H98: Surface water | I98: Improved | J98: Basic | K98: Limited | L98: Unimproved | M98: Surface water | N98: Improved | O98: Basic | P98: Limited | Q98: Unimproved | R98: Surface water | S98: Improved | T98: Basic | U98: Limited | V98: Unimproved | W98: Surface water | X98: Improved | Y98: Basic | Z98: Limited | AA98: Unimproved | AB98: Surface water
A99: Forecast period: | C99: =MinBase(C105:C116) -> 2009 | D99: =IF((D101+H101)>100,D101*100/(D101+H101),D101) -> 86.75003257 | E99: =D99*AVERAGEIF(E105:E116,">0")/100 -> 86.5765325 | F99: =D99*(100-AVERAGEIF(E105:E116,">0"))/100 -> 0.1735000651 | G99: =100-(E99+F99+H99) -> 10.18372863 | H99: =IF((D101+H101)>100,H101*100/(D101+H101),H101) -> 3.066238805 | I99: =IF((I101+M101)>100,I101*100/(I101+M101),I101) -> 99.83208607 | J99: =I99*AVERAGEIF(J105:J116,">0")/100 -> 99.83208607 | K99: =I99*(100-AVERAGEIF(J105:J116,">0"))/100 -> 0 | L99: =100-(J99+K99+M99) -> 0.1573737283 | M99: =IF((I101+M101)>100,M101*100/(I101+M101),M101) -> 0.01054019975 | N99: =IF((N101+R101)>100,N101*100/(N101+R101),N101) -> 99.86535941 | O99: =N99*AVERAGEIF(O105:O116,">0")/100 -> 99.86535941 | P99: =N99*(100-AVERAGEIF(O105:O116,">0"))/100 -> 0 | Q99: =100-(O99+P99+R99) -> 0.1312502103 | R99: =IF((N101+R101)>100,R101*100/(N101+R101),R101) -> 0.003390375011 | S99: =IF((S101+W101)>100,S101*100/(S101+W101),S101) -> 100 | T99: =S99*AVERAGEIF(T105:T116,">0")/100 -> 100 | U99: =S99*(100-AVERAGEIF(T105:T116,">0"))/100 -> 0 | V99: =100-(T99+U99+W99) -> 0 | W99: =IF((S101+W101)>100,W101*100/(S101+W101),W101) -> 0 | X99: =IF((X101+AB101)>100,X101*100/(X101+AB101),X101) -> 99.77626678 | Y99: =X99*AVERAGEIF(Y105:Y116,">0")/100 -> 99.77626678 | Z99: =X99*(100-AVERAGEIF(Y105:Y116,">0"))/100 -> 0 | AA99: =100-(Y99+Z99+AB99) -> 0.2237332241 | AB99: =IF((X101+AB101)>100,AB101*100/(X101+AB101),AB101) -> 0
C100: =MaxTarget(C105:C116) -> 2017 | D100: =IF((D102+H102)>100,D102*100/(D102+H102),D102) -> 86.75003257 | E100: =D100*AVERAGEIF(E105:E116,">0")/100 -> 86.5765325 | F100: =D100*(100-AVERAGEIF(E105:E116,">0"))/100 -> 0.1735000651 | G100: =100-(E100+F100+H100) -> 10.18372863 | H100: =IF((D102+H102)>100,H102*100/(D102+H102),H102) -> 3.066238805 | I100: =IF((I102+M102)>100,I102*100/(I102+M102),I102) -> 99.83208607 | J100: =I100*AVERAGEIF(J105:J116,">0")/100 -> 99.83208607 | K100: =I100*(100-AVERAGEIF(J105:J116,">0"))/100 -> 0 | L100: =100-(J100+K100+M100) -> 0.1573737283 | M100: =IF((I102+M102)>100,M102*100/(I102+M102),M102) -> 0.01054019975 | N100: =IF((N102+R102)>100,N102*100/(N102+R102),N102) -> 99.86535941 | O100: =N100*AVERAGEIF(O105:O116,">0")/100 -> 99.86535941 | P100: =N100*(100-AVERAGEIF(O105:O116,">0"))/100 -> 0 | Q100: =100-(O100+P100+R100) -> 0.1312502103 | R100: =IF((N102+R102)>100,R102*100/(N102+R102),R102) -> 0.003390375011 | S100: =IF((S102+W102)>100,S102*100/(S102+W102),S102) -> 100 | T100: =S100*AVERAGEIF(T105:T116,">0")/100 -> 100 | U100: =S100*(100-AVERAGEIF(T105:T116,">0"))/100 -> 0 | V100: =100-(T100+U100+W100) -> 0 | W100: =IF((S102+W102)>100,W102*100/(S102+W102),W102) -> 0 | X100: =IF((X102+AB102)>100,X102*100/(X102+AB102),X102) -> 99.77626678 | Y100: =X100*AVERAGEIF(Y105:Y116,">0")/100 -> 99.77626678 | Z100: =X100*(100-AVERAGEIF(Y105:Y116,">0"))/100 -> 0 | AA100: =100-(Y100+Z100+AB100) -> 0.2237332241 | AB100: =IF((X102+AB102)>100,AB102*100/(X102+AB102),AB102) -> 0
A101: Regression period: | C101: =MinRegYear(C99,C105:C116) -> 2011 | D101: =IF(MAX(C105:C116)-MIN(C105:C116)<5,AVERAGEIF(C105:C116,">0",D105:D116), IF(FORECAST($C101,D$105:D$116,$C$105:$C$116)<0,0, IF(FORECAST($C101,D$105:D$116,$C$105:$C$116)>100,100, FORECAST($C101,D$105:D$116,$C$105:$C$116)))) -> 86.75003257 | H101: =IF(MAX(C105:C116)-MIN(C105:C116)<5,AVERAGEIF(C105:C116,">0",H105:H116), IF(FORECAST($C101,H$105:H$116,$C$105:$C$116)<0,0, IF(FORECAST($C101,H$105:H$116,$C$105:$C$116)>100,100, FORECAST($C101,H$105:H$116,$C$105:$C$116)))) -> 3.066238805 | I101: =IF(MAX(C105:C116)-MIN(C105:C116)<5,AVERAGEIF(C105:C116,">0",I105:I116), IF(FORECAST($C101,I$105:I$116,$C$105:$C$116)<0,0, IF(FORECAST($C101,I$105:I$116,$C$105:$C$116)>100,100, FORECAST($C101,I$105:I$116,$C$105:$C$116)))) -> 99.83208607 | M101: =IF(MAX(C105:C116)-MIN(C105:C116)<5,AVERAGEIF(C105:C116,">0",M105:M116), IF(FORECAST($C101,M$105:M$116,$C$105:$C$116)<0,0, IF(FORECAST($C101,M$105:M$116,$C$105:$C$116)>100,100, FORECAST($C101,M$105:M$116,$C$105:$C$116)))) -> 0.01054019975 | N101: =IF(MAX(C105:C116)-MIN(C105:C116)<5,AVERAGEIF(C105:C116,">0",N105:N116), IF(FORECAST($C101,N$105:N$116,$C$105:$C$116)<0,0, IF(FORECAST($C101,N$105:N$116,$C$105:$C$116)>100,100, FORECAST($C101,N$105:N$116,$C$105:$C$116)))) -> 99.86535941 | R101: =IF(MAX(C105:C116)-MIN(C105:C116)<5,AVERAGEIF(C105:C116,">0",R105:R116), IF(FORECAST($C101,R$105:R$116,$C$105:$C$116)<0,0, IF(FORECAST($C101,R$105:R$116,$C$105:$C$116)>100,100, FORECAST($C101,R$105:R$116,$C$105:$C$116)))) -> 0.003390375011 | S101: =IF(MAX(C105:C116)-MIN(C105:C116)<5,AVERAGEIF(C105:C116,">0",S105:S116), IF(FORECAST($C101,S$105:S$116,$C$105:$C$116)<0,0, IF(FORECAST($C101,S$105:S$116,$C$105:$C$116)>100,100, FORECAST($C101,S$105:S$116,$C$105:$C$116)))) -> 100 | W101: =IF(MAX(C105:C116)-MIN(C105:C116)<5,AVERAGEIF(C105:C116,">0",W105:W116), IF(FORECAST($C101,W$105:W$116,$C$105:$C$116)<0,0, IF(FORECAST($C101,W$105:W$116,$C$105:$C$116)>100,100, FORECAST($C101,W$105:W$116,$C$105:$C$116)))) -> 0 | X101: =IF(MAX(C105:C116)-MIN(C105:C116)<5,AVERAGEIF(C105:C116,">0",X105:X116), IF(FORECAST($C101,X$105:X$116,$C$105:$C$116)<0,0, IF(FORECAST($C101,X$105:X$116,$C$105:$C$116)>100,100, FORECAST($C101,X$105:X$116,$C$105:$C$116)))) -> 99.77626678 | AB101: =IF(MAX(C105:C116)-MIN(C105:C116)<5,AVERAGEIF(C105:C116,">0",AB105:AB116), IF(FORECAST($C101,AB$105:AB$116,$C$105:$C$116)<0,0, IF(FORECAST($C101,AB$105:AB$116,$C$105:$C$116)>100,100, FORECAST($C101,AB$105:AB$116,$C$105:$C$116)))) -> 0
C102: =MaxRegYear(C100,C105:C116) -> 2015 | D102: =IF(MAX(C105:C116)-MIN(C105:C116)<5,AVERAGEIF(C105:C116,">0",D105:D116), IF(FORECAST($C102,D$105:D$116,$C$105:$C$116)<0,0, IF(FORECAST($C102,D$105:D$116,$C$105:$C$116)>100,100, FORECAST($C102,D$105:D$116,$C$105:$C$116)))) -> 86.75003257 | H102: =IF(MAX(C105:C116)-MIN(C105:C116)<5,AVERAGEIF(C105:C116,">0",H105:H116), IF(FORECAST($C102,H$105:H$116,$C$105:$C$116)<0,0, IF(FORECAST($C102,H$105:H$116,$C$105:$C$116)>100,100, FORECAST($C102,H$105:H$116,$C$105:$C$116)))) -> 3.066238805 | I102: =IF(MAX(C105:C116)-MIN(C105:C116)<5,AVERAGEIF(C105:C116,">0",I105:I116), IF(FORECAST($C102,I$105:I$116,$C$105:$C$116)<0,0, IF(FORECAST($C102,I$105:I$116,$C$105:$C$116)>100,100, FORECAST($C102,I$105:I$116,$C$105:$C$116)))) -> 99.83208607 | M102: =IF(MAX(C105:C116)-MIN(C105:C116)<5,AVERAGEIF(C105:C116,">0",M105:M116), IF(FORECAST($C102,M$105:M$116,$C$105:$C$116)<0,0, IF(FORECAST($C102,M$105:M$116,$C$105:$C$116)>100,100, FORECAST($C102,M$105:M$116,$C$105:$C$116)))) -> 0.01054019975 | N102: =IF(MAX(C105:C116)-MIN(C105:C116)<5,AVERAGEIF(C105:C116,">0",N105:N116), IF(FORECAST($C102,N$105:N$116,$C$105:$C$116)<0,0, IF(FORECAST($C102,N$105:N$116,$C$105:$C$116)>100,100, FORECAST($C102,N$105:N$116,$C$105:$C$116)))) -> 99.86535941 | R102: =IF(MAX(C105:C116)-MIN(C105:C116)<5,AVERAGEIF(C105:C116,">0",R105:R116), IF(FORECAST($C102,R$105:R$116,$C$105:$C$116)<0,0, IF(FORECAST($C102,R$105:R$116,$C$105:$C$116)>100,100, FORECAST($C102,R$105:R$116,$C$105:$C$116)))) -> 0.003390375011 | S102: =IF(MAX(C105:C116)-MIN(C105:C116)<5,AVERAGEIF(C105:C116,">0",S105:S116), IF(FORECAST($C102,S$105:S$116,$C$105:$C$116)<0,0, IF(FORECAST($C102,S$105:S$116,$C$105:$C$116)>100,100, FORECAST($C102,S$105:S$116,$C$105:$C$116)))) -> 100 | W102: =IF(MAX(C105:C116)-MIN(C105:C116)<5,AVERAGEIF(C105:C116,">0",W105:W116), IF(FORECAST($C102,W$105:W$116,$C$105:$C$116)<0,0, IF(FORECAST($C102,W$105:W$116,$C$105:$C$116)>100,100, FORECAST($C102,W$105:W$116,$C$105:$C$116)))) -> 0 | X102: =IF(MAX(C105:C116)-MIN(C105:C116)<5,AVERAGEIF(C105:C116,">0",X105:X116), IF(FORECAST($C102,X$105:X$116,$C$105:$C$116)<0,0, IF(FORECAST($C102,X$105:X$116,$C$105:$C$116)>100,100, FORECAST($C102,X$105:X$116,$C$105:$C$116)))) -> 99.77626678 | AB102: =IF(MAX(C105:C116)-MIN(C105:C116)<5,AVERAGEIF(C105:C116,">0",AB105:AB116), IF(FORECAST($C102,AB$105:AB$116,$C$105:$C$116)<0,0, IF(FORECAST($C102,AB$105:AB$116,$C$105:$C$116)>100,100, FORECAST($C102,AB$105:AB$116,$C$105:$C$116)))) -> 0
B104: Survey | C104: Year | D104: Improved | E104: % Improved < = 30min | H104: Surface water | I104: Improved | J104: % Improved < = 30min | M104: Surface water | N104: Improved | O104: % Improved < = 30min | R104: Surface water | S104: Improved | T104: % Improved < = 30min | W104: Surface water | X104: Improved | Y104: % Improved < = 30min | AB104: Surface water
B105: MICS13 | C105: 2013 | D105: =IF(ISERROR(INDIRECT(CONCATENATE($B105,"!C16"))),"",INDIRECT(CONCATENATE($B105,"!C16"))) -> 86.75003257 | E105: =IF(ISERROR(INDIRECT(CONCATENATE($B105,"!C23"))),"",INDIRECT(CONCATENATE($B105,"!C23"))) -> 99.8 | H105: =IF(ISERROR(INDIRECT(CONCATENATE($B105,"!C21"))),"",INDIRECT(CONCATENATE($B105,"!C21"))) -> 3.066238805 | I105: =IF(ISERROR(INDIRECT(CONCATENATE($B105,"!D16"))),"",INDIRECT(CONCATENATE($B105,"!D16"))) -> 99.83208607 | J105: =IF(ISERROR(INDIRECT(CONCATENATE($B105,"!D23"))),"",INDIRECT(CONCATENATE($B105,"!D23"))) -> 100 | M105: =IF(ISERROR(INDIRECT(CONCATENATE($B105,"!D21"))),"",INDIRECT(CONCATENATE($B105,"!D21"))) -> 0.01054019975 | N105: =IF(ISERROR(INDIRECT(CONCATENATE($B105,"!E16"))),"",INDIRECT(CONCATENATE($B105,"!E16"))) -> 99.86535941 | O105: =IF(ISERROR(INDIRECT(CONCATENATE($B105,"!E23"))),"",INDIRECT(CONCATENATE($B105,"!E23"))) -> 100 | R105: =IF(ISERROR(INDIRECT(CONCATENATE($B105,"!E21"))),"",INDIRECT(CONCATENATE($B105,"!E21"))) -> 0.003390375011 | S105: =IF(ISERROR(INDIRECT(CONCATENATE($B105,"!F16"))),"",INDIRECT(CONCATENATE($B105,"!F16"))) -> 100 | T105: =IF(ISERROR(INDIRECT(CONCATENATE($B105,"!F23"))),"",INDIRECT(CONCATENATE($B105,"!F23"))) -> 100 | W105: =IF(ISERROR(INDIRECT(CONCATENATE($B105,"!F21"))),"",INDIRECT(CONCATENATE($B105,"!F21"))) -> 0 | X105: =IF(ISERROR(INDIRECT(CONCATENATE($B105,"!G16"))),"",INDIRECT(CONCATENATE($B105,"!G16"))) -> 99.77626678 | Y105: =IF(ISERROR(INDIRECT(CONCATENATE($B105,"!G23"))),"",INDIRECT(CONCATENATE($B105,"!G23"))) -> 100 | AB105: =IF(ISERROR(INDIRECT(CONCATENATE($B105,"!G221"))),"",INDIRECT(CONCATENATE($B105,"!G21"))) -> 0
D111: =IF(ISERROR(INDIRECT(CONCATENATE($B111,"!C16"))),"",INDIRECT(CONCATENATE($B111,"!C16"))) ->  | E111: =IF(ISERROR(INDIRECT(CONCATENATE($B111,"!C23"))),"",INDIRECT(CONCATENATE($B111,"!C23"))) ->  | H111: =IF(ISERROR(INDIRECT(CONCATENATE($B111,"!C21"))),"",INDIRECT(CONCATENATE($B111,"!C21"))) ->  | I111: =IF(ISERROR(INDIRECT(CONCATENATE($B111,"!D16"))),"",INDIRECT(CONCATENATE($B111,"!D16"))) ->  | J111: =IF(ISERROR(INDIRECT(CONCATENATE($B111,"!D23"))),"",INDIRECT(CONCATENATE($B111,"!D23"))) ->  | M111: =IF(ISERROR(INDIRECT(CONCATENATE($B111,"!D21"))),"",INDIRECT(CONCATENATE($B111,"!D21"))) ->  | N111: =IF(ISERROR(INDIRECT(CONCATENATE($B111,"!E16"))),"",INDIRECT(CONCATENATE($B111,"!E16"))) ->  | O111: =IF(ISERROR(INDIRECT(CONCATENATE($B111,"!E23"))),"",INDIRECT(CONCATENATE($B111,"!E23"))) ->  | R111: =IF(ISERROR(INDIRECT(CONCATENATE($B111,"!E21"))),"",INDIRECT(CONCATENATE($B111,"!E21"))) ->  | S111: =IF(ISERROR(INDIRECT(CONCATENATE($B111,"!F16"))),"",INDIRECT(CONCATENATE($B111,"!F16"))) ->  | T111: =IF(ISERROR(INDIRECT(CONCATENATE($B111,"!F23"))),"",INDIRECT(CONCATENATE($B111,"!F23"))) ->  | W111: =IF(ISERROR(INDIRECT(CONCATENATE($B111,"!F21"))),"",INDIRECT(CONCATENATE($B111,"!F21"))) ->  | X111: =IF(ISERROR(INDIRECT(CONCATENATE($B111,"!G16"))),"",INDIRECT(CONCATENATE($B111,"!G16"))) ->  | Y111: =IF(ISERROR(INDIRECT(CONCATENATE($B111,"!G23"))),"",INDIRECT(CONCATENATE($B111,"!G23"))) ->  | AB111: =IF(ISERROR(INDIRECT(CONCATENATE($B111,"!G221"))),"",INDIRECT(CONCATENATE($B111,"!G21"))) -> 
D112: =IF(ISERROR(INDIRECT(CONCATENATE($B112,"!C16"))),"",INDIRECT(CONCATENATE($B112,"!C16"))) ->  | E112: =IF(ISERROR(INDIRECT(CONCATENATE($B112,"!C23"))),"",INDIRECT(CONCATENATE($B112,"!C23"))) ->  | H112: =IF(ISERROR(INDIRECT(CONCATENATE($B112,"!C21"))),"",INDIRECT(CONCATENATE($B112,"!C21"))) ->  | I112: =IF(ISERROR(INDIRECT(CONCATENATE($B112,"!D16"))),"",INDIRECT(CONCATENATE($B112,"!D16"))) ->  | J112: =IF(ISERROR(INDIRECT(CONCATENATE($B112,"!D23"))),"",INDIRECT(CONCATENATE($B112,"!D23"))) ->  | M112: =IF(ISERROR(INDIRECT(CONCATENATE($B112,"!D21"))),"",INDIRECT(CONCATENATE($B112,"!D21"))) ->  | N112: =IF(ISERROR(INDIRECT(CONCATENATE($B112,"!E16"))),"",INDIRECT(CONCATENATE($B112,"!E16"))) ->  | O112: =IF(ISERROR(INDIRECT(CONCATENATE($B112,"!E23"))),"",INDIRECT(CONCATENATE($B112,"!E23"))) ->  | R112: =IF(ISERROR(INDIRECT(CONCATENATE($B112,"!E21"))),"",INDIRECT(CONCATENATE($B112,"!E21"))) ->  | S112: =IF(ISERROR(INDIRECT(CONCATENATE($B112,"!F16"))),"",INDIRECT(CONCATENATE($B112,"!F16"))) ->  | T112: =IF(ISERROR(INDIRECT(CONCATENATE($B112,"!F23"))),"",INDIRECT(CONCATENATE($B112,"!F23"))) ->  | W112: =IF(ISERROR(INDIRECT(CONCATENATE($B112,"!F21"))),"",INDIRECT(CONCATENATE($B112,"!F21"))) ->  | X112: =IF(ISERROR(INDIRECT(CONCATENATE($B112,"!G16"))),"",INDIRECT(CONCATENATE($B112,"!G16"))) ->  | Y112: =IF(ISERROR(INDIRECT(CONCATENATE($B112,"!G23"))),"",INDIRECT(CONCATENATE($B112,"!G23"))) ->  | AB112: =IF(ISERROR(INDIRECT(CONCATENATE($B112,"!G221"))),"",INDIRECT(CONCATENATE($B112,"!G21"))) -> 
B118: =CONCATENATE("National use of drinking water sources, ",C99,"–",C100) -> National use of drinking water sources, 2009–2017 | S118: Data points used for regression
E153: =IF(ISERROR(INDIRECT(CONCATENATE($B153,"!M18"))),"",INDIRECT(CONCATENATE($B153,"!M18"))) ->  | F153: =IF(ISERROR(INDIRECT(CONCATENATE($B153,"!M19"))),"",INDIRECT(CONCATENATE($B153,"!M19"))) ->  | G153: =IF(ISERROR(INDIRECT(CONCATENATE($B153,"!M20"))),"",INDIRECT(CONCATENATE($B153,"!M20"))) ->  | H153: =IF(ISERROR(INDIRECT(CONCATENATE($B153,"!M21"))),"",INDIRECT(CONCATENATE($B153,"!M21"))) ->  | J153: =IF(ISERROR(INDIRECT(CONCATENATE($B153,"!N18"))),"",INDIRECT(CONCATENATE($B153,"!N18"))) ->  | K153: =IF(ISERROR(INDIRECT(CONCATENATE($B153,"!N19"))),"",INDIRECT(CONCATENATE($B153,"!N19"))) ->  | L153: =IF(ISERROR(INDIRECT(CONCATENATE($B153,"!N20"))),"",INDIRECT(CONCATENATE($B153,"!N20"))) ->  | M153: =IF(ISERROR(INDIRECT(CONCATENATE($B153,"!N21"))),"",INDIRECT(CONCATENATE($B153,"!N21"))) ->  | O153: =IF(ISERROR(INDIRECT(CONCATENATE($B153,"!O18"))),"",INDIRECT(CONCATENATE($B153,"!O18"))) ->  | P153: =IF(ISERROR(INDIRECT(CONCATENATE($B153,"!O19"))),"",INDIRECT(CONCATENATE($B153,"!O19"))) ->  | Q153: =IF(ISERROR(INDIRECT(CONCATENATE($B153,"!O20"))),"",INDIRECT(CONCATENATE($B153,"!O20"))) ->  | R153: =IF(ISERROR(INDIRECT(CONCATENATE($B153,"!O21"))),"",INDIRECT(CONCATENATE($B153,"!O21"))) ->  | T153: =IF(ISERROR(INDIRECT(CONCATENATE($B153,"!P18"))),"",INDIRECT(CONCATENATE($B153,"!P18"))) ->  | U153: =IF(ISERROR(INDIRECT(CONCATENATE($B153,"!P19"))),"",INDIRECT(CONCATENATE($B153,"!P19"))) ->  | V153: =IF(ISERROR(INDIRECT(CONCATENATE($B153,"!P20"))),"",INDIRECT(CONCATENATE($B153,"!P20"))) ->  | W153: =IF(ISERROR(INDIRECT(CONCATENATE($B153,"!P21"))),"",INDIRECT(CONCATENATE($B153,"!P21"))) ->  | Y153: =IF(ISERROR(INDIRECT(CONCATENATE($B153,"!Q18"))),"",INDIRECT(CONCATENATE($B153,"!Q18"))) ->  | Z153: =IF(ISERROR(INDIRECT(CONCATENATE($B153,"!Q19"))),"",INDIRECT(CONCATENATE($B153,"!Q19"))) ->  | AA153: =IF(ISERROR(INDIRECT(CONCATENATE($B153,"!Q20"))),"",INDIRECT(CONCATENATE($B153,"!Q20"))) ->  | AB153: =IF(ISERROR(INDIRECT(CONCATENATE($B153,"!Q21"))),"",INDIRECT(CONCATENATE($B153,"!Q1"))) -> 
A197: URBAN | D197: Poorest | I197: Poor | N197: Middle | S197: Rich | X197: Richest
D198: Improved | E198: Basic | F198: Limited | G198: Unimproved | H198: Surface water | I198: Improved | J198: Basic | K198: Limited | L198: Unimproved | M198: Surface water | N198: Improved | O198: Basic | P198: Limited | Q198: Unimproved | R198: Surface water | S198: Improved | T198: Basic | U198: Limited | V198: Unimproved | W198: Surface water | X198: Improved | Y198: Basic | Z198: Limited | AA198: Unimproved | AB198: Surface water
A199: Forecast period: | C199: =MinBase(C205:C216) -> 2009 | D199: =IF((D201+H201)>100,D201*100/(D201+H201),D201) -> 99.8388013 | E199: =D199*AVERAGEIF(E205:E216,">0")/100 -> 99.7389625 | F199: =D199*(100-AVERAGEIF(E205:E216,">0"))/100 -> 0.0998388013 | G199: =100-(E199+F199+H199) -> 0.1611986989 | H199: =IF((D201+H201)>100,H201*100/(D201+H201),H201) -> 0 | I199: =IF((I201+M201)>100,I201*100/(I201+M201),I201) -> 99.98774218 | J199: =I199*AVERAGEIF(J205:J216,">0")/100 -> 99.98774218 | K199: =I199*(100-AVERAGEIF(J205:J216,">0"))/100 -> 0 | L199: =100-(J199+K199+M199) -> 0.01225781943 | M199: =IF((I201+M201)>100,M201*100/(I201+M201),M201) -> 0 | N199: =IF((N201+R201)>100,N201*100/(N201+R201),N201) -> 100 | O199: =N199*AVERAGEIF(O205:O216,">0")/100 -> 100 | P199: =N199*(100-AVERAGEIF(O205:O216,">0"))/100 -> 0 | Q199: =100-(O199+P199+R199) -> 0 | R199: =IF((N201+R201)>100,R201*100/(N201+R201),R201) -> 0 | S199: =IF((S201+W201)>100,S201*100/(S201+W201),S201) -> 99.93070535 | T199: =S199*AVERAGEIF(T205:T216,">0")/100 -> 99.93070535 | U199: =S199*(100-AVERAGEIF(T205:T216,">0"))/100 -> 0 | V199: =100-(T199+U199+W199) -> 0.0692946545 | W199: =IF((S201+W201)>100,W201*100/(S201+W201),W201) -> 0 | X199: =IF((X201+AB201)>100,X201*100/(X201+AB201),X201) -> 100 | Y199: =X199*AVERAGEIF(Y205:Y216,">0")/100 -> 100 | Z199: =X199*(100-AVERAGEIF(Y205:Y216,">0"))/100 -> 0 | AA199: =100-(Y199+Z199+AB199) -> 0 | AB199: =IF((X201+AB201)>100,AB201*100/(X201+AB201),AB201) -> 0
C200: =MaxTarget(C205:C216) -> 2017 | D200: =IF((D202+H202)>100,D202*100/(D202+H202),D202) -> 99.8388013 | E200: =D200*AVERAGEIF(E205:E216,">0")/100 -> 99.7389625 | F200: =D200*(100-AVERAGEIF(E205:E216,">0"))/100 -> 0.0998388013 | G200: =100-(E200+F200+H200) -> 0.1611986989 | H200: =IF((D202+H202)>100,H202*100/(D202+H202),H202) -> 0 | I200: =IF((I202+M202)>100,I202*100/(I202+M202),I202) -> 99.98774218 | J200: =I200*AVERAGEIF(J205:J216,">0")/100 -> 99.98774218 | K200: =I200*(100-AVERAGEIF(J205:J216,">0"))/100 -> 0 | L200: =100-(J200+K200+M200) -> 0.01225781943 | M200: =IF((I202+M202)>100,M202*100/(I202+M202),M202) -> 0 | N200: =IF((N202+R202)>100,N202*100/(N202+R202),N202) -> 100 | O200: =N200*AVERAGEIF(O205:O216,">0")/100 -> 100 | P200: =N200*(100-AVERAGEIF(O205:O216,">0"))/100 -> 0 | Q200: =100-(O200+P200+R200) -> 0 | R200: =IF((N202+R202)>100,R202*100/(N202+R202),R202) -> 0 | S200: =IF((S202+W202)>100,S202*100/(S202+W202),S202) -> 99.93070535 | T200: =S200*AVERAGEIF(T205:T216,">0")/100 -> 99.93070535 | U200: =S200*(100-AVERAGEIF(T205:T216,">0"))/100 -> 0 | V200: =100-(T200+U200+W200) -> 0.0692946545 | W200: =IF((S202+W202)>100,W202*100/(S202+W202),W202) -> 0 | X200: =IF((X202+AB202)>100,X202*100/(X202+AB202),X202) -> 100 | Y200: =X200*AVERAGEIF(Y205:Y216,">0")/100 -> 100 | Z200: =X200*(100-AVERAGEIF(Y205:Y216,">0"))/100 -> 0 | AA200: =100-(Y200+Z200+AB200) -> 0 | AB200: =IF((X202+AB202)>100,AB202*100/(X202+AB202),AB202) -> 0
A201: Regression period: | C201: =MinRegYear(C199,C205:C216) -> 2011 | D201: =IF(MAX(C205:C216)-MIN(C205:C216)<5,AVERAGEIF(C205:C216,">0",D205:D216), IF(FORECAST($C201,D$205:D$216,$C$205:$C$216)<0,0, IF(FORECAST($C201,D$205:D$216,$C$205:$C$216)>100,100, FORECAST($C201,D$205:D$216,$C$205:$C$216)))) -> 99.8388013 | H201: =IF(MAX(C205:C216)-MIN(C205:C216)<5,AVERAGEIF(C205:C216,">0",H205:H216), IF(FORECAST($C201,H$205:H$216,$C$205:$C$216)<0,0, IF(FORECAST($C201,H$205:H$216,$C$205:$C$216)>100,100, FORECAST($C201,H$205:H$216,$C$205:$C$216)))) -> 0 | I201: =IF(MAX(C205:C216)-MIN(C205:C216)<5,AVERAGEIF(C205:C216,">0",I205:I216), IF(FORECAST($C201,I$205:I$216,$C$205:$C$216)<0,0, IF(FORECAST($C201,I$205:I$216,$C$205:$C$216)>100,100, FORECAST($C201,I$205:I$216,$C$205:$C$216)))) -> 99.98774218 | M201: =IF(MAX(C205:C216)-MIN(C205:C216)<5,AVERAGEIF(C205:C216,">0",M205:M216), IF(FORECAST($C201,M$205:M$216,$C$205:$C$216)<0,0, IF(FORECAST($C201,M$205:M$216,$C$205:$C$216)>100,100, FORECAST($C201,M$205:M$216,$C$205:$C$216)))) -> 0 | N201: =IF(MAX(C205:C216)-MIN(C205:C216)<5,AVERAGEIF(C205:C216,">0",N205:N216), IF(FORECAST($C201,N$205:N$216,$C$205:$C$216)<0,0, IF(FORECAST($C201,N$205:N$216,$C$205:$C$216)>100,100, FORECAST($C201,N$205:N$216,$C$205:$C$216)))) -> 100 | R201: =IF(MAX(C205:C216)-MIN(C205:C216)<5,AVERAGEIF(C205:C216,">0",R205:R216), IF(FORECAST($C201,R$205:R$216,$C$205:$C$216)<0,0, IF(FORECAST($C201,R$205:R$216,$C$205:$C$216)>100,100, FORECAST($C201,R$205:R$216,$C$205:$C$216)))) -> 0 | S201: =IF(MAX(C205:C216)-MIN(C205:C216)<5,AVERAGEIF(C205:C216,">0",S205:S216), IF(FORECAST($C201,S$205:S$216,$C$205:$C$216)<0,0, IF(FORECAST($C201,S$205:S$216,$C$205:$C$216)>100,100, FORECAST($C201,S$205:S$216,$C$205:$C$216)))) -> 99.93070535 | W201: =IF(MAX(C205:C216)-MIN(C205:C216)<5,AVERAGEIF(C205:C216,">0",W205:W216), IF(FORECAST($C201,W$205:W$216,$C$205:$C$216)<0,0, IF(FORECAST($C201,W$205:W$216,$C$205:$C$216)>100,100, FORECAST($C201,W$205:W$216,$C$205:$C$216)))) -> 0 | X201: =IF(MAX(C205:C216)-MIN(C205:C216)<5,AVERAGEIF(C205:C216,">0",X205:X216), IF(FORECAST($C201,X$205:X$216,$C$205:$C$216)<0,0, IF(FORECAST($C201,X$205:X$216,$C$205:$C$216)>100,100, FORECAST($C201,X$205:X$216,$C$205:$C$216)))) -> 100 | AB201: =IF(MAX(C205:C216)-MIN(C205:C216)<5,AVERAGEIF(C205:C216,">0",AB205:AB216), IF(FORECAST($C201,AB$205:AB$216,$C$205:$C$216)<0,0, IF(FORECAST($C201,AB$205:AB$216,$C$205:$C$216)>100,100, FORECAST($C201,AB$205:AB$216,$C$205:$C$216)))) -> 0
C202: =MaxRegYear(C200,C205:C216) -> 2015 | D202: =IF(MAX(C205:C216)-MIN(C205:C216)<5,AVERAGEIF(C205:C216,">0",D205:D216), IF(FORECAST($C202,D$205:D$216,$C$205:$C$216)<0,0, IF(FORECAST($C202,D$205:D$216,$C$205:$C$216)>100,100, FORECAST($C202,D$205:D$216,$C$205:$C$216)))) -> 99.8388013 | H202: =IF(MAX(C205:C216)-MIN(C205:C216)<5,AVERAGEIF(C205:C216,">0",H205:H216), IF(FORECAST($C202,H$205:H$216,$C$205:$C$216)<0,0, IF(FORECAST($C202,H$205:H$216,$C$205:$C$216)>100,100, FORECAST($C202,H$205:H$216,$C$205:$C$216)))) -> 0 | I202: =IF(MAX(C205:C216)-MIN(C205:C216)<5,AVERAGEIF(C205:C216,">0",I205:I216), IF(FORECAST($C202,I$205:I$216,$C$205:$C$216)<0,0, IF(FORECAST($C202,I$205:I$216,$C$205:$C$216)>100,100, FORECAST($C202,I$205:I$216,$C$205:$C$216)))) -> 99.98774218 | M202: =IF(MAX(C205:C216)-MIN(C205:C216)<5,AVERAGEIF(C205:C216,">0",M205:M216), IF(FORECAST($C202,M$205:M$216,$C$205:$C$216)<0,0, IF(FORECAST($C202,M$205:M$216,$C$205:$C$216)>100,100, FORECAST($C202,M$205:M$216,$C$205:$C$216)))) -> 0 | N202: =IF(MAX(C205:C216)-MIN(C205:C216)<5,AVERAGEIF(C205:C216,">0",N205:N216), IF(FORECAST($C202,N$205:N$216,$C$205:$C$216)<0,0, IF(FORECAST($C202,N$205:N$216,$C$205:$C$216)>100,100, FORECAST($C202,N$205:N$216,$C$205:$C$216)))) -> 100 | R202: =IF(MAX(C205:C216)-MIN(C205:C216)<5,AVERAGEIF(C205:C216,">0",R205:R216), IF(FORECAST($C202,R$205:R$216,$C$205:$C$216)<0,0, IF(FORECAST($C202,R$205:R$216,$C$205:$C$216)>100,100, FORECAST($C202,R$205:R$216,$C$205:$C$216)))) -> 0 | S202: =IF(MAX(C205:C216)-MIN(C205:C216)<5,AVERAGEIF(C205:C216,">0",S205:S216), IF(FORECAST($C202,S$205:S$216,$C$205:$C$216)<0,0, IF(FORECAST($C202,S$205:S$216,$C$205:$C$216)>100,100, FORECAST($C202,S$205:S$216,$C$205:$C$216)))) -> 99.93070535 | W202: =IF(MAX(C205:C216)-MIN(C205:C216)<5,AVERAGEIF(C205:C216,">0",W205:W216), IF(FORECAST($C202,W$205:W$216,$C$205:$C$216)<0,0, IF(FORECAST($C202,W$205:W$216,$C$205:$C$216)>100,100, FORECAST($C202,W$205:W$216,$C$205:$C$216)))) -> 0 | X202: =IF(MAX(C205:C216)-MIN(C205:C216)<5,AVERAGEIF(C205:C216,">0",X205:X216), IF(FORECAST($C202,X$205:X$216,$C$205:$C$216)<0,0, IF(FORECAST($C202,X$205:X$216,$C$205:$C$216)>100,100, FORECAST($C202,X$205:X$216,$C$205:$C$216)))) -> 100 | AB202: =IF(MAX(C205:C216)-MIN(C205:C216)<5,AVERAGEIF(C205:C216,">0",AB205:AB216), IF(FORECAST($C202,AB$205:AB$216,$C$205:$C$216)<0,0, IF(FORECAST($C202,AB$205:AB$216,$C$205:$C$216)>100,100, FORECAST($C202,AB$205:AB$216,$C$205:$C$216)))) -> 0
B204: Survey | C204: Year | D204: Improved | E204: % Improved < = 30min | H204: Surface water | I204: Improved | J204: % Improved < = 30min | M204: Surface water | N204: Improved | O204: % Improved < = 30min | R204: Surface water | S204: Improved | T204: % Improved < = 30min | W204: Surface water | X204: Improved | Y204: % Improved < = 30min | AB204: Surface water
B205: MICS13 | C205: 2013 | D205: =IF(ISERROR(INDIRECT(CONCATENATE($B205,"!H16"))),"",INDIRECT(CONCATENATE($B205,"!H16"))) -> 99.8388013 | E205: =IF(ISERROR(INDIRECT(CONCATENATE($B205,"!H23"))),"",INDIRECT(CONCATENATE($B205,"!H23"))) -> 99.9 | H205: =IF(ISERROR(INDIRECT(CONCATENATE($B205,"!H21"))),"",INDIRECT(CONCATENATE($B205,"!H21"))) -> 0 | I205: =IF(ISERROR(INDIRECT(CONCATENATE($B205,"!I16"))),"",INDIRECT(CONCATENATE($B205,"!I16"))) -> 99.98774218 | J205: =IF(ISERROR(INDIRECT(CONCATENATE($B205,"!I23"))),"",INDIRECT(CONCATENATE($B205,"!I23"))) -> 100 | M205: =IF(ISERROR(INDIRECT(CONCATENATE($B205,"!I21"))),"",INDIRECT(CONCATENATE($B205,"!I21"))) -> 0 | N205: =IF(ISERROR(INDIRECT(CONCATENATE($B205,"!J16"))),"",INDIRECT(CONCATENATE($B205,"!J16"))) -> 100 | O205: =IF(ISERROR(INDIRECT(CONCATENATE($B205,"!J23"))),"",INDIRECT(CONCATENATE($B205,"!J23"))) -> 100 | R205: =IF(ISERROR(INDIRECT(CONCATENATE($B205,"!J21"))),"",INDIRECT(CONCATENATE($B205,"!J21"))) -> 0 | S205: =IF(ISERROR(INDIRECT(CONCATENATE($B205,"!K16"))),"",INDIRECT(CONCATENATE($B205,"!K16"))) -> 99.93070535 | T205: =IF(ISERROR(INDIRECT(CONCATENATE($B205,"!K23"))),"",INDIRECT(CONCATENATE($B205,"!K23"))) -> 100 | W205: =IF(ISERROR(INDIRECT(CONCATENATE($B205,"!K21"))),"",INDIRECT(CONCATENATE($B205,"!K21"))) -> 0 | X205: =IF(ISERROR(INDIRECT(CONCATENATE($B205,"!L16"))),"",INDIRECT(CONCATENATE($B205,"!L16"))) -> 100 | Y205: =IF(ISERROR(INDIRECT(CONCATENATE($B205,"!L23"))),"",INDIRECT(CONCATENATE($B205,"!L23"))) -> 100 | AB205: =IF(ISERROR(INDIRECT(CONCATENATE($B205,"!L221"))),"",INDIRECT(CONCATENATE($B205,"!L21"))) -> 0
B218: =CONCATENATE("Urban use of drinking water sources, ",C199,"–",C200) -> Urban use of drinking water sources, 2009–2017 | S218: Data points used for regression
E253: =IF(ISERROR(INDIRECT(CONCATENATE($B253,"!M18"))),"",INDIRECT(CONCATENATE($B253,"!M18"))) ->  | F253: =IF(ISERROR(INDIRECT(CONCATENATE($B253,"!M19"))),"",INDIRECT(CONCATENATE($B253,"!M19"))) ->  | G253: =IF(ISERROR(INDIRECT(CONCATENATE($B253,"!M20"))),"",INDIRECT(CONCATENATE($B253,"!M20"))) ->  | H253: =IF(ISERROR(INDIRECT(CONCATENATE($B253,"!M21"))),"",INDIRECT(CONCATENATE($B253,"!M21"))) ->  | J253: =IF(ISERROR(INDIRECT(CONCATENATE($B253,"!N18"))),"",INDIRECT(CONCATENATE($B253,"!N18"))) ->  | K253: =IF(ISERROR(INDIRECT(CONCATENATE($B253,"!N19"))),"",INDIRECT(CONCATENATE($B253,"!N19"))) ->  | L253: =IF(ISERROR(INDIRECT(CONCATENATE($B253,"!N20"))),"",INDIRECT(CONCATENATE($B253,"!N20"))) ->  | M253: =IF(ISERROR(INDIRECT(CONCATENATE($B253,"!N21"))),"",INDIRECT(CONCATENATE($B253,"!N21"))) ->  | O253: =IF(ISERROR(INDIRECT(CONCATENATE($B253,"!O18"))),"",INDIRECT(CONCATENATE($B253,"!O18"))) ->  | P253: =IF(ISERROR(INDIRECT(CONCATENATE($B253,"!O19"))),"",INDIRECT(CONCATENATE($B253,"!O19"))) ->  | Q253: =IF(ISERROR(INDIRECT(CONCATENATE($B253,"!O20"))),"",INDIRECT(CONCATENATE($B253,"!O20"))) ->  | R253: =IF(ISERROR(INDIRECT(CONCATENATE($B253,"!O21"))),"",INDIRECT(CONCATENATE($B253,"!O21"))) ->  | T253: =IF(ISERROR(INDIRECT(CONCATENATE($B253,"!P18"))),"",INDIRECT(CONCATENATE($B253,"!P18"))) ->  | U253: =IF(ISERROR(INDIRECT(CONCATENATE($B253,"!P19"))),"",INDIRECT(CONCATENATE($B253,"!P19"))) ->  | V253: =IF(ISERROR(INDIRECT(CONCATENATE($B253,"!P20"))),"",INDIRECT(CONCATENATE($B253,"!P20"))) ->  | W253: =IF(ISERROR(INDIRECT(CONCATENATE($B253,"!P21"))),"",INDIRECT(CONCATENATE($B253,"!P21"))) ->  | Y253: =IF(ISERROR(INDIRECT(CONCATENATE($B253,"!Q18"))),"",INDIRECT(CONCATENATE($B253,"!Q18"))) ->  | Z253: =IF(ISERROR(INDIRECT(CONCATENATE($B253,"!Q19"))),"",INDIRECT(CONCATENATE($B253,"!Q19"))) ->  | AA253: =IF(ISERROR(INDIRECT(CONCATENATE($B253,"!Q20"))),"",INDIRECT(CONCATENATE($B253,"!Q20"))) ->  | AB253: =IF(ISERROR(INDIRECT(CONCATENATE($B253,"!Q21"))),"",INDIRECT(CONCATENATE($B253,"!Q1"))) -> 
E254: =IF(ISERROR(INDIRECT(CONCATENATE($B254,"!M18"))),"",INDIRECT(CONCATENATE($B254,"!M18"))) ->  | F254: =IF(ISERROR(INDIRECT(CONCATENATE($B254,"!M19"))),"",INDIRECT(CONCATENATE($B254,"!M19"))) ->  | G254: =IF(ISERROR(INDIRECT(CONCATENATE($B254,"!M20"))),"",INDIRECT(CONCATENATE($B254,"!M20"))) ->  | H254: =IF(ISERROR(INDIRECT(CONCATENATE($B254,"!M21"))),"",INDIRECT(CONCATENATE($B254,"!M21"))) ->  | J254: =IF(ISERROR(INDIRECT(CONCATENATE($B254,"!N18"))),"",INDIRECT(CONCATENATE($B254,"!N18"))) ->  | K254: =IF(ISERROR(INDIRECT(CONCATENATE($B254,"!N19"))),"",INDIRECT(CONCATENATE($B254,"!N19"))) ->  | L254: =IF(ISERROR(INDIRECT(CONCATENATE($B254,"!N20"))),"",INDIRECT(CONCATENATE($B254,"!N20"))) ->  | M254: =IF(ISERROR(INDIRECT(CONCATENATE($B254,"!N21"))),"",INDIRECT(CONCATENATE($B254,"!N21"))) ->  | O254: =IF(ISERROR(INDIRECT(CONCATENATE($B254,"!O18"))),"",INDIRECT(CONCATENATE($B254,"!O18"))) ->  | P254: =IF(ISERROR(INDIRECT(CONCATENATE($B254,"!O19"))),"",INDIRECT(CONCATENATE($B254,"!O19"))) ->  | Q254: =IF(ISERROR(INDIRECT(CONCATENATE($B254,"!O20"))),"",INDIRECT(CONCATENATE($B254,"!O20"))) ->  | R254: =IF(ISERROR(INDIRECT(CONCATENATE($B254,"!O21"))),"",INDIRECT(CONCATENATE($B254,"!O21"))) ->  | T254: =IF(ISERROR(INDIRECT(CONCATENATE($B254,"!P18"))),"",INDIRECT(CONCATENATE($B254,"!P18"))) ->  | U254: =IF(ISERROR(INDIRECT(CONCATENATE($B254,"!P19"))),"",INDIRECT(CONCATENATE($B254,"!P19"))) ->  | V254: =IF(ISERROR(INDIRECT(CONCATENATE($B254,"!P20"))),"",INDIRECT(CONCATENATE($B254,"!P20"))) ->  | W254: =IF(ISERROR(INDIRECT(CONCATENATE($B254,"!P21"))),"",INDIRECT(CONCATENATE($B254,"!P21"))) ->  | Y254: =IF(ISERROR(INDIRECT(CONCATENATE($B254,"!Q18"))),"",INDIRECT(CONCATENATE($B254,"!Q18"))) ->  | Z254: =IF(ISERROR(INDIRECT(CONCATENATE($B254,"!Q19"))),"",INDIRECT(CONCATENATE($B254,"!Q19"))) ->  | AA254: =IF(ISERROR(INDIRECT(CONCATENATE($B254,"!Q20"))),"",INDIRECT(CONCATENATE($B254,"!Q20"))) ->  | AB254: =IF(ISERROR(INDIRECT(CONCATENATE($B254,"!Q21"))),"",INDIRECT(CONCATENATE($B254,"!Q1"))) -> 
E255: =IF(ISERROR(INDIRECT(CONCATENATE($B255,"!M18"))),"",INDIRECT(CONCATENATE($B255,"!M18"))) ->  | F255: =IF(ISERROR(INDIRECT(CONCATENATE($B255,"!M19"))),"",INDIRECT(CONCATENATE($B255,"!M19"))) ->  | G255: =IF(ISERROR(INDIRECT(CONCATENATE($B255,"!M20"))),"",INDIRECT(CONCATENATE($B255,"!M20"))) ->  | H255: =IF(ISERROR(INDIRECT(CONCATENATE($B255,"!M21"))),"",INDIRECT(CONCATENATE($B255,"!M21"))) ->  | J255: =IF(ISERROR(INDIRECT(CONCATENATE($B255,"!N18"))),"",INDIRECT(CONCATENATE($B255,"!N18"))) ->  | K255: =IF(ISERROR(INDIRECT(CONCATENATE($B255,"!N19"))),"",INDIRECT(CONCATENATE($B255,"!N19"))) ->  | L255: =IF(ISERROR(INDIRECT(CONCATENATE($B255,"!N20"))),"",INDIRECT(CONCATENATE($B255,"!N20"))) ->  | M255: =IF(ISERROR(INDIRECT(CONCATENATE($B255,"!N21"))),"",INDIRECT(CONCATENATE($B255,"!N21"))) ->  | O255: =IF(ISERROR(INDIRECT(CONCATENATE($B255,"!O18"))),"",INDIRECT(CONCATENATE($B255,"!O18"))) ->  | P255: =IF(ISERROR(INDIRECT(CONCATENATE($B255,"!O19"))),"",INDIRECT(CONCATENATE($B255,"!O19"))) ->  | Q255: =IF(ISERROR(INDIRECT(CONCATENATE($B255,"!O20"))),"",INDIRECT(CONCATENATE($B255,"!O20"))) ->  | R255: =IF(ISERROR(INDIRECT(CONCATENATE($B255,"!O21"))),"",INDIRECT(CONCATENATE($B255,"!O21"))) ->  | T255: =IF(ISERROR(INDIRECT(CONCATENATE($B255,"!P18"))),"",INDIRECT(CONCATENATE($B255,"!P18"))) ->  | U255: =IF(ISERROR(INDIRECT(CONCATENATE($B255,"!P19"))),"",INDIRECT(CONCATENATE($B255,"!P19"))) ->  | V255: =IF(ISERROR(INDIRECT(CONCATENATE($B255,"!P20"))),"",INDIRECT(CONCATENATE($B255,"!P20"))) ->  | W255: =IF(ISERROR(INDIRECT(CONCATENATE($B255,"!P21"))),"",INDIRECT(CONCATENATE($B255,"!P21"))) ->  | Y255: =IF(ISERROR(INDIRECT(CONCATENATE($B255,"!Q18"))),"",INDIRECT(CONCATENATE($B255,"!Q18"))) ->  | Z255: =IF(ISERROR(INDIRECT(CONCATENATE($B255,"!Q19"))),"",INDIRECT(CONCATENATE($B255,"!Q19"))) ->  | AA255: =IF(ISERROR(INDIRECT(CONCATENATE($B255,"!Q20"))),"",INDIRECT(CONCATENATE($B255,"!Q20"))) ->  | AB255: =IF(ISERROR(INDIRECT(CONCATENATE($B255,"!Q21"))),"",INDIRECT(CONCATENATE($B255,"!Q1"))) -> 
E256: =IF(ISERROR(INDIRECT(CONCATENATE($B256,"!M18"))),"",INDIRECT(CONCATENATE($B256,"!M18"))) ->  | F256: =IF(ISERROR(INDIRECT(CONCATENATE($B256,"!M19"))),"",INDIRECT(CONCATENATE($B256,"!M19"))) ->  | G256: =IF(ISERROR(INDIRECT(CONCATENATE($B256,"!M20"))),"",INDIRECT(CONCATENATE($B256,"!M20"))) ->  | H256: =IF(ISERROR(INDIRECT(CONCATENATE($B256,"!M21"))),"",INDIRECT(CONCATENATE($B256,"!M21"))) ->  | J256: =IF(ISERROR(INDIRECT(CONCATENATE($B256,"!N18"))),"",INDIRECT(CONCATENATE($B256,"!N18"))) ->  | K256: =IF(ISERROR(INDIRECT(CONCATENATE($B256,"!N19"))),"",INDIRECT(CONCATENATE($B256,"!N19"))) ->  | L256: =IF(ISERROR(INDIRECT(CONCATENATE($B256,"!N20"))),"",INDIRECT(CONCATENATE($B256,"!N20"))) ->  | M256: =IF(ISERROR(INDIRECT(CONCATENATE($B256,"!N21"))),"",INDIRECT(CONCATENATE($B256,"!N21"))) ->  | O256: =IF(ISERROR(INDIRECT(CONCATENATE($B256,"!O18"))),"",INDIRECT(CONCATENATE($B256,"!O18"))) ->  | P256: =IF(ISERROR(INDIRECT(CONCATENATE($B256,"!O19"))),"",INDIRECT(CONCATENATE($B256,"!O19"))) ->  | Q256: =IF(ISERROR(INDIRECT(CONCATENATE($B256,"!O20"))),"",INDIRECT(CONCATENATE($B256,"!O20"))) ->  | R256: =IF(ISERROR(INDIRECT(CONCATENATE($B256,"!O21"))),"",INDIRECT(CONCATENATE($B256,"!O21"))) ->  | T256: =IF(ISERROR(INDIRECT(CONCATENATE($B256,"!P18"))),"",INDIRECT(CONCATENATE($B256,"!P18"))) ->  | U256: =IF(ISERROR(INDIRECT(CONCATENATE($B256,"!P19"))),"",INDIRECT(CONCATENATE($B256,"!P19"))) ->  | V256: =IF(ISERROR(INDIRECT(CONCATENATE($B256,"!P20"))),"",INDIRECT(CONCATENATE($B256,"!P20"))) ->  | W256: =IF(ISERROR(INDIRECT(CONCATENATE($B256,"!P21"))),"",INDIRECT(CONCATENATE($B256,"!P21"))) ->  | Y256: =IF(ISERROR(INDIRECT(CONCATENATE($B256,"!Q18"))),"",INDIRECT(CONCATENATE($B256,"!Q18"))) ->  | Z256: =IF(ISERROR(INDIRECT(CONCATENATE($B256,"!Q19"))),"",INDIRECT(CONCATENATE($B256,"!Q19"))) ->  | AA256: =IF(ISERROR(INDIRECT(CONCATENATE($B256,"!Q20"))),"",INDIRECT(CONCATENATE($B256,"!Q20"))) ->  | AB256: =IF(ISERROR(INDIRECT(CONCATENATE($B256,"!Q21"))),"",INDIRECT(CONCATENATE($B256,"!Q1"))) -> 
E257: =IF(ISERROR(INDIRECT(CONCATENATE($B257,"!M18"))),"",INDIRECT(CONCATENATE($B257,"!M18"))) ->  | F257: =IF(ISERROR(INDIRECT(CONCATENATE($B257,"!M19"))),"",INDIRECT(CONCATENATE($B257,"!M19"))) ->  | G257: =IF(ISERROR(INDIRECT(CONCATENATE($B257,"!M20"))),"",INDIRECT(CONCATENATE($B257,"!M20"))) ->  | H257: =IF(ISERROR(INDIRECT(CONCATENATE($B257,"!M21"))),"",INDIRECT(CONCATENATE($B257,"!M21"))) ->  | J257: =IF(ISERROR(INDIRECT(CONCATENATE($B257,"!N18"))),"",INDIRECT(CONCATENATE($B257,"!N18"))) ->  | K257: =IF(ISERROR(INDIRECT(CONCATENATE($B257,"!N19"))),"",INDIRECT(CONCATENATE($B257,"!N19"))) ->  | L257: =IF(ISERROR(INDIRECT(CONCATENATE($B257,"!N20"))),"",INDIRECT(CONCATENATE($B257,"!N20"))) ->  | M257: =IF(ISERROR(INDIRECT(CONCATENATE($B257,"!N21"))),"",INDIRECT(CONCATENATE($B257,"!N21"))) ->  | O257: =IF(ISERROR(INDIRECT(CONCATENATE($B257,"!O18"))),"",INDIRECT(CONCATENATE($B257,"!O18"))) ->  | P257: =IF(ISERROR(INDIRECT(CONCATENATE($B257,"!O19"))),"",INDIRECT(CONCATENATE($B257,"!O19"))) ->  | Q257: =IF(ISERROR(INDIRECT(CONCATENATE($B257,"!O20"))),"",INDIRECT(CONCATENATE($B257,"!O20"))) ->  | R257: =IF(ISERROR(INDIRECT(CONCATENATE($B257,"!O21"))),"",INDIRECT(CONCATENATE($B257,"!O21"))) ->  | T257: =IF(ISERROR(INDIRECT(CONCATENATE($B257,"!P18"))),"",INDIRECT(CONCATENATE($B257,"!P18"))) ->  | U257: =IF(ISERROR(INDIRECT(CONCATENATE($B257,"!P19"))),"",INDIRECT(CONCATENATE($B257,"!P19"))) ->  | V257: =IF(ISERROR(INDIRECT(CONCATENATE($B257,"!P20"))),"",INDIRECT(CONCATENATE($B257,"!P20"))) ->  | W257: =IF(ISERROR(INDIRECT(CONCATENATE($B257,"!P21"))),"",INDIRECT(CONCATENATE($B257,"!P21"))) ->  | Y257: =IF(ISERROR(INDIRECT(CONCATENATE($B257,"!Q18"))),"",INDIRECT(CONCATENATE($B257,"!Q18"))) ->  | Z257: =IF(ISERROR(INDIRECT(CONCATENATE($B257,"!Q19"))),"",INDIRECT(CONCATENATE($B257,"!Q19"))) ->  | AA257: =IF(ISERROR(INDIRECT(CONCATENATE($B257,"!Q20"))),"",INDIRECT(CONCATENATE($B257,"!Q20"))) ->  | AB257: =IF(ISERROR(INDIRECT(CONCATENATE($B257,"!Q21"))),"",INDIRECT(CONCATENATE($B257,"!Q1"))) -> 
A297: RURAL | D297: Poorest | I297: Poor | N297: Middle | S297: Rich | X297: Richest
D298: Improved | E298: Basic | F298: Limited | G298: Unimproved | H298: Surface water | I298: Improved | J298: Basic | K298: Limited | L298: Unimproved | M298: Surface water | N298: Improved | O298: Basic | P298: Limited | Q298: Unimproved | R298: Surface water | S298: Improved | T298: Basic | U298: Limited | V298: Unimproved | W298: Surface water | X298: Improved | Y298: Basic | Z298: Limited | AA298: Unimproved | AB298: Surface water
A299: Forecast period: | C299: 2009 | D299: =IF((D301+H301)>100,D301*100/(D301+H301),D301) -> 66.86020805 | E299: =D299*AVERAGEIF(E305:E316,">0")/100 -> 66.59276722 | F299: =D299*(100-AVERAGEIF(E305:E316,">0"))/100 -> 0.2674408322 | G299: =100-(E299+F299+H299) -> 26.13940892 | H299: =IF((D301+H301)>100,H301*100/(D301+H301),H301) -> 7.000383027 | I299: =IF((I301+M301)>100,I301*100/(I301+M301),I301) -> 91.24301295 | J299: =I299*AVERAGEIF(J305:J316,">0")/100 -> 91.24301295 | K299: =I299*(100-AVERAGEIF(J305:J316,">0"))/100 -> 0 | L299: =100-(J299+K299+M299) -> 6.010236172 | M299: =IF((I301+M301)>100,M301*100/(I301+M301),M301) -> 2.746750873 | N299: =IF((N301+R301)>100,N301*100/(N301+R301),N301) -> 98.46499552 | O299: =N299*AVERAGEIF(O305:O316,">0")/100 -> 98.46499552 | P299: =N299*(100-AVERAGEIF(O305:O316,">0"))/100 -> 0 | Q299: =100-(O299+P299+R299) -> 1.15572588 | R299: =IF((N301+R301)>100,R301*100/(N301+R301),R301) -> 0.3792785958 | S299: =IF((S301+W301)>100,S301*100/(S301+W301),S301) -> 99.30334948 | T299: =S299*AVERAGEIF(T305:T316,">0")/100 -> 99.30334948 | U299: =S299*(100-AVERAGEIF(T305:T316,">0"))/100 -> 0 | V299: =100-(T299+U299+W299) -> 0.6595769084 | W299: =IF((S301+W301)>100,W301*100/(S301+W301),W301) -> 0.03707361198 | X299: =IF((X301+AB301)>100,X301*100/(X301+AB301),X301) -> 99.15075281 | Y299: =X299*AVERAGEIF(Y305:Y316,">0")/100 -> 99.15075281 | Z299: =X299*(100-AVERAGEIF(Y305:Y316,">0"))/100 -> 0 | AA299: =100-(Y299+Z299+AB299) -> 0.8492471938 | AB299: =IF((X301+AB301)>100,AB301*100/(X301+AB301),AB301) -> 0
C300: 2017 | D300: =IF((D302+H302)>100,D302*100/(D302+H302),D302) -> 66.86020805 | E300: =D300*AVERAGEIF(E305:E316,">0")/100 -> 66.59276722 | F300: =D300*(100-AVERAGEIF(E305:E316,">0"))/100 -> 0.2674408322 | G300: =100-(E300+F300+H300) -> 26.13940892 | H300: =IF((D302+H302)>100,H302*100/(D302+H302),H302) -> 7.000383027 | I300: =IF((I302+M302)>100,I302*100/(I302+M302),I302) -> 91.24301295 | J300: =I300*AVERAGEIF(J305:J316,">0")/100 -> 91.24301295 | K300: =I300*(100-AVERAGEIF(J305:J316,">0"))/100 -> 0 | L300: =100-(J300+K300+M300) -> 6.010236172 | M300: =IF((I302+M302)>100,M302*100/(I302+M302),M302) -> 2.746750873 | N300: =IF((N302+R302)>100,N302*100/(N302+R302),N302) -> 98.46499552 | O300: =N300*AVERAGEIF(O305:O316,">0")/100 -> 98.46499552 | P300: =N300*(100-AVERAGEIF(O305:O316,">0"))/100 -> 0 | Q300: =100-(O300+P300+R300) -> 1.15572588 | R300: =IF((N302+R302)>100,R302*100/(N302+R302),R302) -> 0.3792785958 | S300: =IF((S302+W302)>100,S302*100/(S302+W302),S302) -> 99.30334948 | T300: =S300*AVERAGEIF(T305:T316,">0")/100 -> 99.30334948 | U300: =S300*(100-AVERAGEIF(T305:T316,">0"))/100 -> 0 | V300: =100-(T300+U300+W300) -> 0.6595769084 | W300: =IF((S302+W302)>100,W302*100/(S302+W302),W302) -> 0.03707361198 | X300: =IF((X302+AB302)>100,X302*100/(X302+AB302),X302) -> 99.15075281 | Y300: =X300*AVERAGEIF(Y305:Y316,">0")/100 -> 99.15075281 | Z300: =X300*(100-AVERAGEIF(Y305:Y316,">0"))/100 -> 0 | AA300: =100-(Y300+Z300+AB300) -> 0.8492471938 | AB300: =IF((X302+AB302)>100,AB302*100/(X302+AB302),AB302) -> 0
A301: Regression period: | C301: =MinRegYear(C299,C305:C316) -> 2011 | D301: =IF(MAX(C305:C316)-MIN(C305:C316)<5,AVERAGEIF(C305:C316,">0",D305:D316), IF(FORECAST($C301,D$305:D$316,$C$305:$C$316)<0,0, IF(FORECAST($C301,D$305:D$316,$C$305:$C$316)>100,100, FORECAST($C301,D$305:D$316,$C$305:$C$316)))) -> 66.86020805 | H301: =IF(MAX(C305:C316)-MIN(C305:C316)<5,AVERAGEIF(C305:C316,">0",H305:H316), IF(FORECAST($C301,H$305:H$316,$C$305:$C$316)<0,0, IF(FORECAST($C301,H$305:H$316,$C$305:$C$316)>100,100, FORECAST($C301,H$305:H$316,$C$305:$C$316)))) -> 7.000383027 | I301: =IF(MAX(C305:C316)-MIN(C305:C316)<5,AVERAGEIF(C305:C316,">0",I305:I316), IF(FORECAST($C301,I$305:I$316,$C$305:$C$316)<0,0, IF(FORECAST($C301,I$305:I$316,$C$305:$C$316)>100,100, FORECAST($C301,I$305:I$316,$C$305:$C$316)))) -> 91.24301295 | M301: =IF(MAX(C305:C316)-MIN(C305:C316)<5,AVERAGEIF(C305:C316,">0",M305:M316), IF(FORECAST($C301,M$305:M$316,$C$305:$C$316)<0,0, IF(FORECAST($C301,M$305:M$316,$C$305:$C$316)>100,100, FORECAST($C301,M$305:M$316,$C$305:$C$316)))) -> 2.746750873 | N301: =IF(MAX(C305:C316)-MIN(C305:C316)<5,AVERAGEIF(C305:C316,">0",N305:N316), IF(FORECAST($C301,N$305:N$316,$C$305:$C$316)<0,0, IF(FORECAST($C301,N$305:N$316,$C$305:$C$316)>100,100, FORECAST($C301,N$305:N$316,$C$305:$C$316)))) -> 98.46499552 | R301: =IF(MAX(C305:C316)-MIN(C305:C316)<5,AVERAGEIF(C305:C316,">0",R305:R316), IF(FORECAST($C301,R$305:R$316,$C$305:$C$316)<0,0, IF(FORECAST($C301,R$305:R$316,$C$305:$C$316)>100,100, FORECAST($C301,R$305:R$316,$C$305:$C$316)))) -> 0.3792785958 | S301: =IF(MAX(C305:C316)-MIN(C305:C316)<5,AVERAGEIF(C305:C316,">0",S305:S316), IF(FORECAST($C301,S$305:S$316,$C$305:$C$316)<0,0, IF(FORECAST($C301,S$305:S$316,$C$305:$C$316)>100,100, FORECAST($C301,S$305:S$316,$C$305:$C$316)))) -> 99.30334948 | W301: =IF(MAX(C305:C316)-MIN(C305:C316)<5,AVERAGEIF(C305:C316,">0",W305:W316), IF(FORECAST($C301,W$305:W$316,$C$305:$C$316)<0,0, IF(FORECAST($C301,W$305:W$316,$C$305:$C$316)>100,100, FORECAST($C301,W$305:W$316,$C$305:$C$316)))) -> 0.03707361198 | X301: =IF(MAX(C305:C316)-MIN(C305:C316)<5,AVERAGEIF(C305:C316,">0",X305:X316), IF(FORECAST($C301,X$305:X$316,$C$305:$C$316)<0,0, IF(FORECAST($C301,X$305:X$316,$C$305:$C$316)>100,100, FORECAST($C301,X$305:X$316,$C$305:$C$316)))) -> 99.15075281 | AB301: =IF(MAX(C305:C316)-MIN(C305:C316)<5,AVERAGEIF(C305:C316,">0",AB305:AB316), IF(FORECAST($C301,AB$305:AB$316,$C$305:$C$316)<0,0, IF(FORECAST($C301,AB$305:AB$316,$C$305:$C$316)>100,100, FORECAST($C301,AB$305:AB$316,$C$305:$C$316)))) -> 0
C302: =MaxRegYear(C300,C305:C316) -> 2015 | D302: =IF(MAX(C305:C316)-MIN(C305:C316)<5,AVERAGEIF(C305:C316,">0",D305:D316), IF(FORECAST($C302,D$305:D$316,$C$305:$C$316)<0,0, IF(FORECAST($C302,D$305:D$316,$C$305:$C$316)>100,100, FORECAST($C302,D$305:D$316,$C$305:$C$316)))) -> 66.86020805 | H302: =IF(MAX(C305:C316)-MIN(C305:C316)<5,AVERAGEIF(C305:C316,">0",H305:H316), IF(FORECAST($C302,H$305:H$316,$C$305:$C$316)<0,0, IF(FORECAST($C302,H$305:H$316,$C$305:$C$316)>100,100, FORECAST($C302,H$305:H$316,$C$305:$C$316)))) -> 7.000383027 | I302: =IF(MAX(C305:C316)-MIN(C305:C316)<5,AVERAGEIF(C305:C316,">0",I305:I316), IF(FORECAST($C302,I$305:I$316,$C$305:$C$316)<0,0, IF(FORECAST($C302,I$305:I$316,$C$305:$C$316)>100,100, FORECAST($C302,I$305:I$316,$C$305:$C$316)))) -> 91.24301295 | M302: =IF(MAX(C305:C316)-MIN(C305:C316)<5,AVERAGEIF(C305:C316,">0",M305:M316), IF(FORECAST($C302,M$305:M$316,$C$305:$C$316)<0,0, IF(FORECAST($C302,M$305:M$316,$C$305:$C$316)>100,100, FORECAST($C302,M$305:M$316,$C$305:$C$316)))) -> 2.746750873 | N302: =IF(MAX(C305:C316)-MIN(C305:C316)<5,AVERAGEIF(C305:C316,">0",N305:N316), IF(FORECAST($C302,N$305:N$316,$C$305:$C$316)<0,0, IF(FORECAST($C302,N$305:N$316,$C$305:$C$316)>100,100, FORECAST($C302,N$305:N$316,$C$305:$C$316)))) -> 98.46499552 | R302: =IF(MAX(C305:C316)-MIN(C305:C316)<5,AVERAGEIF(C305:C316,">0",R305:R316), IF(FORECAST($C302,R$305:R$316,$C$305:$C$316)<0,0, IF(FORECAST($C302,R$305:R$316,$C$305:$C$316)>100,100, FORECAST($C302,R$305:R$316,$C$305:$C$316)))) -> 0.3792785958 | S302: =IF(MAX(C305:C316)-MIN(C305:C316)<5,AVERAGEIF(C305:C316,">0",S305:S316), IF(FORECAST($C302,S$305:S$316,$C$305:$C$316)<0,0, IF(FORECAST($C302,S$305:S$316,$C$305:$C$316)>100,100, FORECAST($C302,S$305:S$316,$C$305:$C$316)))) -> 99.30334948 | W302: =IF(MAX(C305:C316)-MIN(C305:C316)<5,AVERAGEIF(C305:C316,">0",W305:W316), IF(FORECAST($C302,W$305:W$316,$C$305:$C$316)<0,0, IF(FORECAST($C302,W$305:W$316,$C$305:$C$316)>100,100, FORECAST($C302,W$305:W$316,$C$305:$C$316)))) -> 0.03707361198 | X302: =IF(MAX(C305:C316)-MIN(C305:C316)<5,AVERAGEIF(C305:C316,">0",X305:X316), IF(FORECAST($C302,X$305:X$316,$C$305:$C$316)<0,0, IF(FORECAST($C302,X$305:X$316,$C$305:$C$316)>100,100, FORECAST($C302,X$305:X$316,$C$305:$C$316)))) -> 99.15075281 | AB302: =IF(MAX(C305:C316)-MIN(C305:C316)<5,AVERAGEIF(C305:C316,">0",AB305:AB316), IF(FORECAST($C302,AB$305:AB$316,$C$305:$C$316)<0,0, IF(FORECAST($C302,AB$305:AB$316,$C$305:$C$316)>100,100, FORECAST($C302,AB$305:AB$316,$C$305:$C$316)))) -> 0
B304: Survey | C304: Year | D304: Improved | E304: % Improved < = 30min | H304: Surface water | I304: Improved | J304: % Improved < = 30min | M304: Surface water | N304: Improved | O304: % Improved < = 30min | R304: Surface water | S304: Improved | T304: % Improved < = 30min | W304: Surface water | X304: Improved | Y304: % Improved < = 30min | AB304: Surface water
B305: MICS13 | C305: 2013 | D305: =IF(ISERROR(INDIRECT(CONCATENATE($B305,"!M16"))),"",INDIRECT(CONCATENATE($B305,"!M16"))) -> 66.86020805 | E305: =IF(ISERROR(INDIRECT(CONCATENATE($B305,"!M23"))),"",INDIRECT(CONCATENATE($B305,"!M23"))) -> 99.6 | H305: =IF(ISERROR(INDIRECT(CONCATENATE($B305,"!M21"))),"",INDIRECT(CONCATENATE($B305,"!M21"))) -> 7.000383027 | I305: =IF(ISERROR(INDIRECT(CONCATENATE($B305,"!N16"))),"",INDIRECT(CONCATENATE($B305,"!N16"))) -> 91.24301295 | J305: =IF(ISERROR(INDIRECT(CONCATENATE($B305,"!N23"))),"",INDIRECT(CONCATENATE($B305,"!N23"))) -> 100 | M305: =IF(ISERROR(INDIRECT(CONCATENATE($B305,"!N21"))),"",INDIRECT(CONCATENATE($B305,"!N21"))) -> 2.746750873 | N305: =IF(ISERROR(INDIRECT(CONCATENATE($B305,"!O16"))),"",INDIRECT(CONCATENATE($B305,"!O16"))) -> 98.46499552 | O305: =IF(ISERROR(INDIRECT(CONCATENATE($B305,"!O23"))),"",INDIRECT(CONCATENATE($B305,"!O23"))) -> 100 | R305: =IF(ISERROR(INDIRECT(CONCATENATE($B305,"!O21"))),"",INDIRECT(CONCATENATE($B305,"!O21"))) -> 0.3792785958 | S305: =IF(ISERROR(INDIRECT(CONCATENATE($B305,"!P16"))),"",INDIRECT(CONCATENATE($B305,"!P16"))) -> 99.30334948 | T305: =IF(ISERROR(INDIRECT(CONCATENATE($B305,"!P23"))),"",INDIRECT(CONCATENATE($B305,"!P23"))) -> 100 | W305: =IF(ISERROR(INDIRECT(CONCATENATE($B305,"!P21"))),"",INDIRECT(CONCATENATE($B305,"!P21"))) -> 0.03707361198 | X305: =IF(ISERROR(INDIRECT(CONCATENATE($B305,"!Q16"))),"",INDIRECT(CONCATENATE($B305,"!Q16"))) -> 99.15075281 | Y305: =IF(ISERROR(INDIRECT(CONCATENATE($B305,"!Q23"))),"",INDIRECT(CONCATENATE($B305,"!Q23"))) -> 100 | AB305: =IF(ISERROR(INDIRECT(CONCATENATE($B305,"!Q221"))),"",INDIRECT(CONCATENATE($B305,"!Q21"))) -> 0
B318: =CONCATENATE("Rural use of drinking water sources, ",C299,"–",C300) -> Rural use of drinking water sources, 2009–2017 | S318: Data points used for regression

Sheet Sanitation
B4: Summary of trends in use of sanitation facilities by wealth quintile (%)
B5: =IF(ISERROR(INDIRECT(CONCATENATE($B105,"!A2"))),"",INDIRECT(CONCATENATE($B105,"!A2"))) -> Panama
B7: =B118 -> National use of sanitation facilities, 2009–2017 | J7: =B218 -> Urban use of sanitation facilities, 2009–2017 | R7: =B318 -> Rural use of sanitation facilities, 2009–2017
B31: =IF(ISERROR(INDIRECT(CONCATENATE($B105,"!A2"))),"",INDIRECT(CONCATENATE($B105,"!A2"))) -> Panama | F31: Poorest | J31: Poor | N31: Middle | R31: Rich | V31: Richest
F32: Basic | G32: Limited | H32: Unimproved | I32: Open defecation | J32: Basic | K32: Limited | L32: Unimproved | M32: Open defecation | N32: Basic | O32: Limited | P32: Unimproved | Q32: Open defecation | R32: Basic | S32: Limited | T32: Unimproved | U32: Open defecation | V32: Basic | W32: Limited | X32: Unimproved | Y32: Open defecation
B33: NATIONAL | D33: Estimate | E33: =C99 -> 2009 | F33: =E99 -> 52.70731946 | G33: =F99 -> 9.290825437 | H33: 27.74028395 | I33: 10.26157115 | J33: =J99 -> 78.23945808 | K33: =K99 -> 8.993981945 | L33: 12.44819663 | M33: 0.3183633451 | N33: =O99 -> 90.49621287 | O33: =P99 -> 4.916734549 | P33: 4.553728811 | Q33: 0.03332376831 | R33: =T99 -> 94.67855011 | S33: =U99 -> 2.3997751 | T33: 2.851689751 | U33: 0.06998504255 | V33: =Y99 -> 99.0573508 | W33: =Z99 -> 0.7038726222 | X33: 0.2387765761 | Y33: 0
E34: =C100 -> 2017 | F34: =E100 -> 52.70731946 | G34: 9.290825437 | H34: 27.74028395 | I34: 10.26157115 | J34: =J100 -> 78.23945808 | K34: 8.993981945 | L34: 12.44819663 | M34: 0.3183633451 | N34: =O100 -> 90.49621287 | O34: 4.916734549 | P34: 4.553728811 | Q34: 0.03332376831 | R34: =T100 -> 94.67855011 | S34: 2.3997751 | T34: 2.851689751 | U34: 0.06998504255 | V34: =Y100 -> 99.0573508 | W34: 0.7038726222 | X34: 0.2387765761 | Y34: 0
B36: URBAN | D36: Estimate | E36: =C199 -> 2009 | F36: =E199 -> 72.00178728 | G36: =F199 -> 12.49643317 | H36: 14.68334457 | I36: 0.8184349823 | J36: =J199 -> 89.40037634 | K36: =K199 -> 5.996347292 | L36: 4.565335494 | M36: 0.03794086967 | N36: =O199 -> 94.14583031 | O36: =P199 -> 2.443948316 | P36: 3.410221376 | Q36: 0 | R36: =T199 -> 96.1691357 | S36: =U199 -> 3.116385688 | T36: 0.7144786106 | U36: 0 | V36: =Y199 -> 99.92046359 | W36: =Z199 -> 0.07953641447 | X36: 0 | Y36: 0
E37: =C200 -> 2017 | F37: =E200 -> 72.00178728 | G37: 12.49643317 | H37: 14.68334457 | I37: 0.8184349823 | J37: =J200 -> 89.40037634 | K37: 5.996347292 | L37: 4.565335494 | M37: 0.03794086967 | N37: =O200 -> 94.14583031 | O37: 2.443948316 | P37: 3.410221376 | Q37: 0 | R37: =T200 -> 96.1691357 | S37: 3.116385688 | T37: 0.7144786106 | U37: 0 | V37: =Y200 -> 99.92046359 | W37: 0.07953641447 | X37: 0 | Y37: 0
B39: RURAL | D39: Estimate | E39: =C299 -> 2009 | F39: =E299 -> 32.14742941 | G39: =F299 -> 7.771202372 | H39: 33.11635397 | I39: 26.96501425 | J39: =J299 -> 61.92697751 | K39: =K299 -> 6.127109875 | L39: 27.65493693 | M39: 4.290975683 | N39: =O299 -> 71.17162376 | O39: =P299 -> 6.288907863 | P39: 21.73168675 | Q39: 0.8077816337 | R39: =T299 -> 73.91562675 | S39: =U299 -> 8.749498108 | T39: 16.28823533 | U39: 1.046639808 | V39: =Y299 -> 91.18349354 | W39: =Z299 -> 3.182846393 | X39: 5.402453942 | Y39: 0.2312061258
E40: =C300 -> 2017 | F40: =E300 -> 32.14742941 | G40: 7.771202372 | H40: 33.11635397 | I40: 26.96501425 | J40: =J300 -> 61.92697751 | K40: 6.127109875 | L40: 27.65493693 | M40: 4.290975683 | N40: =O300 -> 71.17162376 | O40: 6.288907863 | P40: 21.73168675 | Q40: 0.8077816337 | R40: =T300 -> 73.91562675 | S40: 8.749498108 | T40: 16.28823533 | U40: 1.046639808 | V40: =Y300 -> 91.18349354 | W40: 3.182846393 | X40: 5.402453942 | Y40: 0.2312061258
A97: NATIONAL | D97: Poorest | I97: Poor | N97: Middle | S97: Rich | X97: Richest
D98: Improved | E98: Basic | F98: Limited | G98: Unimproved | H98: Open defecation | I98: Improved | J98: Basic | K98: Limited | L98: Unimproved | M98: Open defecation | N98: Improved | O98: Basic | P98: Limited | Q98: Unimproved | R98: Open defecation | S98: Improved | T98: Basic | U98: Limited | V98: Unimproved | W98: Open defecation | X98: Improved | Y98: Basic | Z98: Limited | AA98: Unimproved | AB98: Open defecation
A99: Forecast period: | C99: =MinBase(C105:C116) -> 2009 | D99: =IF((D101+H101)>100,D101*100/(D101+H101),D101) -> 61.9981449 | E99: =D99*AVERAGEIF(E105:E116,">0")/100 -> 52.70731946 | F99: =D99*(100-AVERAGEIF(E105:E116,">0"))/100 -> 9.290825437 | G99: =100-(E99+F99+H99) -> 27.74028395 | H99: =IF((D101+H101)>100,H101*100/(D101+H101),H101) -> 10.26157115 | I99: =IF((I101+M101)>100,I101*100/(I101+M101),I101) -> 87.23344003 | J99: =I99*AVERAGEIF(J105:J116,">0")/100 -> 78.23945808 | K99: =I99*(100-AVERAGEIF(J105:J116,">0"))/100 -> 8.993981945 | L99: =100-(J99+K99+M99) -> 12.44819663 | M99: =IF((I101+M101)>100,M101*100/(I101+M101),M101) -> 0.3183633451 | N99: =IF((N101+R101)>100,N101*100/(N101+R101),N101) -> 95.41294742 | O99: =N99*AVERAGEIF(O105:O116,">0")/100 -> 90.49621287 | P99: =N99*(100-AVERAGEIF(O105:O116,">0"))/100 -> 4.916734549 | Q99: =100-(O99+P99+R99) -> 4.553728811 | R99: =IF((N101+R101)>100,R101*100/(N101+R101),R101) -> 0.03332376831 | S99: =IF((S101+W101)>100,S101*100/(S101+W101),S101) -> 97.07832521 | T99: =S99*AVERAGEIF(T105:T116,">0")/100 -> 94.67855011 | U99: =S99*(100-AVERAGEIF(T105:T116,">0"))/100 -> 2.3997751 | V99: =100-(T99+U99+W99) -> 2.851689751 | W99: =IF((S101+W101)>100,W101*100/(S101+W101),W101) -> 0.06998504255 | X99: =IF((X101+AB101)>100,X101*100/(X101+AB101),X101) -> 99.76122342 | Y99: =X99*AVERAGEIF(Y105:Y116,">0")/100 -> 99.0573508 | Z99: =X99*(100-AVERAGEIF(Y105:Y116,">0"))/100 -> 0.7038726222 | AA99: =100-(Y99+Z99+AB99) -> 0.2387765761 | AB99: =IF((X101+AB101)>100,AB101*100/(X101+AB101),AB101) -> 0
C100: =MaxTarget(C105:C116) -> 2017 | D100: =IF((D102+H102)>100,D102*100/(D102+H102),D102) -> 61.9981449 | E100: =D100*AVERAGEIF(E105:E116,">0")/100 -> 52.70731946 | F100: =D100*(100-AVERAGEIF(E105:E116,">0"))/100 -> 9.290825437 | G100: =100-(E100+F100+H100) -> 27.74028395 | H100: =IF((D102+H102)>100,H102*100/(D102+H102),H102) -> 10.26157115 | I100: =IF((I102+M102)>100,I102*100/(I102+M102),I102) -> 87.23344003 | J100: =I100*AVERAGEIF(J105:J116,">0")/100 -> 78.23945808 | K100: =I100*(100-AVERAGEIF(J105:J116,">0"))/100 -> 8.993981945 | L100: =100-(J100+K100+M100) -> 12.44819663 | M100: =IF((I102+M102)>100,M102*100/(I102+M102),M102) -> 0.3183633451 | N100: =IF((N102+R102)>100,N102*100/(N102+R102),N102) -> 95.41294742 | O100: =N100*AVERAGEIF(O105:O116,">0")/100 -> 90.49621287 | P100: =N100*(100-AVERAGEIF(O105:O116,">0"))/100 -> 4.916734549 | Q100: =100-(O100+P100+R100) -> 4.553728811 | R100: =IF((N102+R102)>100,R102*100/(N102+R102),R102) -> 0.03332376831 | S100: =IF((S102+W102)>100,S102*100/(S102+W102),S102) -> 97.07832521 | T100: =S100*AVERAGEIF(T105:T116,">0")/100 -> 94.67855011 | U100: =S100*(100-AVERAGEIF(T105:T116,">0"))/100 -> 2.3997751 | V100: =100-(T100+U100+W100) -> 2.851689751 | W100: =IF((S102+W102)>100,W102*100/(S102+W102),W102) -> 0.06998504255 | X100: =IF((X102+AB102)>100,X102*100/(X102+AB102),X102) -> 99.76122342 | Y100: =X100*AVERAGEIF(Y105:Y116,">0")/100 -> 99.0573508 | Z100: =X100*(100-AVERAGEIF(Y105:Y116,">0"))/100 -> 0.7038726222 | AA100: =100-(Y100+Z100+AB100) -> 0.2387765761 | AB100: =IF((X102+AB102)>100,AB102*100/(X102+AB102),AB102) -> 0
A101: Regression period: | C101: =MinRegYear(C99,C105:C116) -> 2011 | D101: =IF(MAX(C105:C116)-MIN(C105:C116)<5,AVERAGEIF(C105:C116,">0",D105:D116), IF(FORECAST($C101,D$105:D$116,$C$105:$C$116)<0,0, IF(FORECAST($C101,D$105:D$116,$C$105:$C$116)>100,100, FORECAST($C101,D$105:D$116,$C$105:$C$116)))) -> 61.9981449 | H101: =IF(MAX(C105:C116)-MIN(C105:C116)<5,AVERAGEIF(C105:C116,">0",H105:H116), IF(FORECAST($C101,H$105:H$116,$C$105:$C$116)<0,0, IF(FORECAST($C101,H$105:H$116,$C$105:$C$116)>100,100, FORECAST($C101,H$105:H$116,$C$105:$C$116)))) -> 10.26157115 | I101: =IF(MAX(C105:C116)-MIN(C105:C116)<5,AVERAGEIF(C105:C116,">0",I105:I116), IF(FORECAST($C101,I$105:I$116,$C$105:$C$116)<0,0, IF(FORECAST($C101,I$105:I$116,$C$105:$C$116)>100,100, FORECAST($C101,I$105:I$116,$C$105:$C$116)))) -> 87.23344003 | M101: =IF(MAX(C105:C116)-MIN(C105:C116)<5,AVERAGEIF(C105:C116,">0",M105:M116), IF(FORECAST($C101,M$105:M$116,$C$105:$C$116)<0,0, IF(FORECAST($C101,M$105:M$116,$C$105:$C$116)>100,100, FORECAST($C101,M$105:M$116,$C$105:$C$116)))) -> 0.3183633451 | N101: =IF(MAX(C105:C116)-MIN(C105:C116)<5,AVERAGEIF(C105:C116,">0",N105:N116), IF(FORECAST($C101,N$105:N$116,$C$105:$C$116)<0,0, IF(FORECAST($C101,N$105:N$116,$C$105:$C$116)>100,100, FORECAST($C101,N$105:N$116,$C$105:$C$116)))) -> 95.41294742 | R101: =IF(MAX(C105:C116)-MIN(C105:C116)<5,AVERAGEIF(C105:C116,">0",R105:R116), IF(FORECAST($C101,R$105:R$116,$C$105:$C$116)<0,0, IF(FORECAST($C101,R$105:R$116,$C$105:$C$116)>100,100, FORECAST($C101,R$105:R$116,$C$105:$C$116)))) -> 0.03332376831 | S101: =IF(MAX(C105:C116)-MIN(C105:C116)<5,AVERAGEIF(C105:C116,">0",S105:S116), IF(FORECAST($C101,S$105:S$116,$C$105:$C$116)<0,0, IF(FORECAST($C101,S$105:S$116,$C$105:$C$116)>100,100, FORECAST($C101,S$105:S$116,$C$105:$C$116)))) -> 97.07832521 | W101: =IF(MAX(C105:C116)-MIN(C105:C116)<5,AVERAGEIF(C105:C116,">0",W105:W116), IF(FORECAST($C101,W$105:W$116,$C$105:$C$116)<0,0, IF(FORECAST($C101,W$105:W$116,$C$105:$C$116)>100,100, FORECAST($C101,W$105:W$116,$C$105:$C$116)))) -> 0.06998504255 | X101: =IF(MAX(C105:C116)-MIN(C105:C116)<5,AVERAGEIF(C105:C116,">0",X105:X116), IF(FORECAST($C101,X$105:X$116,$C$105:$C$116)<0,0, IF(FORECAST($C101,X$105:X$116,$C$105:$C$116)>100,100, FORECAST($C101,X$105:X$116,$C$105:$C$116)))) -> 99.76122342 | AB101: =IF(MAX(C105:C116)-MIN(C105:C116)<5,AVERAGEIF(C105:C116,">0",AB105:AB116), IF(FORECAST($C101,AB$105:AB$116,$C$105:$C$116)<0,0, IF(FORECAST($C101,AB$105:AB$116,$C$105:$C$116)>100,100, FORECAST($C101,AB$105:AB$116,$C$105:$C$116)))) -> 0
C102: =MaxRegYear(C100,C105:C116) -> 2015 | D102: =IF(MAX(C105:C116)-MIN(C105:C116)<5,AVERAGEIF(C105:C116,">0",D105:D116), IF(FORECAST($C102,D$105:D$116,$C$105:$C$116)<0,0, IF(FORECAST($C102,D$105:D$116,$C$105:$C$116)>100,100, FORECAST($C102,D$105:D$116,$C$105:$C$116)))) -> 61.9981449 | H102: =IF(MAX(C105:C116)-MIN(C105:C116)<5,AVERAGEIF(C105:C116,">0",H105:H116), IF(FORECAST($C102,H$105:H$116,$C$105:$C$116)<0,0, IF(FORECAST($C102,H$105:H$116,$C$105:$C$116)>100,100, FORECAST($C102,H$105:H$116,$C$105:$C$116)))) -> 10.26157115 | I102: =IF(MAX(C105:C116)-MIN(C105:C116)<5,AVERAGEIF(C105:C116,">0",I105:I116), IF(FORECAST($C102,I$105:I$116,$C$105:$C$116)<0,0, IF(FORECAST($C102,I$105:I$116,$C$105:$C$116)>100,100, FORECAST($C102,I$105:I$116,$C$105:$C$116)))) -> 87.23344003 | M102: =IF(MAX(C105:C116)-MIN(C105:C116)<5,AVERAGEIF(C105:C116,">0",M105:M116), IF(FORECAST($C102,M$105:M$116,$C$105:$C$116)<0,0, IF(FORECAST($C102,M$105:M$116,$C$105:$C$116)>100,100, FORECAST($C102,M$105:M$116,$C$105:$C$116)))) -> 0.3183633451 | N102: =IF(MAX(C105:C116)-MIN(C105:C116)<5,AVERAGEIF(C105:C116,">0",N105:N116), IF(FORECAST($C102,N$105:N$116,$C$105:$C$116)<0,0, IF(FORECAST($C102,N$105:N$116,$C$105:$C$116)>100,100, FORECAST($C102,N$105:N$116,$C$105:$C$116)))) -> 95.41294742 | R102: =IF(MAX(C105:C116)-MIN(C105:C116)<5,AVERAGEIF(C105:C116,">0",R105:R116), IF(FORECAST($C102,R$105:R$116,$C$105:$C$116)<0,0, IF(FORECAST($C102,R$105:R$116,$C$105:$C$116)>100,100, FORECAST($C102,R$105:R$116,$C$105:$C$116)))) -> 0.03332376831 | S102: =IF(MAX(C105:C116)-MIN(C105:C116)<5,AVERAGEIF(C105:C116,">0",S105:S116), IF(FORECAST($C102,S$105:S$116,$C$105:$C$116)<0,0, IF(FORECAST($C102,S$105:S$116,$C$105:$C$116)>100,100, FORECAST($C102,S$105:S$116,$C$105:$C$116)))) -> 97.07832521 | W102: =IF(MAX(C105:C116)-MIN(C105:C116)<5,AVERAGEIF(C105:C116,">0",W105:W116), IF(FORECAST($C102,W$105:W$116,$C$105:$C$116)<0,0, IF(FORECAST($C102,W$105:W$116,$C$105:$C$116)>100,100, FORECAST($C102,W$105:W$116,$C$105:$C$116)))) -> 0.06998504255 | X102: =IF(MAX(C105:C116)-MIN(C105:C116)<5,AVERAGEIF(C105:C116,">0",X105:X116), IF(FORECAST($C102,X$105:X$116,$C$105:$C$116)<0,0, IF(FORECAST($C102,X$105:X$116,$C$105:$C$116)>100,100, FORECAST($C102,X$105:X$116,$C$105:$C$116)))) -> 99.76122342 | AB102: =IF(MAX(C105:C116)-MIN(C105:C116)<5,AVERAGEIF(C105:C116,">0",AB105:AB116), IF(FORECAST($C102,AB$105:AB$116,$C$105:$C$116)<0,0, IF(FORECAST($C102,AB$105:AB$116,$C$105:$C$116)>100,100, FORECAST($C102,AB$105:AB$116,$C$105:$C$116)))) -> 0
B104: Survey | C104: Year | D104: Improved | E104: Not shared | H104: Open defecation | I104: Improved | J104: Not shared | M104: Open defecation | N104: Improved | O104: Not shared | R104: Open defecation | S104: Improved | T104: Not shared | W104: Open defecation | X104: Improved | Y104: Not shared | AB104: Open defecation
B105: MICS13 | C105: 2013 | D105: =IF(ISERROR(INDIRECT(CONCATENATE($B105,"!C122"))),"",INDIRECT(CONCATENATE($B105,"!C122"))) -> 61.9981449 | E105: =IF(ISERROR(INDIRECT(CONCATENATE($B105,"!C129"))),"",INDIRECT(CONCATENATE($B105,"!C129"))) -> 85.0143493 | H105: =IF(ISERROR(INDIRECT(CONCATENATE($B105,"!C127"))),"",INDIRECT(CONCATENATE($B105,"!C127"))) -> 10.26157115 | I105: =IF(ISERROR(INDIRECT(CONCATENATE($B105,"!D122"))),"",INDIRECT(CONCATENATE($B105,"!D122"))) -> 87.23344003 | J105: =IF(ISERROR(INDIRECT(CONCATENATE($B105,"!D129"))),"",INDIRECT(CONCATENATE($B105,"!D129"))) -> 89.68975436 | M105: =IF(ISERROR(INDIRECT(CONCATENATE($B105,"!D127"))),"",INDIRECT(CONCATENATE($B105,"!D127"))) -> 0.3183633451 | N105: =IF(ISERROR(INDIRECT(CONCATENATE($B105,"!E122"))),"",INDIRECT(CONCATENATE($B105,"!E122"))) -> 95.41294742 | O105: =IF(ISERROR(INDIRECT(CONCATENATE($B105,"!E129"))),"",INDIRECT(CONCATENATE($B105,"!E129"))) -> 94.84688957 | R105: =IF(ISERROR(INDIRECT(CONCATENATE($B105,"!E127"))),"",INDIRECT(CONCATENATE($B105,"!E127"))) -> 0.03332376831 | S105: =IF(ISERROR(INDIRECT(CONCATENATE($B105,"!F122"))),"",INDIRECT(CONCATENATE($B105,"!F122"))) -> 97.07832521 | T105: =IF(ISERROR(INDIRECT(CONCATENATE($B105,"!F129"))),"",INDIRECT(CONCATENATE($B105,"!F129"))) -> 97.52800113 | W105: =IF(ISERROR(INDIRECT(CONCATENATE($B105,"!F127"))),"",INDIRECT(CONCATENATE($B105,"!F127"))) -> 0.06998504255 | X105: =IF(ISERROR(INDIRECT(CONCATENATE($B105,"!G122"))),"",INDIRECT(CONCATENATE($B105,"!G122"))) -> 99.76122342 | Y105: =IF(ISERROR(INDIRECT(CONCATENATE($B105,"!G129"))),"",INDIRECT(CONCATENATE($B105,"!G129"))) -> 99.29444267 | AB105: =IF(ISERROR(INDIRECT(CONCATENATE($B105,"!G2127"))),"",INDIRECT(CONCATENATE($B105,"!G127"))) -> 0
B118: =CONCATENATE("National use of sanitation facilities, ",C99,"–",C100) -> National use of sanitation facilities, 2009–2017 | S118: Data points used for regression
A197: URBAN | D197: Poorest | I197: Poor | N197: Middle | S197: Rich | X197: Richest
D198: Improved | E198: Basic | F198: Limited | G198: Unimproved | H198: Open defecation | I198: Improved | J198: Basic | K198: Limited | L198: Unimproved | M198: Open defecation | N198: Improved | O198: Basic | P198: Limited | Q198: Unimproved | R198: Open defecation | S198: Improved | T198: Basic | U198: Limited | V198: Unimproved | W198: Open defecation | X198: Improved | Y198: Basic | Z198: Limited | AA198: Unimproved | AB198: Open defecation
A199: Forecast period: | C199: =MinBase(C205:C216) -> 2009 | D199: =IF((D201+H201)>100,D201*100/(D201+H201),D201) -> 84.49822044 | E199: =D199*AVERAGEIF(E205:E216,">0")/100 -> 72.00178728 | F199: =D199*(100-AVERAGEIF(E205:E216,">0"))/100 -> 12.49643317 | G199: =100-(E199+F199+H199) -> 14.68334457 | H199: =IF((D201+H201)>100,H201*100/(D201+H201),H201) -> 0.8184349823 | I199: =IF((I201+M201)>100,I201*100/(I201+M201),I201) -> 95.39672364 | J199: =I199*AVERAGEIF(J205:J216,">0")/100 -> 89.40037634 | K199: =I199*(100-AVERAGEIF(J205:J216,">0"))/100 -> 5.996347292 | L199: =100-(J199+K199+M199) -> 4.565335494 | M199: =IF((I201+M201)>100,M201*100/(I201+M201),M201) -> 0.03794086967 | N199: =IF((N201+R201)>100,N201*100/(N201+R201),N201) -> 96.58977862 | O199: =N199*AVERAGEIF(O205:O216,">0")/100 -> 94.14583031 | P199: =N199*(100-AVERAGEIF(O205:O216,">0"))/100 -> 2.443948316 | Q199: =100-(O199+P199+R199) -> 3.410221376 | R199: =IF((N201+R201)>100,R201*100/(N201+R201),R201) -> 0 | S199: =IF((S201+W201)>100,S201*100/(S201+W201),S201) -> 99.28552139 | T199: =S199*AVERAGEIF(T205:T216,">0")/100 -> 96.1691357 | U199: =S199*(100-AVERAGEIF(T205:T216,">0"))/100 -> 3.116385688 | V199: =100-(T199+U199+W199) -> 0.7144786106 | W199: =IF((S201+W201)>100,W201*100/(S201+W201),W201) -> 0 | X199: =IF((X201+AB201)>100,X201*100/(X201+AB201),X201) -> 100 | Y199: =X199*AVERAGEIF(Y205:Y216,">0")/100 -> 99.92046359 | Z199: =X199*(100-AVERAGEIF(Y205:Y216,">0"))/100 -> 0.07953641447 | AA199: =100-(Y199+Z199+AB199) -> 0 | AB199: =IF((X201+AB201)>100,AB201*100/(X201+AB201),AB201) -> 0
C200: =MaxTarget(C205:C216) -> 2017 | D200: =IF((D202+H202)>100,D202*100/(D202+H202),D202) -> 84.49822044 | E200: =D200*AVERAGEIF(E205:E216,">0")/100 -> 72.00178728 | F200: =D200*(100-AVERAGEIF(E205:E216,">0"))/100 -> 12.49643317 | G200: =100-(E200+F200+H200) -> 14.68334457 | H200: =IF((D202+H202)>100,H202*100/(D202+H202),H202) -> 0.8184349823 | I200: =IF((I202+M202)>100,I202*100/(I202+M202),I202) -> 95.39672364 | J200: =I200*AVERAGEIF(J205:J216,">0")/100 -> 89.40037634 | K200: =I200*(100-AVERAGEIF(J205:J216,">0"))/100 -> 5.996347292 | L200: =100-(J200+K200+M200) -> 4.565335494 | M200: =IF((I202+M202)>100,M202*100/(I202+M202),M202) -> 0.03794086967 | N200: =IF((N202+R202)>100,N202*100/(N202+R202),N202) -> 96.58977862 | O200: =N200*AVERAGEIF(O205:O216,">0")/100 -> 94.14583031 | P200: =N200*(100-AVERAGEIF(O205:O216,">0"))/100 -> 2.443948316 | Q200: =100-(O200+P200+R200) -> 3.410221376 | R200: =IF((N202+R202)>100,R202*100/(N202+R202),R202) -> 0 | S200: =IF((S202+W202)>100,S202*100/(S202+W202),S202) -> 99.28552139 | T200: =S200*AVERAGEIF(T205:T216,">0")/100 -> 96.1691357 | U200: =S200*(100-AVERAGEIF(T205:T216,">0"))/100 -> 3.116385688 | V200: =100-(T200+U200+W200) -> 0.7144786106 | W200: =IF((S202+W202)>100,W202*100/(S202+W202),W202) -> 0 | X200: =IF((X202+AB202)>100,X202*100/(X202+AB202),X202) -> 100 | Y200: =X200*AVERAGEIF(Y205:Y216,">0")/100 -> 99.92046359 | Z200: =X200*(100-AVERAGEIF(Y205:Y216,">0"))/100 -> 0.07953641447 | AA200: =100-(Y200+Z200+AB200) -> 0 | AB200: =IF((X202+AB202)>100,AB202*100/(X202+AB202),AB202) -> 0
A201: Regression period: | C201: =MinRegYear(C199,C205:C216) -> 2011 | D201: =IF(MAX(C205:C216)-MIN(C205:C216)<5,AVERAGEIF(C205:C216,">0",D205:D216), IF(FORECAST($C201,D$205:D$216,$C$205:$C$216)<0,0, IF(FORECAST($C201,D$205:D$216,$C$205:$C$216)>100,100, FORECAST($C201,D$205:D$216,$C$205:$C$216)))) -> 84.49822044 | H201: =IF(MAX(C205:C216)-MIN(C205:C216)<5,AVERAGEIF(C205:C216,">0",H205:H216), IF(FORECAST($C201,H$205:H$216,$C$205:$C$216)<0,0, IF(FORECAST($C201,H$205:H$216,$C$205:$C$216)>100,100, FORECAST($C201,H$205:H$216,$C$205:$C$216)))) -> 0.8184349823 | I201: =IF(MAX(C205:C216)-MIN(C205:C216)<5,AVERAGEIF(C205:C216,">0",I205:I216), IF(FORECAST($C201,I$205:I$216,$C$205:$C$216)<0,0, IF(FORECAST($C201,I$205:I$216,$C$205:$C$216)>100,100, FORECAST($C201,I$205:I$216,$C$205:$C$216)))) -> 95.39672364 | M201: =IF(MAX(C205:C216)-MIN(C205:C216)<5,AVERAGEIF(C205:C216,">0",M205:M216), IF(FORECAST($C201,M$205:M$216,$C$205:$C$216)<0,0, IF(FORECAST($C201,M$205:M$216,$C$205:$C$216)>100,100, FORECAST($C201,M$205:M$216,$C$205:$C$216)))) -> 0.03794086967 | N201: =IF(MAX(C205:C216)-MIN(C205:C216)<5,AVERAGEIF(C205:C216,">0",N205:N216), IF(FORECAST($C201,N$205:N$216,$C$205:$C$216)<0,0, IF(FORECAST($C201,N$205:N$216,$C$205:$C$216)>100,100, FORECAST($C201,N$205:N$216,$C$205:$C$216)))) -> 96.58977862 | R201: =IF(MAX(C205:C216)-MIN(C205:C216)<5,AVERAGEIF(C205:C216,">0",R205:R216), IF(FORECAST($C201,R$205:R$216,$C$205:$C$216)<0,0, IF(FORECAST($C201,R$205:R$216,$C$205:$C$216)>100,100, FORECAST($C201,R$205:R$216,$C$205:$C$216)))) -> 0 | S201: =IF(MAX(C205:C216)-MIN(C205:C216)<5,AVERAGEIF(C205:C216,">0",S205:S216), IF(FORECAST($C201,S$205:S$216,$C$205:$C$216)<0,0, IF(FORECAST($C201,S$205:S$216,$C$205:$C$216)>100,100, FORECAST($C201,S$205:S$216,$C$205:$C$216)))) -> 99.28552139 | W201: =IF(MAX(C205:C216)-MIN(C205:C216)<5,AVERAGEIF(C205:C216,">0",W205:W216), IF(FORECAST($C201,W$205:W$216,$C$205:$C$216)<0,0, IF(FORECAST($C201,W$205:W$216,$C$205:$C$216)>100,100, FORECAST($C201,W$205:W$216,$C$205:$C$216)))) -> 0 | X201: =IF(MAX(C205:C216)-MIN(C205:C216)<5,AVERAGEIF(C205:C216,">0",X205:X216), IF(FORECAST($C201,X$205:X$216,$C$205:$C$216)<0,0, IF(FORECAST($C201,X$205:X$216,$C$205:$C$216)>100,100, FORECAST($C201,X$205:X$216,$C$205:$C$216)))) -> 100 | AB201: =IF(MAX(C205:C216)-MIN(C205:C216)<5,AVERAGEIF(C205:C216,">0",AB205:AB216), IF(FORECAST($C201,AB$205:AB$216,$C$205:$C$216)<0,0, IF(FORECAST($C201,AB$205:AB$216,$C$205:$C$216)>100,100, FORECAST($C201,AB$205:AB$216,$C$205:$C$216)))) -> 0
C202: =MaxRegYear(C200,C205:C216) -> 2015 | D202: =IF(MAX(C205:C216)-MIN(C205:C216)<5,AVERAGEIF(C205:C216,">0",D205:D216), IF(FORECAST($C202,D$205:D$216,$C$205:$C$216)<0,0, IF(FORECAST($C202,D$205:D$216,$C$205:$C$216)>100,100, FORECAST($C202,D$205:D$216,$C$205:$C$216)))) -> 84.49822044 | H202: =IF(MAX(C205:C216)-MIN(C205:C216)<5,AVERAGEIF(C205:C216,">0",H205:H216), IF(FORECAST($C202,H$205:H$216,$C$205:$C$216)<0,0, IF(FORECAST($C202,H$205:H$216,$C$205:$C$216)>100,100, FORECAST($C202,H$205:H$216,$C$205:$C$216)))) -> 0.8184349823 | I202: =IF(MAX(C205:C216)-MIN(C205:C216)<5,AVERAGEIF(C205:C216,">0",I205:I216), IF(FORECAST($C202,I$205:I$216,$C$205:$C$216)<0,0, IF(FORECAST($C202,I$205:I$216,$C$205:$C$216)>100,100, FORECAST($C202,I$205:I$216,$C$205:$C$216)))) -> 95.39672364 | M202: =IF(MAX(C205:C216)-MIN(C205:C216)<5,AVERAGEIF(C205:C216,">0",M205:M216), IF(FORECAST($C202,M$205:M$216,$C$205:$C$216)<0,0, IF(FORECAST($C202,M$205:M$216,$C$205:$C$216)>100,100, FORECAST($C202,M$205:M$216,$C$205:$C$216)))) -> 0.03794086967 | N202: =IF(MAX(C205:C216)-MIN(C205:C216)<5,AVERAGEIF(C205:C216,">0",N205:N216), IF(FORECAST($C202,N$205:N$216,$C$205:$C$216)<0,0, IF(FORECAST($C202,N$205:N$216,$C$205:$C$216)>100,100, FORECAST($C202,N$205:N$216,$C$205:$C$216)))) -> 96.58977862 | R202: =IF(MAX(C205:C216)-MIN(C205:C216)<5,AVERAGEIF(C205:C216,">0",R205:R216), IF(FORECAST($C202,R$205:R$216,$C$205:$C$216)<0,0, IF(FORECAST($C202,R$205:R$216,$C$205:$C$216)>100,100, FORECAST($C202,R$205:R$216,$C$205:$C$216)))) -> 0 | S202: =IF(MAX(C205:C216)-MIN(C205:C216)<5,AVERAGEIF(C205:C216,">0",S205:S216), IF(FORECAST($C202,S$205:S$216,$C$205:$C$216)<0,0, IF(FORECAST($C202,S$205:S$216,$C$205:$C$216)>100,100, FORECAST($C202,S$205:S$216,$C$205:$C$216)))) -> 99.28552139 | W202: =IF(MAX(C205:C216)-MIN(C205:C216)<5,AVERAGEIF(C205:C216,">0",W205:W216), IF(FORECAST($C202,W$205:W$216,$C$205:$C$216)<0,0, IF(FORECAST($C202,W$205:W$216,$C$205:$C$216)>100,100, FORECAST($C202,W$205:W$216,$C$205:$C$216)))) -> 0 | X202: =IF(MAX(C205:C216)-MIN(C205:C216)<5,AVERAGEIF(C205:C216,">0",X205:X216), IF(FORECAST($C202,X$205:X$216,$C$205:$C$216)<0,0, IF(FORECAST($C202,X$205:X$216,$C$205:$C$216)>100,100, FORECAST($C202,X$205:X$216,$C$205:$C$216)))) -> 100 | AB202: =IF(MAX(C205:C216)-MIN(C205:C216)<5,AVERAGEIF(C205:C216,">0",AB205:AB216), IF(FORECAST($C202,AB$205:AB$216,$C$205:$C$216)<0,0, IF(FORECAST($C202,AB$205:AB$216,$C$205:$C$216)>100,100, FORECAST($C202,AB$205:AB$216,$C$205:$C$216)))) -> 0
B204: Survey | C204: Year | D204: Improved | E204: Not shared | H204: Open defecation | I204: Improved | J204: Not shared | M204: Open defecation | N204: Improved | O204: Not shared | R204: Open defecation | S204: Improved | T204: Not shared | W204: Open defecation | X204: Improved | Y204: Not shared | AB204: Open defecation
B205: MICS13 | C205: 2013 | D205: =IF(ISERROR(INDIRECT(CONCATENATE($B205,"!H122"))),"",INDIRECT(CONCATENATE($B205,"!H122"))) -> 84.49822044 | E205: =IF(ISERROR(INDIRECT(CONCATENATE($B205,"!H129"))),"",INDIRECT(CONCATENATE($B205,"!H129"))) -> 85.21101024 | H205: =IF(ISERROR(INDIRECT(CONCATENATE($B205,"!H127"))),"",INDIRECT(CONCATENATE($B205,"!H127"))) -> 0.8184349823 | I205: =IF(ISERROR(INDIRECT(CONCATENATE($B205,"!I122"))),"",INDIRECT(CONCATENATE($B205,"!I122"))) -> 95.39672364 | J205: =IF(ISERROR(INDIRECT(CONCATENATE($B205,"!I129"))),"",INDIRECT(CONCATENATE($B205,"!I129"))) -> 93.71430479 | M205: =IF(ISERROR(INDIRECT(CONCATENATE($B205,"!I127"))),"",INDIRECT(CONCATENATE($B205,"!I127"))) -> 0.03794086967 | N205: =IF(ISERROR(INDIRECT(CONCATENATE($B205,"!J122"))),"",INDIRECT(CONCATENATE($B205,"!J122"))) -> 96.58977862 | O205: =IF(ISERROR(INDIRECT(CONCATENATE($B205,"!J129"))),"",INDIRECT(CONCATENATE($B205,"!J129"))) -> 97.46976507 | R205: =IF(ISERROR(INDIRECT(CONCATENATE($B205,"!J127"))),"",INDIRECT(CONCATENATE($B205,"!J127"))) -> 0 | S205: =IF(ISERROR(INDIRECT(CONCATENATE($B205,"!K122"))),"",INDIRECT(CONCATENATE($B205,"!K122"))) -> 99.28552139 | T205: =IF(ISERROR(INDIRECT(CONCATENATE($B205,"!K129"))),"",INDIRECT(CONCATENATE($B205,"!K129"))) -> 96.86118817 | W205: =IF(ISERROR(INDIRECT(CONCATENATE($B205,"!K127"))),"",INDIRECT(CONCATENATE($B205,"!K127"))) -> 0 | X205: =IF(ISERROR(INDIRECT(CONCATENATE($B205,"!L122"))),"",INDIRECT(CONCATENATE($B205,"!L122"))) -> 100 | Y205: =IF(ISERROR(INDIRECT(CONCATENATE($B205,"!L129"))),"",INDIRECT(CONCATENATE($B205,"!L129"))) -> 99.92046359 | AB205: =IF(ISERROR(INDIRECT(CONCATENATE($B205,"!L2127"))),"",INDIRECT(CONCATENATE($B205,"!L127"))) -> 0
B218: =CONCATENATE("Urban use of sanitation facilities, ",C199,"–",C200) -> Urban use of sanitation facilities, 2009–2017 | S218: Data points used for regression
A297: RURAL | D297: Poorest | I297: Poor | N297: Middle | S297: Rich | X297: Richest
D298: Improved | E298: Basic | F298: Limited | G298: Unimproved | H298: Open defecation | I298: Improved | J298: Basic | K298: Limited | L298: Unimproved | M298: Open defecation | N298: Improved | O298: Basic | P298: Limited | Q298: Unimproved | R298: Open defecation | S298: Improved | T298: Basic | U298: Limited | V298: Unimproved | W298: Open defecation | X298: Improved | Y298: Basic | Z298: Limited | AA298: Unimproved | AB298: Open defecation
A299: Forecast period: | C299: =MinBase(C305:C316) -> 2009 | D299: =IF((D301+H301)>100,D301*100/(D301+H301),D301) -> 39.91863178 | E299: =D299*AVERAGEIF(E305:E316,">0")/100 -> 32.14742941 | F299: =D299*(100-AVERAGEIF(E305:E316,">0"))/100 -> 7.771202372 | G299: =100-(E299+F299+H299) -> 33.11635397 | H299: =IF((D301+H301)>100,H301*100/(D301+H301),H301) -> 26.96501425 | I299: =IF((I301+M301)>100,I301*100/(I301+M301),I301) -> 68.05408738 | J299: =I299*AVERAGEIF(J305:J316,">0")/100 -> 61.92697751 | K299: =I299*(100-AVERAGEIF(J305:J316,">0"))/100 -> 6.127109875 | L299: =100-(J299+K299+M299) -> 27.65493693 | M299: =IF((I301+M301)>100,M301*100/(I301+M301),M301) -> 4.290975683 | N299: =IF((N301+R301)>100,N301*100/(N301+R301),N301) -> 77.46053162 | O299: =N299*AVERAGEIF(O305:O316,">0")/100 -> 71.17162376 | P299: =N299*(100-AVERAGEIF(O305:O316,">0"))/100 -> 6.288907863 | Q299: =100-(O299+P299+R299) -> 21.73168675 | R299: =IF((N301+R301)>100,R301*100/(N301+R301),R301) -> 0.8077816337 | S299: =IF((S301+W301)>100,S301*100/(S301+W301),S301) -> 82.66512486 | T299: =S299*AVERAGEIF(T305:T316,">0")/100 -> 73.91562675 | U299: =S299*(100-AVERAGEIF(T305:T316,">0"))/100 -> 8.749498108 | V299: =100-(T299+U299+W299) -> 16.28823533 | W299: =IF((S301+W301)>100,W301*100/(S301+W301),W301) -> 1.046639808 | X299: =IF((X301+AB301)>100,X301*100/(X301+AB301),X301) -> 94.36633993 | Y299: =X299*AVERAGEIF(Y305:Y316,">0")/100 -> 91.18349354 | Z299: =X299*(100-AVERAGEIF(Y305:Y316,">0"))/100 -> 3.182846393 | AA299: =100-(Y299+Z299+AB299) -> 5.402453942 | AB299: =IF((X301+AB301)>100,AB301*100/(X301+AB301),AB301) -> 0.2312061258
C300: =MaxTarget(C305:C316) -> 2017 | D300: =IF((D302+H302)>100,D302*100/(D302+H302),D302) -> 39.91863178 | E300: =D300*AVERAGEIF(E305:E316,">0")/100 -> 32.14742941 | F300: =D300*(100-AVERAGEIF(E305:E316,">0"))/100 -> 7.771202372 | G300: =100-(E300+F300+H300) -> 33.11635397 | H300: =IF((D302+H302)>100,H302*100/(D302+H302),H302) -> 26.96501425 | I300: =IF((I302+M302)>100,I302*100/(I302+M302),I302) -> 68.05408738 | J300: =I300*AVERAGEIF(J305:J316,">0")/100 -> 61.92697751 | K300: =I300*(100-AVERAGEIF(J305:J316,">0"))/100 -> 6.127109875 | L300: =100-(J300+K300+M300) -> 27.65493693 | M300: =IF((I302+M302)>100,M302*100/(I302+M302),M302) -> 4.290975683 | N300: =IF((N302+R302)>100,N302*100/(N302+R302),N302) -> 77.46053162 | O300: =N300*AVERAGEIF(O305:O316,">0")/100 -> 71.17162376 | P300: =N300*(100-AVERAGEIF(O305:O316,">0"))/100 -> 6.288907863 | Q300: =100-(O300+P300+R300) -> 21.73168675 | R300: =IF((N302+R302)>100,R302*100/(N302+R302),R302) -> 0.8077816337 | S300: =IF((S302+W302)>100,S302*100/(S302+W302),S302) -> 82.66512486 | T300: =S300*AVERAGEIF(T305:T316,">0")/100 -> 73.91562675 | U300: =S300*(100-AVERAGEIF(T305:T316,">0"))/100 -> 8.749498108 | V300: =100-(T300+U300+W300) -> 16.28823533 | W300: =IF((S302+W302)>100,W302*100/(S302+W302),W302) -> 1.046639808 | X300: =IF((X302+AB302)>100,X302*100/(X302+AB302),X302) -> 94.36633993 | Y300: =X300*AVERAGEIF(Y305:Y316,">0")/100 -> 91.18349354 | Z300: =X300*(100-AVERAGEIF(Y305:Y316,">0"))/100 -> 3.182846393 | AA300: =100-(Y300+Z300+AB300) -> 5.402453942 | AB300: =IF((X302+AB302)>100,AB302*100/(X302+AB302),AB302) -> 0.2312061258
A301: Regression period: | C301: =MinRegYear(C299,C305:C316) -> 2011 | D301: =IF(MAX(C305:C316)-MIN(C305:C316)<5,AVERAGEIF(C305:C316,">0",D305:D316), IF(FORECAST($C301,D$305:D$316,$C$305:$C$316)<0,0, IF(FORECAST($C301,D$305:D$316,$C$305:$C$316)>100,100, FORECAST($C301,D$305:D$316,$C$305:$C$316)))) -> 39.91863178 | H301: =IF(MAX(C305:C316)-MIN(C305:C316)<5,AVERAGEIF(C305:C316,">0",H305:H316), IF(FORECAST($C301,H$305:H$316,$C$305:$C$316)<0,0, IF(FORECAST($C301,H$305:H$316,$C$305:$C$316)>100,100, FORECAST($C301,H$305:H$316,$C$305:$C$316)))) -> 26.96501425 | I301: =IF(MAX(C305:C316)-MIN(C305:C316)<5,AVERAGEIF(C305:C316,">0",I305:I316), IF(FORECAST($C301,I$305:I$316,$C$305:$C$316)<0,0, IF(FORECAST($C301,I$305:I$316,$C$305:$C$316)>100,100, FORECAST($C301,I$305:I$316,$C$305:$C$316)))) -> 68.05408738 | M301: =IF(MAX(C305:C316)-MIN(C305:C316)<5,AVERAGEIF(C305:C316,">0",M305:M316), IF(FORECAST($C301,M$305:M$316,$C$305:$C$316)<0,0, IF(FORECAST($C301,M$305:M$316,$C$305:$C$316)>100,100, FORECAST($C301,M$305:M$316,$C$305:$C$316)))) -> 4.290975683 | N301: =IF(MAX(C305:C316)-MIN(C305:C316)<5,AVERAGEIF(C305:C316,">0",N305:N316), IF(FORECAST($C301,N$305:N$316,$C$305:$C$316)<0,0, IF(FORECAST($C301,N$305:N$316,$C$305:$C$316)>100,100, FORECAST($C301,N$305:N$316,$C$305:$C$316)))) -> 77.46053162 | R301: =IF(MAX(C305:C316)-MIN(C305:C316)<5,AVERAGEIF(C305:C316,">0",R305:R316), IF(FORECAST($C301,R$305:R$316,$C$305:$C$316)<0,0, IF(FORECAST($C301,R$305:R$316,$C$305:$C$316)>100,100, FORECAST($C301,R$305:R$316,$C$305:$C$316)))) -> 0.8077816337 | S301: =IF(MAX(C305:C316)-MIN(C305:C316)<5,AVERAGEIF(C305:C316,">0",S305:S316), IF(FORECAST($C301,S$305:S$316,$C$305:$C$316)<0,0, IF(FORECAST($C301,S$305:S$316,$C$305:$C$316)>100,100, FORECAST($C301,S$305:S$316,$C$305:$C$316)))) -> 82.66512486 | W301: =IF(MAX(C305:C316)-MIN(C305:C316)<5,AVERAGEIF(C305:C316,">0",W305:W316), IF(FORECAST($C301,W$305:W$316,$C$305:$C$316)<0,0, IF(FORECAST($C301,W$305:W$316,$C$305:$C$316)>100,100, FORECAST($C301,W$305:W$316,$C$305:$C$316)))) -> 1.046639808 | X301: =IF(MAX(C305:C316)-MIN(C305:C316)<5,AVERAGEIF(C305:C316,">0",X305:X316), IF(FORECAST($C301,X$305:X$316,$C$305:$C$316)<0,0, IF(FORECAST($C301,X$305:X$316,$C$305:$C$316)>100,100, FORECAST($C301,X$305:X$316,$C$305:$C$316)))) -> 94.36633993 | AB301: =IF(MAX(C305:C316)-MIN(C305:C316)<5,AVERAGEIF(C305:C316,">0",AB305:AB316), IF(FORECAST($C301,AB$305:AB$316,$C$305:$C$316)<0,0, IF(FORECAST($C301,AB$305:AB$316,$C$305:$C$316)>100,100, FORECAST($C301,AB$305:AB$316,$C$305:$C$316)))) -> 0.2312061258
C302: =MaxRegYear(C300,C305:C316) -> 2015 | D302: =IF(MAX(C305:C316)-MIN(C305:C316)<5,AVERAGEIF(C305:C316,">0",D305:D316), IF(FORECAST($C302,D$305:D$316,$C$305:$C$316)<0,0, IF(FORECAST($C302,D$305:D$316,$C$305:$C$316)>100,100, FORECAST($C302,D$305:D$316,$C$305:$C$316)))) -> 39.91863178 | H302: =IF(MAX(C305:C316)-MIN(C305:C316)<5,AVERAGEIF(C305:C316,">0",H305:H316), IF(FORECAST($C302,H$305:H$316,$C$305:$C$316)<0,0, IF(FORECAST($C302,H$305:H$316,$C$305:$C$316)>100,100, FORECAST($C302,H$305:H$316,$C$305:$C$316)))) -> 26.96501425 | I302: =IF(MAX(C305:C316)-MIN(C305:C316)<5,AVERAGEIF(C305:C316,">0",I305:I316), IF(FORECAST($C302,I$305:I$316,$C$305:$C$316)<0,0, IF(FORECAST($C302,I$305:I$316,$C$305:$C$316)>100,100, FORECAST($C302,I$305:I$316,$C$305:$C$316)))) -> 68.05408738 | M302: =IF(MAX(C305:C316)-MIN(C305:C316)<5,AVERAGEIF(C305:C316,">0",M305:M316), IF(FORECAST($C302,M$305:M$316,$C$305:$C$316)<0,0, IF(FORECAST($C302,M$305:M$316,$C$305:$C$316)>100,100, FORECAST($C302,M$305:M$316,$C$305:$C$316)))) -> 4.290975683 | N302: =IF(MAX(C305:C316)-MIN(C305:C316)<5,AVERAGEIF(C305:C316,">0",N305:N316), IF(FORECAST($C302,N$305:N$316,$C$305:$C$316)<0,0, IF(FORECAST($C302,N$305:N$316,$C$305:$C$316)>100,100, FORECAST($C302,N$305:N$316,$C$305:$C$316)))) -> 77.46053162 | R302: =IF(MAX(C305:C316)-MIN(C305:C316)<5,AVERAGEIF(C305:C316,">0",R305:R316), IF(FORECAST($C302,R$305:R$316,$C$305:$C$316)<0,0, IF(FORECAST($C302,R$305:R$316,$C$305:$C$316)>100,100, FORECAST($C302,R$305:R$316,$C$305:$C$316)))) -> 0.8077816337 | S302: =IF(MAX(C305:C316)-MIN(C305:C316)<5,AVERAGEIF(C305:C316,">0",S305:S316), IF(FORECAST($C302,S$305:S$316,$C$305:$C$316)<0,0, IF(FORECAST($C302,S$305:S$316,$C$305:$C$316)>100,100, FORECAST($C302,S$305:S$316,$C$305:$C$316)))) -> 82.66512486 | W302: =IF(MAX(C305:C316)-MIN(C305:C316)<5,AVERAGEIF(C305:C316,">0",W305:W316), IF(FORECAST($C302,W$305:W$316,$C$305:$C$316)<0,0, IF(FORECAST($C302,W$305:W$316,$C$305:$C$316)>100,100, FORECAST($C302,W$305:W$316,$C$305:$C$316)))) -> 1.046639808 | X302: =IF(MAX(C305:C316)-MIN(C305:C316)<5,AVERAGEIF(C305:C316,">0",X305:X316), IF(FORECAST($C302,X$305:X$316,$C$305:$C$316)<0,0, IF(FORECAST($C302,X$305:X$316,$C$305:$C$316)>100,100, FORECAST($C302,X$305:X$316,$C$305:$C$316)))) -> 94.36633993 | AB302: =IF(MAX(C305:C316)-MIN(C305:C316)<5,AVERAGEIF(C305:C316,">0",AB305:AB316), IF(FORECAST($C302,AB$305:AB$316,$C$305:$C$316)<0,0, IF(FORECAST($C302,AB$305:AB$316,$C$305:$C$316)>100,100, FORECAST($C302,AB$305:AB$316,$C$305:$C$316)))) -> 0.2312061258
B304: Survey | C304: Year | D304: Improved | E304: Not shared | H304: Open defecation | I304: Improved | J304: Not shared | M304: Open defecation | N304: Improved | O304: Not shared | R304: Open defecation | S304: Improved | T304: Not shared | W304: Open defecation | X304: Improved | Y304: Not shared | AB304: Open defecation
B305: MICS13 | C305: 2013 | D305: =IF(ISERROR(INDIRECT(CONCATENATE($B305,"!M122"))),"",INDIRECT(CONCATENATE($B305,"!M122"))) -> 39.91863178 | E305: =IF(ISERROR(INDIRECT(CONCATENATE($B305,"!M129"))),"",INDIRECT(CONCATENATE($B305,"!M129"))) -> 80.53239296 | H305: =IF(ISERROR(INDIRECT(CONCATENATE($B305,"!M127"))),"",INDIRECT(CONCATENATE($B305,"!M127"))) -> 26.96501425 | I305: =IF(ISERROR(INDIRECT(CONCATENATE($B305,"!N122"))),"",INDIRECT(CONCATENATE($B305,"!N122"))) -> 68.05408738 | J305: =IF(ISERROR(INDIRECT(CONCATENATE($B305,"!N129"))),"",INDIRECT(CONCATENATE($B305,"!N129"))) -> 90.99670555 | M305: =IF(ISERROR(INDIRECT(CONCATENATE($B305,"!N127"))),"",INDIRECT(CONCATENATE($B305,"!N127"))) -> 4.290975683 | N305: =IF(ISERROR(INDIRECT(CONCATENATE($B305,"!O122"))),"",INDIRECT(CONCATENATE($B305,"!O122"))) -> 77.46053162 | O305: =IF(ISERROR(INDIRECT(CONCATENATE($B305,"!O129"))),"",INDIRECT(CONCATENATE($B305,"!O129"))) -> 91.88114549 | R305: =IF(ISERROR(INDIRECT(CONCATENATE($B305,"!O127"))),"",INDIRECT(CONCATENATE($B305,"!O127"))) -> 0.8077816337 | S305: =IF(ISERROR(INDIRECT(CONCATENATE($B305,"!P122"))),"",INDIRECT(CONCATENATE($B305,"!P122"))) -> 82.66512486 | T305: =IF(ISERROR(INDIRECT(CONCATENATE($B305,"!P129"))),"",INDIRECT(CONCATENATE($B305,"!P129"))) -> 89.4157323 | W305: =IF(ISERROR(INDIRECT(CONCATENATE($B305,"!P127"))),"",INDIRECT(CONCATENATE($B305,"!P127"))) -> 1.046639808 | X305: =IF(ISERROR(INDIRECT(CONCATENATE($B305,"!Q122"))),"",INDIRECT(CONCATENATE($B305,"!Q122"))) -> 94.36633993 | Y305: =IF(ISERROR(INDIRECT(CONCATENATE($B305,"!Q129"))),"",INDIRECT(CONCATENATE($B305,"!Q129"))) -> 96.62713803 | AB305: =IF(ISERROR(INDIRECT(CONCATENATE($B305,"!Q2127"))),"",INDIRECT(CONCATENATE($B305,"!Q127"))) -> 0.2312061258
B318: =CONCATENATE("Rural use of sanitation facilities, ",C299,"–",C300) -> Rural use of sanitation facilities, 2009–2017 | S318: Data points used for regression

Sheet Hygiene
B4: Access to hygiene facilities by wealth quintile (%)
B5: =IF(ISERROR(INDIRECT(CONCATENATE($E$32,"!A2"))),"",INDIRECT(CONCATENATE($E$32,"!A2"))) -> Panama
B7: =CONCATENATE("National ",IF(ISERROR(INDIRECT(CONCATENATE($E$32,"!A2"))),"",INDIRECT(CONCATENATE($E$32,"!A210")))) -> National Access to hygiene facilities | K7: =CONCATENATE("Urban ",IF(ISERROR(INDIRECT(CONCATENATE($E$32,"!A2"))),"",INDIRECT(CONCATENATE($E$32,"!A210")))) -> Urban Access to hygiene facilities | S7: =CONCATENATE("Rural ",IF(ISERROR(INDIRECT(CONCATENATE($E$32,"!A2"))),"",INDIRECT(CONCATENATE($E$32,"!A210")))) -> Rural Access to hygiene facilities
E32: =INDEX(B88:B100,A88) -> MICS13 | G32: =IF(ISERROR(INDIRECT(CONCATENATE($E$32,"!A2"))),"",INDIRECT(CONCATENATE($E$32,"!A2"))) -> Panama | K32: Poorest | N32: Poor | Q32: Middle | T32: Rich | W32: Richest
K33: Basic | L33: Limited | M33: No facility | N33: Basic | O33: Limited | P33: No facility | Q33: Basic | R33: Limited | S33: No facility | T33: Basic | U33: Limited | V33: No facility | W33: Basic | X33: Limited | Y33: No facility
B34: >>> Select Survey : | G34: NATIONAL | J34: =IF(ISERROR(INDIRECT(CONCATENATE(#REF!,"!A2"))),"",INDIRECT(CONCATENATE(#REF!,"!A210"))) ->  | K34: =IF(ISERROR(INDIRECT(CONCATENATE($E$32,"!C222"))),"",INDIRECT(CONCATENATE($E$32,"!C222"))) -> N/A | L34: =IF(ISERROR(INDIRECT(CONCATENATE($E$32,"!C223"))),"",INDIRECT(CONCATENATE($E$32,"!C223"))) -> N/A | M34: =IF(ISERROR(INDIRECT(CONCATENATE($E$32,"!C224"))),"",INDIRECT(CONCATENATE($E$32,"!C224"))) -> N/A | N34: =IF(ISERROR(INDIRECT(CONCATENATE($E$32,"!D222"))),"",INDIRECT(CONCATENATE($E$32,"!D222"))) -> N/A | O34: =IF(ISERROR(INDIRECT(CONCATENATE($E$32,"!D223"))),"",INDIRECT(CONCATENATE($E$32,"!D223"))) -> N/A | P34: =IF(ISERROR(INDIRECT(CONCATENATE($E$32,"!D224"))),"",INDIRECT(CONCATENATE($E$32,"!D224"))) -> N/A | Q34: =IF(ISERROR(INDIRECT(CONCATENATE($E$32,"!E222"))),"",INDIRECT(CONCATENATE($E$32,"!E222"))) -> N/A | R34: =IF(ISERROR(INDIRECT(CONCATENATE($E$32,"!E223"))),"",INDIRECT(CONCATENATE($E$32,"!E223"))) -> N/A | S34: =IF(ISERROR(INDIRECT(CONCATENATE($E$32,"!E224"))),"",INDIRECT(CONCATENATE($E$32,"!E224"))) -> N/A | T34: =IF(ISERROR(INDIRECT(CONCATENATE($E$32,"!F222"))),"",INDIRECT(CONCATENATE($E$32,"!F222"))) -> N/A | U34: =IF(ISERROR(INDIRECT(CONCATENATE($E$32,"!F223"))),"",INDIRECT(CONCATENATE($E$32,"!F223"))) -> N/A | V34: =IF(ISERROR(INDIRECT(CONCATENATE($E$32,"!F224"))),"",INDIRECT(CONCATENATE($E$32,"!F224"))) -> N/A | W34: =IF(ISERROR(INDIRECT(CONCATENATE($E$32,"!G222"))),"",INDIRECT(CONCATENATE($E$32,"!G222"))) -> N/A | X34: =IF(ISERROR(INDIRECT(CONCATENATE($E$32,"!G223"))),"",INDIRECT(CONCATENATE($E$32,"!G223"))) -> N/A | Y34: =IF(ISERROR(INDIRECT(CONCATENATE($E$32,"!G224"))),"",INDIRECT(CONCATENATE($E$32,"!G224"))) -> N/A
G37: URBAN | J37: =IF(ISERROR(INDIRECT(CONCATENATE(#REF!,"!A2"))),"",INDIRECT(CONCATENATE(#REF!,"!A210"))) ->  | K37: =IF(ISERROR(INDIRECT(CONCATENATE($E$32,"!H222"))),"",INDIRECT(CONCATENATE($E$32,"!H222"))) -> N/A | L37: =IF(ISERROR(INDIRECT(CONCATENATE($E$32,"!H223"))),"",INDIRECT(CONCATENATE($E$32,"!H223"))) -> N/A | M37: =IF(ISERROR(INDIRECT(CONCATENATE($E$32,"!H224"))),"",INDIRECT(CONCATENATE($E$32,"!H224"))) -> N/A | N37: =IF(ISERROR(INDIRECT(CONCATENATE($E$32,"!I222"))),"",INDIRECT(CONCATENATE($E$32,"!I222"))) -> N/A | O37: =IF(ISERROR(INDIRECT(CONCATENATE($E$32,"!I223"))),"",INDIRECT(CONCATENATE($E$32,"!I223"))) -> N/A | P37: =IF(ISERROR(INDIRECT(CONCATENATE($E$32,"!I224"))),"",INDIRECT(CONCATENATE($E$32,"!I224"))) -> N/A | Q37: =IF(ISERROR(INDIRECT(CONCATENATE($E$32,"!J222"))),"",INDIRECT(CONCATENATE($E$32,"!J222"))) -> N/A | R37: =IF(ISERROR(INDIRECT(CONCATENATE($E$32,"!J223"))),"",INDIRECT(CONCATENATE($E$32,"!J223"))) -> N/A | S37: =IF(ISERROR(INDIRECT(CONCATENATE($E$32,"!J224"))),"",INDIRECT(CONCATENATE($E$32,"!J224"))) -> N/A | T37: =IF(ISERROR(INDIRECT(CONCATENATE($E$32,"!K222"))),"",INDIRECT(CONCATENATE($E$32,"!K222"))) -> N/A | U37: =IF(ISERROR(INDIRECT(CONCATENATE($E$32,"!K223"))),"",INDIRECT(CONCATENATE($E$32,"!K223"))) -> N/A | V37: =IF(ISERROR(INDIRECT(CONCATENATE($E$32,"!K224"))),"",INDIRECT(CONCATENATE($E$32,"!K224"))) -> N/A | W37: =IF(ISERROR(INDIRECT(CONCATENATE($E$32,"!L222"))),"",INDIRECT(CONCATENATE($E$32,"!L222"))) -> N/A | X37: =IF(ISERROR(INDIRECT(CONCATENATE($E$32,"!L223"))),"",INDIRECT(CONCATENATE($E$32,"!L223"))) -> N/A | Y37: =IF(ISERROR(INDIRECT(CONCATENATE($E$32,"!L224"))),"",INDIRECT(CONCATENATE($E$32,"!L224"))) -> N/A
G40: RURAL | J40: =IF(ISERROR(INDIRECT(CONCATENATE(#REF!,"!A2"))),"",INDIRECT(CONCATENATE(#REF!,"!A210"))) ->  | K40: =IF(ISERROR(INDIRECT(CONCATENATE($E$32,"!M222"))),"",INDIRECT(CONCATENATE($E$32,"!M222"))) -> N/A | L40: =IF(ISERROR(INDIRECT(CONCATENATE($E$32,"!M223"))),"",INDIRECT(CONCATENATE($E$32,"!M223"))) -> N/A | M40: =IF(ISERROR(INDIRECT(CONCATENATE($E$32,"!M224"))),"",INDIRECT(CONCATENATE($E$32,"!M224"))) -> N/A | N40: =IF(ISERROR(INDIRECT(CONCATENATE($E$32,"!N222"))),"",INDIRECT(CONCATENATE($E$32,"!N222"))) -> N/A | O40: =IF(ISERROR(INDIRECT(CONCATENATE($E$32,"!N223"))),"",INDIRECT(CONCATENATE($E$32,"!N223"))) -> N/A | P40: =IF(ISERROR(INDIRECT(CONCATENATE($E$32,"!N224"))),"",INDIRECT(CONCATENATE($E$32,"!N224"))) -> N/A | Q40: =IF(ISERROR(INDIRECT(CONCATENATE($E$32,"!O222"))),"",INDIRECT(CONCATENATE($E$32,"!O222"))) -> N/A | R40: =IF(ISERROR(INDIRECT(CONCATENATE($E$32,"!O223"))),"",INDIRECT(CONCATENATE($E$32,"!O223"))) -> N/A | S40: =IF(ISERROR(INDIRECT(CONCATENATE($E$32,"!O224"))),"",INDIRECT(CONCATENATE($E$32,"!O224"))) -> N/A | T40: =IF(ISERROR(INDIRECT(CONCATENATE($E$32,"!P222"))),"",INDIRECT(CONCATENATE($E$32,"!P222"))) -> N/A | U40: =IF(ISERROR(INDIRECT(CONCATENATE($E$32,"!P223"))),"",INDIRECT(CONCATENATE($E$32,"!P223"))) -> N/A | V40: =IF(ISERROR(INDIRECT(CONCATENATE($E$32,"!P224"))),"",INDIRECT(CONCATENATE($E$32,"!P224"))) -> N/A | W40: =IF(ISERROR(INDIRECT(CONCATENATE($E$32,"!Q222"))),"",INDIRECT(CONCATENATE($E$32,"!Q222"))) -> N/A | X40: =IF(ISERROR(INDIRECT(CONCATENATE($E$32,"!Q223"))),"",INDIRECT(CONCATENATE($E$32,"!Q223"))) -> N/A | Y40: =IF(ISERROR(INDIRECT(CONCATENATE($E$32,"!Q224"))),"",INDIRECT(CONCATENATE($E$32,"!Q224"))) -> N/A
A88: 1 | B88: MICS13
B89: Template

Sheet MICS13
A1: PAN
A2: =A1026 -> Panama
A3: =A1034 -> 2013
A4: Use of drinking water sources
A5: by wealth quintile and sub-national region
A6: Notes:
A7: WHO/UNICEF JMP customised wealth index excludes water,
A8: sanitation and hygiene assets.
A9: Survey used for analysis: | B9: =A1025 -> MICS13
A10: =B1028 -> 
A11: =B1027 -> 
A14: Use of drinking water sources | C14: NATIONAL wealth index quintile | H14: URBAN wealth index quintile | M14: RURAL wealth index quintile | R14: SUB-REGIONS: | BA14: Raw numbers of respondents: | BB14: Use of drinking water sources | BC14: NATIONAL wealth index quintile | BH14: URBAN wealth index quintile | BM14: RURAL wealth index quintile | BR14: SUB-REGIONS:
A15: Weighted percentage (used in graphs) | C15: Poorest | D15: Poor | E15: Middle | F15: Rich | G15: Richest | H15: Poorest | I15: Poor | J15: Middle | K15: Rich | L15: Richest | M15: Poorest | N15: Poor | O15: Middle | P15: Rich | Q15: Richest | R15: Bocas del Toro | S15: Chiriquí | T15: Coclé | U15: Colón | V15: Darien | W15: Emberá Wounaan | X15: Herrera | Y15: Kuna Yala | Z15: Los Santos | AA15: Ngöbe Buglé | AB15: Panamá | AC15: Veraguas | BA15: Water data, raw numbers (weighted) | BC15: Poorest | BD15: Poor | BE15: Middle | BF15: Rich | BG15: Richest | BH15: Poorest | BI15: Poor | BJ15: Middle | BK15: Rich | BL15: Richest | BM15: Poorest | BN15: Poor | BO15: Middle | BP15: Rich | BQ15: Richest | BR15: Bocas del Toro | BS15: Chiriquí | BT15: Coclé | BU15: Colón | BV15: Darien | BW15: Emberá Wounaan | BX15: Herrera | BY15: Kuna Yala | BZ15: Los Santos | CA15: Ngöbe Buglé | CB15: Panamá | CC15: Veraguas
A16: Water | B16: Improved | C16: 86.75003257 | D16: 99.83208607 | E16: 99.86535941 | F16: 100 | G16: 99.77626678 | H16: 99.8388013 | I16: 99.98774218 | J16: 100 | K16: 99.93070535 | L16: 100 | M16: 66.86020805 | N16: 91.24301295 | O16: 98.46499552 | P16: 99.30334948 | Q16: 99.15075281 | R16: 93.56282327 | S16: 97.70598742 | T16: 99.21299998 | U16: 97.66920989 | V16: 88.42670877 | W16: 47.36322149 | X16: 97.49720419 | Y16: 83.14086362 | Z16: 99.92536732 | AA16: 54.31190064 | AB16: 99.71551007 | AC16: 93.96130253 | BA16: Water | BB16: Improved | BC16: N/A | BD16: N/A | BE16: N/A | BF16: N/A | BG16: N/A | BH16: N/A | BI16: N/A | BJ16: N/A | BK16: N/A | BL16: N/A | BM16: N/A | BN16: N/A | BO16: N/A | BP16: N/A | BQ16: N/A | BR16: N/A | BS16: N/A | BT16: N/A | BU16: N/A | BV16: N/A | BW16: N/A | BX16: N/A | BY16: N/A | BZ16: N/A | CA16: N/A | CB16: N/A | CC16: N/A
B17: Not Improved | C17: 13.24996743 | D17: 0.1679139281 | E17: 0.1346405853 | F17: 0 | G17: 0.2237332241 | H17: 0.1611986989 | I17: 0.01225781943 | J17: 0 | K17: 0.0692946545 | L17: 0 | M17: 33.13979195 | N17: 8.756987045 | O17: 1.535004476 | P17: 0.6966505204 | Q17: 0.8492471938 | R17: 6.437176734 | S17: 2.29401258 | T17: 0.787000017 | U17: 2.330790109 | V17: 11.57329123 | W17: 52.63677851 | X17: 2.502795808 | Y17: 16.85913638 | Z17: 0.07463268298 | AA17: 45.68809936 | AB17: 0.2844899329 | AC17: 6.038697472 | BB17: Not Improved | BC17: N/A | BD17: N/A | BE17: N/A | BF17: N/A | BG17: N/A | BH17: N/A | BI17: N/A | BJ17: N/A | BK17: N/A | BL17: N/A | BM17: N/A | BN17: N/A | BO17: N/A | BP17: N/A | BQ17: N/A | BR17: N/A | BS17: N/A | BT17: N/A | BU17: N/A | BV17: N/A | BW17: N/A | BX17: N/A | BY17: N/A | BZ17: N/A | CA17: N/A | CB17: N/A | CC17: N/A
A18: Water ladder | B18: Basic | C18: =C16*C23/100 -> 86.5765325 | D18: =D16*D23/100 -> 99.83208607 | E18: =E16*E23/100 -> 99.86535941 | F18: 100 | G18: 99.77626678 | H18: 99.7389625 | I18: 99.98774218 | J18: 100 | K18: 99.93070535 | L18: 100 | M18: 66.59276722 | N18: 91.24301295 | O18: 98.46499552 | P18: 99.30334948 | Q18: 99.15075281 | R18: 93.56282327 | S18: 97.70598742 | T18: 99.21299998 | U18: 97.47387147 | V18: 88.07300193 | W18: 47.36322149 | X18: 97.49720419 | Y18: 83.14086362 | Z18: 99.92536732 | AA18: 53.76878163 | AB18: 99.71551007 | AC18: 93.96130253 | BA18: Water ladder | BB18: Basic | BC18: N/A | BD18: N/A | BE18: N/A | BF18: N/A | BG18: N/A | BH18: N/A | BI18: N/A | BJ18: N/A | BK18: N/A | BL18: N/A | BM18: N/A | BN18: N/A | BO18: N/A | BP18: N/A | BQ18: N/A | BR18: N/A | BS18: N/A | BT18: N/A | BU18: N/A | BV18: N/A | BW18: N/A | BX18: N/A | BY18: N/A | BZ18: N/A | CA18: N/A | CB18: N/A | CC18: N/A
B19: Limited | C19: =C16*C22/100 -> 0.1735000651 | D19: =D16*D22/100 -> 0 | E19: =E16*E22/100 -> 0 | F19: 0 | G19: 0 | H19: 0.0998388013 | I19: 0 | J19: 0 | K19: 0 | L19: 0 | M19: 0.2674408322 | N19: 0 | O19: 0 | P19: 0 | Q19: 0 | R19: 0 | S19: 0 | T19: 0 | U19: 0.1953384198 | V19: 0.3537068351 | W19: 0 | X19: 0 | Y19: 0 | Z19: 0 | AA19: 0.5431190064 | AB19: 0 | AC19: 0 | BB19: Limited | BC19: N/A | BD19: N/A | BE19: N/A | BF19: N/A | BG19: N/A | BH19: N/A | BI19: N/A | BJ19: N/A | BK19: N/A | BL19: N/A | BM19: N/A | BN19: N/A | BO19: N/A | BP19: N/A | BQ19: N/A | BR19: N/A | BS19: N/A | BT19: N/A | BU19: N/A | BV19: N/A | BW19: N/A | BX19: N/A | BY19: N/A | BZ19: N/A | CA19: N/A | CB19: N/A | CC19: N/A
B20: Unimproved | C20: =100-C18-C19-C21 -> 10.18372863 | D20: =100-D18-D19-D21 -> 0.1573737283 | E20: =100-E18-E19-E21 -> 0.1312502103 | F20: 0 | G20: 0.2237332241 | H20: 0.1611986989 | I20: 0.01225781943 | J20: 0 | K20: 0.0692946545 | L20: 0 | M20: 26.13940892 | N20: 6.010236172 | O20: 1.15572588 | P20: 0.6595769084 | Q20: 0.8492471938 | R20: 4.032312097 | S20: 2.29401258 | T20: 0.3445512505 | U20: 1.289844189 | V20: 2.586899188 | W20: 1.563194019e-13 | X20: 1.586417694 | Y20: 1.681509455 | Z20: 0.07463268298 | AA20: 41.10796651 | AB20: 0.2844899329 | AC20: 5.322872564 | BB20: Unimproved | BC20: N/A | BD20: N/A | BE20: N/A | BF20: N/A | BG20: N/A | BH20: N/A | BI20: N/A | BJ20: N/A | BK20: N/A | BL20: N/A | BM20: N/A | BN20: N/A | BO20: N/A | BP20: N/A | BQ20: N/A | BR20: N/A | BS20: N/A | BT20: N/A | BU20: N/A | BV20: N/A | BW20: N/A | BX20: N/A | BY20: N/A | BZ20: N/A | CA20: N/A | CB20: N/A | CC20: N/A
B21: Surface water | C21: 3.066238805 | D21: 0.01054019975 | E21: 0.003390375011 | F21: 0 | G21: 0 | H21: 0 | I21: 0 | J21: 0 | K21: 0 | L21: 0 | M21: 7.000383027 | N21: 2.746750873 | O21: 0.3792785958 | P21: 0.03707361198 | Q21: 0 | R21: 2.404864637 | S21: 0 | T21: 0.4424487664 | U21: 1.04094592 | V21: 8.986392045 | W21: 52.63677851 | X21: 0.9163781142 | Y21: 15.17762693 | Z21: 0 | AA21: 4.580132857 | AB21: 0 | AC21: 0.7158249088 | BB21: Surface water | BC21: N/A | BD21: N/A | BE21: N/A | BF21: N/A | BG21: N/A | BH21: N/A | BI21: N/A | BJ21: N/A | BK21: N/A | BL21: N/A | BM21: N/A | BN21: N/A | BO21: N/A | BP21: N/A | BQ21: N/A | BR21: N/A | BS21: N/A | BT21: N/A | BU21: N/A | BV21: N/A | BW21: N/A | BX21: N/A | BY21: N/A | BZ21: N/A | CA21: N/A | CB21: N/A | CC21: N/A
A22: Improved water point at more than 30 minutes | B22: Yes | C22: 0.2 | D22: 0 | E22: 0 | F22: 0 | G22: 0 | H22: 0.1 | I22: 0 | J22: 0 | K22: 0 | L22: 0 | M22: 0.4 | N22: 0 | O22: 0 | P22: 0 | Q22: 0 | R22: 0 | S22: 0 | T22: 0 | U22: 0.2 | V22: 0.4 | W22: 0 | X22: 0 | Y22: 0 | Z22: 0 | AA22: 1 | AB22: 0 | AC22: 0 | BA22: Improved water point at more than 30 minutes | BB22: Yes | BC22: N/A | BD22: N/A | BE22: N/A | BF22: N/A | BG22: N/A | BH22: N/A | BI22: N/A | BJ22: N/A | BK22: N/A | BL22: N/A | BM22: N/A | BN22: N/A | BO22: N/A | BP22: N/A | BQ22: N/A | BR22: N/A | BS22: N/A | BT22: N/A | BU22: N/A | BV22: N/A | BW22: N/A | BX22: N/A | BY22: N/A | BZ22: N/A | CA22: N/A | CB22: N/A | CC22: N/A
B23: No | C23: 99.8 | D23: 100 | E23: 100 | F23: 100 | G23: 100 | H23: 99.9 | I23: 100 | J23: 100 | K23: 100 | L23: 100 | M23: 99.6 | N23: 100 | O23: 100 | P23: 100 | Q23: 100 | R23: 100 | S23: 100 | T23: 100 | U23: 99.8 | V23: 99.6 | W23: 100 | X23: 100 | Y23: 100 | Z23: 100 | AA23: 99 | AB23: 100 | AC23: 100 | BB23: No | BC23: N/A | BD23: N/A | BE23: N/A | BF23: N/A | BG23: N/A | BH23: N/A | BI23: N/A | BJ23: N/A | BK23: N/A | BL23: N/A | BM23: N/A | BN23: N/A | BO23: N/A | BP23: N/A | BQ23: N/A | BR23: N/A | BS23: N/A | BT23: N/A | BU23: N/A | BV23: N/A | BW23: N/A | BX23: N/A | BY23: N/A | BZ23: N/A | CA23: N/A | CB23: N/A | CC23: N/A
A24: Manually calculated ratios | B24: Improved wells
B25: Improved springs
B26: Other
C27: NATIONAL wealth index quintile | H27: URBAN wealth index quintile | M27: RURAL wealth index quintile | R27: SUB-REGIONS: | BA27: Raw numbers of respondents: | BB27: Use of drinking water sources | BC27: NATIONAL wealth index quintile | BH27: URBAN wealth index quintile | BM27: RURAL wealth index quintile | BR27: SUB-REGIONS:
A28: Percentage based on weighted population | C28: Poorest | D28: Poor | E28: Middle | F28: Rich | G28: Richest | H28: Poorest | I28: Poor | J28: Middle | K28: Rich | L28: Richest | M28: Poorest | N28: Poor | O28: Middle | P28: Rich | Q28: Richest | R28: Bocas del Toro | S28: Chiriquí | T28: Coclé | U28: Colón | V28: Darien | W28: Emberá Wounaan | X28: Herrera | Y28: Kuna Yala | Z28: Los Santos | AA28: Ngöbe Buglé | AB28: Panamá | AC28: Veraguas | BA28: Water data, raw numbers (weighted) | BC28: Poorest | BD28: Poor | BE28: Middle | BF28: Rich | BG28: Richest | BH28: Poorest | BI28: Poor | BJ28: Middle | BK28: Rich | BL28: Richest | BM28: Poorest | BN28: Poor | BO28: Middle | BP28: Rich | BQ28: Richest | BR28: Bocas del Toro | BS28: Chiriquí | BT28: Coclé | BU28: Colón | BV28: Darien | BW28: Emberá Wounaan | BX28: Herrera | BY28: Kuna Yala | BZ28: Los Santos | CA28: Ngöbe Buglé | CB28: Panamá | CC28: Veraguas
A29: Piped water | B29: Yes | C29: 78.9 | D29: 96.2 | E29: 98.1 | F29: 98.7 | G29: 95.7 | H29: 97.5 | I29: 99 | J29: 99.3 | K29: 99.1 | L29: 95.2 | M29: 56.6 | N29: 83.2 | O29: 89.8 | P29: 92.3 | Q29: 93.9 | R29: 79.3 | S29: 87.4 | T29: 95.4 | U29: 91.7 | V29: 81.5 | W29: 27.7 | X29: 95.3 | Y29: 83 | Z29: 98.8 | AA29: 49.6 | AB29: 98.2 | AC29: 92 | BA29: Piped water | BB29: Yes | BC29: N/A | BD29: N/A | BE29: N/A | BF29: N/A | BG29: N/A | BH29: N/A | BI29: N/A | BJ29: N/A | BK29: N/A | BL29: N/A | BM29: N/A | BN29: N/A | BO29: N/A | BP29: N/A | BQ29: N/A | BR29: N/A | BS29: N/A | BT29: N/A | BU29: N/A | BV29: N/A | BW29: N/A | BX29: N/A | BY29: N/A | BZ29: N/A | CA29: N/A | CB29: N/A | CC29: N/A
B30: No | C30: 21.1 | D30: 3.8 | E30: 1.9 | F30: 1.3 | G30: 4.3 | H30: 2.5 | I30: 1 | J30: 0.7 | K30: 0.9 | L30: 4.8 | M30: 43.4 | N30: 16.8 | O30: 10.2 | P30: 7.7 | Q30: 6.1 | R30: 20.7 | S30: 12.6 | T30: 4.6 | U30: 8.3 | V30: 18.5 | W30: 72.3 | X30: 4.7 | Y30: 17 | Z30: 1.2 | AA30: 50.4 | AB30: 1.8 | AC30: 8 | BB30: No | BC30: N/A | BD30: N/A | BE30: N/A | BF30: N/A | BG30: N/A | BH30: N/A | BI30: N/A | BJ30: N/A | BK30: N/A | BL30: N/A | BM30: N/A | BN30: N/A | BO30: N/A | BP30: N/A | BQ30: N/A | BR30: N/A | BS30: N/A | BT30: N/A | BU30: N/A | BV30: N/A | BW30: N/A | BX30: N/A | BY30: N/A | BZ30: N/A | CA30: N/A | CB30: N/A | CC30: N/A
A31: Piped water on premises | B31: Yes | C31: 78.9 | D31: 96.2 | E31: 98.1 | F31: 98.7 | G31: 95.7 | H31: 97.5 | I31: 99 | J31: 99.3 | K31: 99.1 | L31: 95.2 | M31: 56.6 | N31: 83.2 | O31: 89.8 | P31: 92.3 | Q31: 93.9 | R31: 79.3 | S31: 87.4 | T31: 95.4 | U31: 91.7 | V31: 81.5 | W31: 27.7 | X31: 95.3 | Y31: 83 | Z31: 98.8 | AA31: 49.6 | AB31: 98.2 | AC31: 92 | BA31: Piped water on premises | BB31: Yes | BC31: N/A | BD31: N/A | BE31: N/A | BF31: N/A | BG31: N/A | BH31: N/A | BI31: N/A | BJ31: N/A | BK31: N/A | BL31: N/A | BM31: N/A | BN31: N/A | BO31: N/A | BP31: N/A | BQ31: N/A | BR31: N/A | BS31: N/A | BT31: N/A | BU31: N/A | BV31: N/A | BW31: N/A | BX31: N/A | BY31: N/A | BZ31: N/A | CA31: N/A | CB31: N/A | CC31: N/A
B32: No | C32: 21.1 | D32: 3.8 | E32: 1.9 | F32: 1.3 | G32: 4.3 | H32: 2.5 | I32: 1 | J32: 0.7 | K32: 0.9 | L32: 4.8 | M32: 43.4 | N32: 16.8 | O32: 10.2 | P32: 7.7 | Q32: 6.1 | R32: 20.7 | S32: 12.6 | T32: 4.6 | U32: 8.3 | V32: 18.5 | W32: 72.3 | X32: 4.7 | Y32: 17 | Z32: 1.2 | AA32: 50.4 | AB32: 1.8 | AC32: 8 | BB32: No | BC32: N/A | BD32: N/A | BE32: N/A | BF32: N/A | BG32: N/A | BH32: N/A | BI32: N/A | BJ32: N/A | BK32: N/A | BL32: N/A | BM32: N/A | BN32: N/A | BO32: N/A | BP32: N/A | BQ32: N/A | BR32: N/A | BS32: N/A | BT32: N/A | BU32: N/A | BV32: N/A | BW32: N/A | BX32: N/A | BY32: N/A | BZ32: N/A | CA32: N/A | CB32: N/A | CC32: N/A
A33: Piped water into dwelling | B33: Yes | C33: N/A | D33: N/A | E33: N/A | F33: N/A | G33: N/A | H33: N/A | I33: N/A | J33: N/A | K33: N/A | L33: N/A | M33: N/A | N33: N/A | O33: N/A | P33: N/A | Q33: N/A | R33: N/A | S33: N/A | T33: N/A | U33: N/A | V33: N/A | W33: N/A | X33: N/A | Y33: N/A | Z33: N/A | AA33: N/A | AB33: N/A | AC33: N/A | BA33: Piped water into dwelling | BB33: Yes | BC33: N/A | BD33: N/A | BE33: N/A | BF33: N/A | BG33: N/A | BH33: N/A | BI33: N/A | BJ33: N/A | BK33: N/A | BL33: N/A | BM33: N/A | BN33: N/A | BO33: N/A | BP33: N/A | BQ33: N/A | BR33: N/A | BS33: N/A | BT33: N/A | BU33: N/A | BV33: N/A | BW33: N/A | BX33: N/A | BY33: N/A | BZ33: N/A | CA33: N/A | CB33: N/A | CC33: N/A
B34: No | C34: N/A | D34: N/A | E34: N/A | F34: N/A | G34: N/A | H34: N/A | I34: N/A | J34: N/A | K34: N/A | L34: N/A | M34: N/A | N34: N/A | O34: N/A | P34: N/A | Q34: N/A | R34: N/A | S34: N/A | T34: N/A | U34: N/A | V34: N/A | W34: N/A | X34: N/A | Y34: N/A | Z34: N/A | AA34: N/A | AB34: N/A | AC34: N/A | BB34: No | BC34: N/A | BD34: N/A | BE34: N/A | BF34: N/A | BG34: N/A | BH34: N/A | BI34: N/A | BJ34: N/A | BK34: N/A | BL34: N/A | BM34: N/A | BN34: N/A | BO34: N/A | BP34: N/A | BQ34: N/A | BR34: N/A | BS34: N/A | BT34: N/A | BU34: N/A | BV34: N/A | BW34: N/A | BX34: N/A | BY34: N/A | BZ34: N/A | CA34: N/A | CB34: N/A | CC34: N/A
A35: Water source on premises | B35: Yes | C35: 89.3 | D35: 98.9 | E35: 99 | F35: 99.3 | G35: 96.2 | H35: 99.3 | I35: 99.2 | J35: 99.4 | K35: 99.1 | L35: 95.3 | M35: 77.6 | N35: 90.5 | O35: 96.7 | P35: 97.4 | Q35: 98.5 | R35: 91.8 | S35: 96.4 | T35: 99.4 | U35: 93.1 | V35: 87.8 | W35: 47 | X35: 97.8 | Y35: 84 | Z35: 99.5 | AA35: 73.9 | AB35: 98.4 | AC35: 94.9 | BA35: Water source on premises | BB35: Yes | BC35: N/A | BD35: N/A | BE35: N/A | BF35: N/A | BG35: N/A | BH35: N/A | BI35: N/A | BJ35: N/A | BK35: N/A | BL35: N/A | BM35: N/A | BN35: N/A | BO35: N/A | BP35: N/A | BQ35: N/A | BR35: N/A | BS35: N/A | BT35: N/A | BU35: N/A | BV35: N/A | BW35: N/A | BX35: N/A | BY35: N/A | BZ35: N/A | CA35: N/A | CB35: N/A | CC35: N/A
B36: No | C36: 10.7 | D36: 1.1 | E36: 1 | F36: 0.7 | G36: 3.8 | H36: 0.7 | I36: 0.8 | J36: 0.6 | K36: 0.9 | L36: 4.7 | M36: 22.4 | N36: 9.5 | O36: 3.3 | P36: 2.6 | Q36: 1.5 | R36: 8.2 | S36: 3.6 | T36: 0.6 | U36: 6.9 | V36: 12.2 | W36: 53 | X36: 2.2 | Y36: 16 | Z36: 0.5 | AA36: 26.1 | AB36: 1.6 | AC36: 5.1 | BB36: No | BC36: N/A | BD36: N/A | BE36: N/A | BF36: N/A | BG36: N/A | BH36: N/A | BI36: N/A | BJ36: N/A | BK36: N/A | BL36: N/A | BM36: N/A | BN36: N/A | BO36: N/A | BP36: N/A | BQ36: N/A | BR36: N/A | BS36: N/A | BT36: N/A | BU36: N/A | BV36: N/A | BW36: N/A | BX36: N/A | BY36: N/A | BZ36: N/A | CA36: N/A | CB36: N/A | CC36: N/A
A37: Improved Water source on premises | B37: Yes | C37: 84.1 | D37: 98.9 | E37: 99 | F37: 99.3 | G37: 96.1 | H37: 99.2 | I37: 99.2 | J37: 99.4 | K37: 99.1 | L37: 95.3 | M37: 63.2 | N37: 88.5 | O37: 96.1 | P37: 97.2 | Q37: 98 | R37: 88.8 | S37: 95.2 | T37: 99.2 | U37: 92.5 | V37: 84.9 | W37: 46.5 | X37: 96.9 | Y37: 83 | Z37: 99.5 | AA37: 52.4 | AB37: 98.4 | AC37: 92.4 | BA37: Improved water source on premises | BB37: Yes | BC37: N/A | BD37: N/A | BE37: N/A | BF37: N/A | BG37: N/A | BH37: N/A | BI37: N/A | BJ37: N/A | BK37: N/A | BL37: N/A | BM37: N/A | BN37: N/A | BO37: N/A | BP37: N/A | BQ37: N/A | BR37: N/A | BS37: N/A | BT37: N/A | BU37: N/A | BV37: N/A | BW37: N/A | BX37: N/A | BY37: N/A | BZ37: N/A | CA37: N/A | CB37: N/A | CC37: N/A
B38: No | C38: 15.9 | D38: 1.1 | E38: 1 | F38: 0.7 | G38: 3.9 | H38: 0.8 | I38: 0.8 | J38: 0.6 | K38: 0.9 | L38: 4.7 | M38: 36.8 | N38: 11.5 | O38: 3.9 | P38: 2.8 | Q38: 2 | R38: 11.2 | S38: 4.8 | T38: 0.8 | U38: 7.5 | V38: 15.1 | W38: 53.5 | X38: 3.1 | Y38: 17 | Z38: 0.5 | AA38: 47.6 | AB38: 1.6 | AC38: 7.6 | BB38: No | BC38: N/A | BD38: N/A | BE38: N/A | BF38: N/A | BG38: N/A | BH38: N/A | BI38: N/A | BJ38: N/A | BK38: N/A | BL38: N/A | BM38: N/A | BN38: N/A | BO38: N/A | BP38: N/A | BQ38: N/A | BR38: N/A | BS38: N/A | BT38: N/A | BU38: N/A | BV38: N/A | BW38: N/A | BX38: N/A | BY38: N/A | BZ38: N/A | CA38: N/A | CB38: N/A | CC38: N/A
A39: Piped water on premises available when needed | B39: Yes | C39: N/A | D39: N/A | E39: N/A | F39: N/A | G39: N/A | H39: N/A | I39: N/A | J39: N/A | K39: N/A | L39: N/A | M39: N/A | N39: N/A | O39: N/A | P39: N/A | Q39: N/A | R39: N/A | S39: N/A | T39: N/A | U39: N/A | V39: N/A | W39: N/A | X39: N/A | Y39: N/A | Z39: N/A | AA39: N/A | AB39: N/A | AC39: N/A | BA39: Piped water on premises available when needed | BB39: Yes | BC39: N/A | BD39: N/A | BE39: N/A | BF39: N/A | BG39: N/A | BH39: N/A | BI39: N/A | BJ39: N/A | BK39: N/A | BL39: N/A | BM39: N/A | BN39: N/A | BO39: N/A | BP39: N/A | BQ39: N/A | BR39: N/A | BS39: N/A | BT39: N/A | BU39: N/A | BV39: N/A | BW39: N/A | BX39: N/A | BY39: N/A | BZ39: N/A | CA39: N/A | CB39: N/A | CC39: N/A
B40: No | C40: N/A | D40: N/A | E40: N/A | F40: N/A | G40: N/A | H40: N/A | I40: N/A | J40: N/A | K40: N/A | L40: N/A | M40: N/A | N40: N/A | O40: N/A | P40: N/A | Q40: N/A | R40: N/A | S40: N/A | T40: N/A | U40: N/A | V40: N/A | W40: N/A | X40: N/A | Y40: N/A | Z40: N/A | AA40: N/A | AB40: N/A | AC40: N/A | BB40: No | BC40: N/A | BD40: N/A | BE40: N/A | BF40: N/A | BG40: N/A | BH40: N/A | BI40: N/A | BJ40: N/A | BK40: N/A | BL40: N/A | BM40: N/A | BN40: N/A | BO40: N/A | BP40: N/A | BQ40: N/A | BR40: N/A | BS40: N/A | BT40: N/A | BU40: N/A | BV40: N/A | BW40: N/A | BX40: N/A | BY40: N/A | BZ40: N/A | CA40: N/A | CB40: N/A | CC40: N/A
A41: Water point at more than 30 minutes | B41: Yes | C41: 0.6 | D41: 0.1 | E41: 0.1 | F41: 0 | G41: 0 | H41: 0.1 | I41: 0 | J41: 0 | K41: 0.1 | L41: 0 | M41: 1.6 | N41: 0.3 | O41: 0 | P41: 0.2 | Q41: 0.3 | R41: 0.2 | S41: 0 | T41: 0 | U41: 0.7 | V41: 0.7 | W41: 0 | X41: 0 | Y41: 7.3 | Z41: 0 | AA41: 2.3 | AB41: 0 | AC41: 0.3 | BA41: Water point at more than 30 minutes | BB41: Yes | BC41: N/A | BD41: N/A | BE41: N/A | BF41: N/A | BG41: N/A | BH41: N/A | BI41: N/A | BJ41: N/A | BK41: N/A | BL41: N/A | BM41: N/A | BN41: N/A | BO41: N/A | BP41: N/A | BQ41: N/A | BR41: N/A | BS41: N/A | BT41: N/A | BU41: N/A | BV41: N/A | BW41: N/A | BX41: N/A | BY41: N/A | BZ41: N/A | CA41: N/A | CB41: N/A | CC41: N/A
B42: No | C42: 99.4 | D42: 99.9 | E42: 99.9 | F42: 100 | G42: 100 | H42: 99.9 | I42: 100 | J42: 100 | K42: 99.9 | L42: 100 | M42: 98.4 | N42: 99.7 | O42: 100 | P42: 99.8 | Q42: 99.7 | R42: 99.8 | S42: 100 | T42: 100 | U42: 99.3 | V42: 99.3 | W42: 100 | X42: 100 | Y42: 92.7 | Z42: 100 | AA42: 97.7 | AB42: 100 | AC42: 99.7 | BB42: No | BC42: N/A | BD42: N/A | BE42: N/A | BF42: N/A | BG42: N/A | BH42: N/A | BI42: N/A | BJ42: N/A | BK42: N/A | BL42: N/A | BM42: N/A | BN42: N/A | BO42: N/A | BP42: N/A | BQ42: N/A | BR42: N/A | BS42: N/A | BT42: N/A | BU42: N/A | BV42: N/A | BW42: N/A | BX42: N/A | BY42: N/A | BZ42: N/A | CA42: N/A | CB42: N/A | CC42: N/A
A43: Water source available when needed | B43: Yes | C43: N/A | D43: N/A | E43: N/A | F43: N/A | G43: N/A | H43: N/A | I43: N/A | J43: N/A | K43: N/A | L43: N/A | M43: N/A | N43: N/A | O43: N/A | P43: N/A | Q43: N/A | R43: N/A | S43: N/A | T43: N/A | U43: N/A | V43: N/A | W43: N/A | X43: N/A | Y43: N/A | Z43: N/A | AA43: N/A | AB43: N/A | AC43: N/A | BA43: Water source available when needed | BB43: Yes | BC43: N/A | BD43: N/A | BE43: N/A | BF43: N/A | BG43: N/A | BH43: N/A | BI43: N/A | BJ43: N/A | BK43: N/A | BL43: N/A | BM43: N/A | BN43: N/A | BO43: N/A | BP43: N/A | BQ43: N/A | BR43: N/A | BS43: N/A | BT43: N/A | BU43: N/A | BV43: N/A | BW43: N/A | BX43: N/A | BY43: N/A | BZ43: N/A | CA43: N/A | CB43: N/A | CC43: N/A
B44: No | C44: N/A | D44: N/A | E44: N/A | F44: N/A | G44: N/A | H44: N/A | I44: N/A | J44: N/A | K44: N/A | L44: N/A | M44: N/A | N44: N/A | O44: N/A | P44: N/A | Q44: N/A | R44: N/A | S44: N/A | T44: N/A | U44: N/A | V44: N/A | W44: N/A | X44: N/A | Y44: N/A | Z44: N/A | AA44: N/A | AB44: N/A | AC44: N/A | BB44: No | BC44: N/A | BD44: N/A | BE44: N/A | BF44: N/A | BG44: N/A | BH44: N/A | BI44: N/A | BJ44: N/A | BK44: N/A | BL44: N/A | BM44: N/A | BN44: N/A | BO44: N/A | BP44: N/A | BQ44: N/A | BR44: N/A | BS44: N/A | BT44: N/A | BU44: N/A | BV44: N/A | BW44: N/A | BX44: N/A | BY44: N/A | BZ44: N/A | CA44: N/A | CB44: N/A | CC44: N/A
A45: Improved water source available when needed | B45: Yes | C45: N/A | D45: N/A | E45: N/A | F45: N/A | G45: N/A | H45: N/A | I45: N/A | J45: N/A | K45: N/A | L45: N/A | M45: N/A | N45: N/A | O45: N/A | P45: N/A | Q45: N/A | R45: N/A | S45: N/A | T45: N/A | U45: N/A | V45: N/A | W45: N/A | X45: N/A | Y45: N/A | Z45: N/A | AA45: N/A | AB45: N/A | AC45: N/A | BA45: Improved water source available when needed | BB45: Yes | BC45: N/A | BD45: N/A | BE45: N/A | BF45: N/A | BG45: N/A | BH45: N/A | BI45: N/A | BJ45: N/A | BK45: N/A | BL45: N/A | BM45: N/A | BN45: N/A | BO45: N/A | BP45: N/A | BQ45: N/A | BR45: N/A | BS45: N/A | BT45: N/A | BU45: N/A | BV45: N/A | BW45: N/A | BX45: N/A | BY45: N/A | BZ45: N/A | CA45: N/A | CB45: N/A | CC45: N/A
B46: No | C46: N/A | D46: N/A | E46: N/A | F46: N/A | G46: N/A | H46: N/A | I46: N/A | J46: N/A | K46: N/A | L46: N/A | M46: N/A | N46: N/A | O46: N/A | P46: N/A | Q46: N/A | R46: N/A | S46: N/A | T46: N/A | U46: N/A | V46: N/A | W46: N/A | X46: N/A | Y46: N/A | Z46: N/A | AA46: N/A | AB46: N/A | AC46: N/A | BB46: No | BC46: N/A | BD46: N/A | BE46: N/A | BF46: N/A | BG46: N/A | BH46: N/A | BI46: N/A | BJ46: N/A | BK46: N/A | BL46: N/A | BM46: N/A | BN46: N/A | BO46: N/A | BP46: N/A | BQ46: N/A | BR46: N/A | BS46: N/A | BT46: N/A | BU46: N/A | BV46: N/A | BW46: N/A | BX46: N/A | BY46: N/A | BZ46: N/A | CA46: N/A | CB46: N/A | CC46: N/A
A47: Microbiological quality at point of collection | B47: Not contaminated (No E. coli in 100 mL) | C47: N/A | D47: N/A | E47: N/A | F47: N/A | G47: N/A | H47: N/A | I47: N/A | J47: N/A | K47: N/A | L47: N/A | M47: N/A | N47: N/A | O47: N/A | P47: N/A | Q47: N/A | R47: N/A | S47: N/A | T47: N/A | U47: N/A | V47: N/A | W47: N/A | X47: N/A | Y47: N/A | Z47: N/A | AA47: N/A | AB47: N/A | AC47: N/A | BA47: Microbiological quality at point of collection | BB47: Not contaminated (No E. coli in 100 mL) | BC47: N/A | BD47: N/A | BE47: N/A | BF47: N/A | BG47: N/A | BH47: N/A | BI47: N/A | BJ47: N/A | BK47: N/A | BL47: N/A | BM47: N/A | BN47: N/A | BO47: N/A | BP47: N/A | BQ47: N/A | BR47: N/A | BS47: N/A | BT47: N/A | BU47: N/A | BV47: N/A | BW47: N/A | BX47: N/A | BY47: N/A | BZ47: N/A | CA47: N/A | CB47: N/A | CC47: N/A
B48: Contaminated (E. coli detected in 100 mL) | C48: N/A | D48: N/A | E48: N/A | F48: N/A | G48: N/A | H48: N/A | I48: N/A | J48: N/A | K48: N/A | L48: N/A | M48: N/A | N48: N/A | O48: N/A | P48: N/A | Q48: N/A | R48: N/A | S48: N/A | T48: N/A | U48: N/A | V48: N/A | W48: N/A | X48: N/A | Y48: N/A | Z48: N/A | AA48: N/A | AB48: N/A | AC48: N/A | BB48: Contaminated (E. coli detected in 100 mL) | BC48: N/A | BD48: N/A | BE48: N/A | BF48: N/A | BG48: N/A | BH48: N/A | BI48: N/A | BJ48: N/A | BK48: N/A | BL48: N/A | BM48: N/A | BN48: N/A | BO48: N/A | BP48: N/A | BQ48: N/A | BR48: N/A | BS48: N/A | BT48: N/A | BU48: N/A | BV48: N/A | BW48: N/A | BX48: N/A | BY48: N/A | BZ48: N/A | CA48: N/A | CB48: N/A | CC48: N/A
B49: Highly contaminated (>100 CFU/100 mL) | C49: N/A | D49: N/A | E49: N/A | F49: N/A | G49: N/A | H49: N/A | I49: N/A | J49: N/A | K49: N/A | L49: N/A | M49: N/A | N49: N/A | O49: N/A | P49: N/A | Q49: N/A | R49: N/A | S49: N/A | T49: N/A | U49: N/A | V49: N/A | W49: N/A | X49: N/A | Y49: N/A | Z49: N/A | AA49: N/A | AB49: N/A | AC49: N/A | BB49: Highly contaminated (>100 CFU/100 mL) | BC49: N/A | BD49: N/A | BE49: N/A | BF49: N/A | BG49: N/A | BH49: N/A | BI49: N/A | BJ49: N/A | BK49: N/A | BL49: N/A | BM49: N/A | BN49: N/A | BO49: N/A | BP49: N/A | BQ49: N/A | BR49: N/A | BS49: N/A | BT49: N/A | BU49: N/A | BV49: N/A | BW49: N/A | BX49: N/A | BY49: N/A | BZ49: N/A | CA49: N/A | CB49: N/A | CC49: N/A
A50: Microbiological quality of improved water sources at point of collection | B50: Not contaminated (No E. coli in 100 mL) | C50: N/A | D50: N/A | E50: N/A | F50: N/A | G50: N/A | H50: N/A | I50: N/A | J50: N/A | K50: N/A | L50: N/A | M50: N/A | N50: N/A | O50: N/A | P50: N/A | Q50: N/A | R50: N/A | S50: N/A | T50: N/A | U50: N/A | V50: N/A | W50: N/A | X50: N/A | Y50: N/A | Z50: N/A | AA50: N/A | AB50: N/A | AC50: N/A | BA50: Microbiological quality of improved water sources at point of collection | BB50: Not contaminated (No E. coli in 100 mL) | BC50: N/A | BD50: N/A | BE50: N/A | BF50: N/A | BG50: N/A | BH50: N/A | BI50: N/A | BJ50: N/A | BK50: N/A | BL50: N/A | BM50: N/A | BN50: N/A | BO50: N/A | BP50: N/A | BQ50: N/A | BR50: N/A | BS50: N/A | BT50: N/A | BU50: N/A | BV50: N/A | BW50: N/A | BX50: N/A | BY50: N/A | BZ50: N/A | CA50: N/A | CB50: N/A | CC50: N/A
B51: Contaminated (E. coli detected in 100 mL) | C51: N/A | D51: N/A | E51: N/A | F51: N/A | G51: N/A | H51: N/A | I51: N/A | J51: N/A | K51: N/A | L51: N/A | M51: N/A | N51: N/A | O51: N/A | P51: N/A | Q51: N/A | R51: N/A | S51: N/A | T51: N/A | U51: N/A | V51: N/A | W51: N/A | X51: N/A | Y51: N/A | Z51: N/A | AA51: N/A | AB51: N/A | AC51: N/A | BB51: Contaminated (E. coli detected in 100 mL) | BC51: N/A | BD51: N/A | BE51: N/A | BF51: N/A | BG51: N/A | BH51: N/A | BI51: N/A | BJ51: N/A | BK51: N/A | BL51: N/A | BM51: N/A | BN51: N/A | BO51: N/A | BP51: N/A | BQ51: N/A | BR51: N/A | BS51: N/A | BT51: N/A | BU51: N/A | BV51: N/A | BW51: N/A | BX51: N/A | BY51: N/A | BZ51: N/A | CA51: N/A | CB51: N/A | CC51: N/A
B52: Highly contaminated (>100 CFU/100 mL) | C52: N/A | D52: N/A | E52: N/A | F52: N/A | G52: N/A | H52: N/A | I52: N/A | J52: N/A | K52: N/A | L52: N/A | M52: N/A | N52: N/A | O52: N/A | P52: N/A | Q52: N/A | R52: N/A | S52: N/A | T52: N/A | U52: N/A | V52: N/A | W52: N/A | X52: N/A | Y52: N/A | Z52: N/A | AA52: N/A | AB52: N/A | AC52: N/A | BB52: Highly contaminated (>100 CFU/100 mL) | BC52: N/A | BD52: N/A | BE52: N/A | BF52: N/A | BG52: N/A | BH52: N/A | BI52: N/A | BJ52: N/A | BK52: N/A | BL52: N/A | BM52: N/A | BN52: N/A | BO52: N/A | BP52: N/A | BQ52: N/A | BR52: N/A | BS52: N/A | BT52: N/A | BU52: N/A | BV52: N/A | BW52: N/A | BX52: N/A | BY52: N/A | BZ52: N/A | CA52: N/A | CB52: N/A | CC52: N/A
A53: Microbiological quality of piped on premises at point of collection | B53: Not contaminated (No E. coli in 100 mL) | C53: N/A | D53: N/A | E53: N/A | F53: N/A | G53: N/A | H53: N/A | I53: N/A | J53: N/A | K53: N/A | L53: N/A | M53: N/A | N53: N/A | O53: N/A | P53: N/A | Q53: N/A | R53: N/A | S53: N/A | T53: N/A | U53: N/A | V53: N/A | W53: N/A | X53: N/A | Y53: N/A | Z53: N/A | AA53: N/A | AB53: N/A | AC53: N/A | BA53: Microbiological quality of piped on premises at point of collection | BB53: Not contaminated (No E. coli in 100 mL) | BC53: N/A | BD53: N/A | BE53: N/A | BF53: N/A | BG53: N/A | BH53: N/A | BI53: N/A | BJ53: N/A | BK53: N/A | BL53: N/A | BM53: N/A | BN53: N/A | BO53: N/A | BP53: N/A | BQ53: N/A | BR53: N/A | BS53: N/A | BT53: N/A | BU53: N/A | BV53: N/A | BW53: N/A | BX53: N/A | BY53: N/A | BZ53: N/A | CA53: N/A | CB53: N/A | CC53: N/A
B54: Contaminated (E. coli detected in 100 mL) | C54: N/A | D54: N/A | E54: N/A | F54: N/A | G54: N/A | H54: N/A | I54: N/A | J54: N/A | K54: N/A | L54: N/A | M54: N/A | N54: N/A | O54: N/A | P54: N/A | Q54: N/A | R54: N/A | S54: N/A | T54: N/A | U54: N/A | V54: N/A | W54: N/A | X54: N/A | Y54: N/A | Z54: N/A | AA54: N/A | AB54: N/A | AC54: N/A | BB54: Contaminated (E. coli detected in 100 mL) | BC54: N/A | BD54: N/A | BE54: N/A | BF54: N/A | BG54: N/A | BH54: N/A | BI54: N/A | BJ54: N/A | BK54: N/A | BL54: N/A | BM54: N/A | BN54: N/A | BO54: N/A | BP54: N/A | BQ54: N/A | BR54: N/A | BS54: N/A | BT54: N/A | BU54: N/A | BV54: N/A | BW54: N/A | BX54: N/A | BY54: N/A | BZ54: N/A | CA54: N/A | CB54: N/A | CC54: N/A
B55: Highly contaminated (>100 CFU/100 mL) | C55: N/A | D55: N/A | E55: N/A | F55: N/A | G55: N/A | H55: N/A | I55: N/A | J55: N/A | K55: N/A | L55: N/A | M55: N/A | N55: N/A | O55: N/A | P55: N/A | Q55: N/A | R55: N/A | S55: N/A | T55: N/A | U55: N/A | V55: N/A | W55: N/A | X55: N/A | Y55: N/A | Z55: N/A | AA55: N/A | AB55: N/A | AC55: N/A | BB55: Highly contaminated (>100 CFU/100 mL) | BC55: N/A | BD55: N/A | BE55: N/A | BF55: N/A | BG55: N/A | BH55: N/A | BI55: N/A | BJ55: N/A | BK55: N/A | BL55: N/A | BM55: N/A | BN55: N/A | BO55: N/A | BP55: N/A | BQ55: N/A | BR55: N/A | BS55: N/A | BT55: N/A | BU55: N/A | BV55: N/A | BW55: N/A | BX55: N/A | BY55: N/A | BZ55: N/A | CA55: N/A | CB55: N/A | CC55: N/A
C56: NATIONAL wealth index quintile | H56: URBAN wealth index quintile | M56: RURAL wealth index quintile | R56: SUB-REGIONS: | BA56: Raw numbers of respondents: | BB56: Use of drinking water sources | BC56: NATIONAL wealth index quintile | BH56: URBAN wealth index quintile | BM56: RURAL wealth index quintile | BR56: SUB-REGIONS:
A57: Percentage based on weighted population | C57: Poorest | D57: Poor | E57: Middle | F57: Rich | G57: Richest | H57: Poorest | I57: Poor | J57: Middle | K57: Rich | L57: Richest | M57: Poorest | N57: Poor | O57: Middle | P57: Rich | Q57: Richest | R57: Bocas del Toro | S57: Chiriquí | T57: Coclé | U57: Colón | V57: Darien | W57: Emberá Wounaan | X57: Herrera | Y57: Kuna Yala | Z57: Los Santos | AA57: Ngöbe Buglé | AB57: Panamá | AC57: Veraguas | BA57: Water data, raw numbers (weighted) | BC57: Poorest | BD57: Poor | BE57: Middle | BF57: Rich | BG57: Richest | BH57: Poorest | BI57: Poor | BJ57: Middle | BK57: Rich | BL57: Richest | BM57: Poorest | BN57: Poor | BO57: Middle | BP57: Rich | BQ57: Richest | BR57: Bocas del Toro | BS57: Chiriquí | BT57: Coclé | BU57: Colón | BV57: Darien | BW57: Emberá Wounaan | BX57: Herrera | BY57: Kuna Yala | BZ57: Los Santos | CA57: Ngöbe Buglé | CB57: Panamá | CC57: Veraguas
A58: Fuente principal de agua potable | B58: Acueducto público del IDAAN | C58: 24.99895602 | D58: 67.84838014 | E58: 84.44993544 | F58: 89.31416793 | G58: 87.89287964 | H58: 78.84458794 | I58: 91.07915753 | J58: 94.79694201 | K58: 93.70085655 | L58: 93.86594547 | M58: 1.950021579 | N58: 19.73641553 | O58: 27.4349007 | P58: 35.58189169 | Q58: 44.35288608 | R58: 42.10913769 | S58: 62.69349512 | T58: 41.11571501 | U58: 66.8771163 | V58: 33.09895081 | W58: 0 | X58: 69.25544461 | Y58: 0 | Z58: 61.17902328 | AA58: 0.9104361827 | AB58: 86.683516 | AC58: 52.57406665
B59: Acueducto público de la comunidad | C59: 51.45807924 | D59: 27.62548611 | E59: 13.32558538 | F59: 9.335449717 | G59: 7.511668143 | H59: 18.30524149 | I59: 7.729389659 | J59: 4.392519037 | K59: 5.365025102 | L59: 1.081162375 | M59: 52.47957165 | N59: 59.14966563 | O59: 60.58400848 | P59: 55.10919466 | Q59: 48.85444381 | R59: 35.33936747 | S59: 23.80277041 | T59: 51.76985991 | U59: 24.31447427 | V59: 47.02393189 | W59: 27.26312352 | X59: 25.36979112 | Y59: 83.03694843 | Z59: 36.60179539 | AA59: 47.85590408 | AB59: 11.45380983 | AC59: 35.75240879
B60: Acueducto particular | C60: 2.395962711 | D60: 0.7161297942 | E60: 0.3602510726 | F60: 0.06318974344 | G60: 0.2853378165 | H60: 0.3357039786 | I60: 0.2095889929 | J60: 0.08818813875 | K60: 0 | L60: 0.2628599812 | M60: 2.17961388 | N60: 4.320326811 | O60: 1.75202993 | P60: 1.606553414 | Q60: 0.7015031693 | R60: 1.852184011 | S60: 0.9194270901 | T60: 2.466990333 | U60: 0.5203276188 | V60: 1.378322405 | W60: 0.4042008712 | X60: 0.702889434 | Y60: 0 | Z60: 0.9973008107 | AA60: 0.8196591202 | AB60: 0.1029710854 | AC60: 3.642109469
B61: Pozo brocal protegido | C61: 1.516970236 | D61: 1.641135601 | E61: 0.6136989302 | F61: 0.385105424 | G61: 0.3230297568 | H61: 1.222411649 | I61: 0.1245658946 | J61: 0.07272645693 | K61: 0 | L61: 0.03060370706 | M61: 0.7439344098 | N61: 1.161248348 | O61: 4.066135092 | P61: 2.490505633 | Q61: 2.999556611 | R61: 0.7302025475 | S61: 5.795556006 | T61: 0 | U61: 0.822292087 | V61: 0.9138297433 | W61: 1.172580452 | X61: 0 | Y61: 0 | Z61: 0.7329124846 | AA61: 0.1645261715 | AB61: 0.1058133448 | AC61: 0.211878885
B62: Pozo artesanal protegido | C62: 1.723471767 | D62: 0.7040325805 | E62: 0.08138554655 | F62: 0 | G62: 0.09960914411 | H62: 0.3494260394 | I62: 0 | J62: 0 | K62: 0 | L62: 0.1423697261 | M62: 1.361649688 | N62: 1.975617553 | O62: 2.191566886 | P62: 1.68913744 | Q62: 0.268824853 | R62: 1.98945931 | S62: 2.556926942 | T62: 0.1857070672 | U62: 0 | V62: 1.024056699 | W62: 0 | X62: 0.3594205441 | Y62: 0 | Z62: 0 | AA62: 1.09893106 | AB62: 0.04364334198 | AC62: 0.7689795468
B63: Pozo artesanal no protegido | C63: 4.652260938 | D63: 0.06392734906 | E63: 0 | F63: 0 | G63: 0.1394490234 | H63: 0.1584623255 | I63: 0 | J63: 0 | K63: 0 | L63: 0 | M63: 9.914377369 | N63: 4.059215325 | O63: 1.036097147 | P63: 0.2119414334 | Q63: 0.4614932065 | R63: 3.952021034 | S63: 2.141756883 | T63: 0 | U63: 0.396987312 | V63: 1.70834829 | W63: 0 | X63: 0.1174107111 | Y63: 1.697281314 | Z63: 0 | AA63: 11.54176844 | AB63: 0.1551763271 | AC63: 2.163627263
B64: Manantial protegido | C64: 3.123996897 | D64: 0.3422145731 | E64: 0 | F64: 0.0858901939 | G64: 0.03073043294 | H64: 0 | I64: 0 | J64: 0 | K64: 0 | L64: 0 | M64: 6.312223885 | N64: 3.569759204 | O64: 0.559110572 | P64: 1.017473677 | Q64: 0.3854766077 | R64: 0.4711665704 | S64: 0.4657707464 | T64: 3.626312278 | U64: 0.1681871968 | V64: 0 | W64: 0 | X64: 1.809658478 | Y64: 0 | Z64: 0 | AA64: 2.350690468 | AB64: 0.374605352 | AC64: 0.9562148987
B65: Manantial no protegido | C65: 5.348202309 | D65: 0.04202195324 | E65: 0 | F65: 0 | G65: 0.03630835011 | H65: 0 | I65: 0 | J65: 0 | K65: 0 | L65: 0 | M65: 15.79362715 | N65: 1.784046087 | O65: 0.1014778276 | P65: 0.1393174148 | Q65: 0.1201590123 | R65: 0 | S65: 0.1522556962 | T65: 0.2945427978 | U65: 0.3667466902 | V65: 0.7337643563 | W65: 0 | X65: 1.020785098 | Y65: 0 | Z65: 0.07463268298 | AA65: 29.44647949 | AB65: 0.1293136059 | AC65: 2.916233117
B66: Recogen agua de lluvia | C66: 0.9964021297 | D66: 0.2809626782 | E66: 0.09182158501 | F66: 0.09756847455 | G66: 0.02263438921 | H66: 0.3053890497 | I66: 0.06954254306 | J66: 0.07763472444 | K66: 0.02777779394 | L66: 0.03235096357 | M66: 1.77130585 | N66: 0.8204074362 | O66: 0.4732259389 | P66: 0.444060497 | Q66: 0.231624827 | R66: 5.720374436 | S66: 0 | T66: 0 | U66: 0 | V66: 2.382776842 | W66: 17.51544666 | X66: 0 | Y66: 0 | Z66: 0 | AA66: 1.111753553 | AB66: 0 | AC66: 0
B67: Carrotanque / camión cisterna | C67: 0.3276685477 | D67: 0.1603249053 | E67: 0.5837654497 | F67: 0.1179922018 | G67: 0 | H67: 0.2516918997 | I67: 0.6805152549 | J67: 0.2343643132 | K67: 0.01237404545 | L67: 0 | M67: 0.06188711112 | N67: 0.2495471408 | O67: 0.4664044337 | P67: 0.387069531 | Q67: 0.04779762792 | R67: 1.441287418 | S67: 0 | T67: 0 | U67: 2.33667096 | V67: 1.307024554 | W67: 0 | X67: 0 | Y67: 0 | Z67: 0 | AA67: 0 | AB67: 0 | AC67: 0
B68: Agua de superficie (río, arroyo, represa, lago, estanque, canal, canal de irrigación) | C68: 3.049163255 | D68: 0.0104926676 | E68: 0.003375764946 | F68: 0 | G68: 0 | H68: 0 | I68: 0 | J68: 0 | K68: 0 | L68: 0 | M68: 6.974293784 | N68: 2.738124431 | O68: 0.3746828183 | P68: 0.03662067101 | Q68: 0 | R68: 2.313243573 | S68: 0 | T68: 0.4422345531 | U68: 1.01594896 | V68: 8.888946157 | W68: 52.63677851 | X68: 0.9117301136 | Y68: 15.16185507 | Z68: 0 | AA68: 4.566663575 | AB68: 0 | AC68: 0.7154265931
B69: Agua embotellada/envasada | C69: 0.208525027 | D69: 0.513419694 | E69: 0.3589160092 | F69: 0.6006363188 | G69: 3.610377455 | H69: 0.2243492517 | I69: 0.09498230503 | J69: 0.3376253182 | K69: 0.8246718516 | L69: 4.58470778 | M69: 0 | N69: 0.2600253067 | O69: 0.9376134932 | P69: 0.9774629378 | Q69: 1.308639216 | R69: 3.909643809 | S69: 1.472041101 | T69: 0.04841538201 | U69: 2.630141459 | V69: 1.297815822 | W69: 1.007869976 | X69: 0 | Y69: 0.1039151825 | Z69: 0.4143353524 | AA69: 0 | AB69: 0.9511511162 | AC69: 0.05564429057
B70: Otra | C70: 0.2003409319 | D70: 0.05147195818 | E70: 0.1312648204 | F70: 0 | G70: 0.04797585055 | H70: 0.002736373416 | I70: 0.01225781943 | J70: 0 | K70: 0.0692946545 | L70: 0 | M70: 0.4574936512 | N70: 0.1756012023 | O70: 0.02274668258 | P70: 0.3087710012 | Q70: 0.2675949751 | R70: 0.171912127 | S70: 0 | T70: 0.05022266598 | U70: 0.5511071466 | V70: 0.2422324304 | W70: 0 | X70: 0.4528698856 | Y70: 0 | Z70: 0 | AA70: 0.1331878531 | AB70: 0 | AC70: 0.2434104998
A108: =A1026 -> Panama
A109: =A1034 -> 2013
A110: Use of sanitation facilities
A111: by wealth quintile and sub-national region
A112: Notes:
A113: WHO/UNICEF JMP customised wealth index excludes water,
A114: sanitation and hygiene assets.
A115: Survey used for analysis: | B115: =A1025 -> MICS13
A116: Improved latrines based on : | B116: 50% Rule
A117: =B1029 -> 
A120: Use of sanitation facilities | C120: NATIONAL wealth index quintile | H120: URBAN wealth index quintile | M120: RURAL wealth index quintile | R120: SUB-REGIONS: | BA120: Raw numbers of respondents: | BB120: Use of sanitation facilities | BC120: NATIONAL wealth index quintile | BH120: URBAN wealth index quintile | BM120: RURAL wealth index quintile | BR120: SUB-REGIONS:
A121: Weighted percentage (used in graphs) | C121: Poorest | D121: Poor | E121: Middle | F121: Rich | G121: Richest | H121: Poorest | I121: Poor | J121: Middle | K121: Rich | L121: Richest | M121: Poorest | N121: Poor | O121: Middle | P121: Rich | Q121: Richest | R121: Bocas del Toro | S121: Chiriquí | T121: Coclé | U121: Colón | V121: Darien | W121: Emberá Wounaan | X121: Herrera | Y121: Kuna Yala | Z121: Los Santos | AA121: Ngöbe Buglé | AB121: Panamá | AC121: Veraguas | BA121: Sanitation data, raw numbers (weighted) | BC121: Poorest | BD121: Poor | BE121: Middle | BF121: Rich | BG121: Richest | BH121: Poorest | BI121: Poor | BJ121: Middle | BK121: Rich | BL121: Richest | BM121: Poorest | BN121: Poor | BO121: Middle | BP121: Rich | BQ121: Richest | BR121: Bocas del Toro | BS121: Chiriquí | BT121: Coclé | BU121: Colón | BV121: Darien | BW121: Emberá Wounaan | BX121: Herrera | BY121: Kuna Yala | BZ121: Los Santos | CA121: Ngöbe Buglé | CB121: Panamá | CC121: Veraguas
A122: Sanitation | B122: Improved | C122: =C153+C154+C155+C157+C160+C158*0.5 -> 61.9981449 | D122: =D153+D154+D155+D157+D160+D158*0.5 -> 87.23344003 | E122: 95.41294742 | F122: 97.07832521 | G122: 99.76122342 | H122: 84.49822044 | I122: 95.39672364 | J122: 96.58977862 | K122: 99.28552139 | L122: 100 | M122: 39.91863178 | N122: 68.05408738 | O122: 77.46053162 | P122: 82.66512486 | Q122: 94.36633993 | R122: 70.36244422 | S122: 90.79543754 | T122: 79.49528899 | U122: 91.53217713 | V122: 64.39541713 | W122: 40.43788972 | X122: 85.09734749 | Y122: 0.5477011043 | Z122: 88.55547951 | AA122: 25.81961999 | AB122: 94.93473419 | AC122: 80.28824173 | BA122: Sanitation | BB122: Improved | BC122: 558922.8813 | BD122: 667495.7944 | BE122: 669862.7825 | BF122: 670159.6849 | BG122: 672354.7014 | BH122: 454870.3124 | BI122: 467930.6491 | BJ122: 469567.4817 | BK122: 465149.5823 | BL122: 470413.7473 | BM122: 123097.5715 | BN122: 188301.4396 | BO122: 198999.5922 | BP122: 198137.4786 | BQ122: 202327.9897 | BR122: 95570.40973 | BS122: 404450.5547 | BT122: 226759.7507 | BU122: 236691.6843 | BV122: 36219.68379 | BW122: 3141.153095 | BX122: 110809.7671 | BY122: 62.019371 | BZ122: 91124.70433 | CA122: 30775.3889 | CB122: 1794719.348 | CC122: 208471.3808
B123: Not Improved | C123: =100-C122 -> 38.0018551 | D123: =100-D122 -> 12.76655997 | E123: 4.58705258 | F123: 2.921674793 | G123: 0.2387765761 | H123: 15.50177956 | I123: 4.603276363 | J123: 3.410221376 | K123: 0.7144786106 | L123: 0 | M123: 60.08136822 | N123: 31.94591262 | O123: 22.53946838 | P123: 17.33487514 | Q123: 5.633660068 | R123: 29.63755578 | S123: 9.204562461 | T123: 20.50471101 | U123: 8.467822874 | V123: 35.60458287 | W123: 59.56211028 | X123: 14.90265251 | Y123: 99.4522989 | Z123: 11.44452049 | AA123: 74.18038001 | AB123: 5.06526581 | AC123: 19.71175827 | BB123: Not Improved | BC123: 112626.2597 | BD123: 4212.128928 | BE123: 1211.72852 | BF123: 1087.526607 | BG123: 0 | BH123: 13643.67385 | BI123: 177.6043424 | BJ123: 64.65306993 | BK123: 352.2504231 | BL123: 0 | BM123: 80042.69644 | BN123: 14942.89821 | BO123: 4608.935407 | BP123: 4468.053425 | BQ123: 836.8785839 | BR123: 31694.73674 | BS123: 2662.313704 | BT123: 6080.956447 | BU123: 3826.533562 | BV123: 4522.857378 | BW123: 1637.679238 | BX123: 982.0962566 | BY123: 11261.56032 | BZ123: 330.3951565 | CA123: 51436.91801 | CB123: 0 | CC123: 4701.596939
A124: Sanitation ladder | B124: Basic | C124: =C122*C129/100 -> 52.70731946 | D124: =D122*D129/100 -> 78.23945808 | E124: =E122*E129/100 -> 90.49621287 | F124: 94.67855011 | G124: 99.0573508 | H124: 72.00178728 | I124: 89.40037634 | J124: 94.14583031 | K124: 96.1691357 | L124: 99.92046359 | M124: 32.14742941 | N124: 61.92697751 | O124: 71.17162376 | P124: 73.91562675 | Q124: 91.18349354 | R124: 61.85103785 | S124: 84.89974187 | T124: 72.77666554 | U124: 83.97137583 | V124: 55.94420962 | W124: 34.01843593 | X124: 79.89926336 | Y124: 0.5477011043 | Z124: 83.94304044 | AA124: 20.15469363 | AB124: 90.12400711 | AC124: 73.58435124 | BA124: Sanitation ladder | BB124: Basic | BC124: 475155.8739 | BD124: 598675.3383 | BE124: 635344.0135 | BF124: 653533.3864 | BG124: 667610.8535 | BH124: 387599.5885 | BI124: 438517.9547 | BJ124: 457686.3213 | BK124: 450489.8634 | BL124: 470039.5971 | BM124: 99125.10595 | BN124: 171348.1065 | BO124: 182843.1049 | BP124: 177166.0775 | BQ124: 195503.7459 | BR124: 84009.71704 | BS124: 378188.0304 | BT124: 207594.9248 | BU124: 217083.9215 | BV124: 31466.23894 | BW124: 2633.814812 | BX124: 104041.0662 | BY124: 62.019371 | BZ124: 86378.4464 | CA124: 24023.1473 | CB124: 1703773.657 | CC124: 191064.4818
B125: Limited | C125: =C122*C128/100 -> 9.290825437 | D125: =D122*D128/100 -> 8.993981945 | E125: =E122*E128/100 -> 4.916734549 | F125: 2.3997751 | G125: 0.7038726222 | H125: 12.49643317 | I125: 5.996347292 | J125: 2.443948316 | K125: 3.116385688 | L125: 0.07953641447 | M125: 7.771202372 | N125: 6.127109875 | O125: 6.288907863 | P125: 8.749498108 | Q125: 3.182846393 | R125: 8.511406373 | S125: 5.895695667 | T125: 6.71862345 | U125: 7.560801292 | V125: 8.451207516 | W125: 6.419453791 | X125: 5.198084129 | Y125: 0 | Z125: 4.612439071 | AA125: 5.664926368 | AB125: 4.810727077 | AC125: 6.703890494 | BB125: Limited | BC125: 83756.6836 | BD125: 68820.45602 | BE125: 34518.76894 | BF125: 16564.82008 | BG125: 4743.847864 | BH125: 67270.72391 | BI125: 29412.69442 | BJ125: 11881.16044 | BK125: 14598.24041 | BL125: 374.1502278 | BM125: 23962.14169 | BN125: 16953.33307 | BO125: 16156.48737 | BP125: 20971.40115 | BQ125: 6824.24382 | BR125: 11560.69269 | BS125: 26262.52428 | BT125: 19164.82597 | BU125: 19546.28441 | BV125: 4753.44485 | BW125: 497.0143987 | BX125: 6768.70089 | BY125: 0 | BZ125: 4746.257927 | CA125: 6752.241594 | CB125: 90945.69058 | CC125: 17406.89891
B126: Unimproved | C126: =100-C124-C125-C127 -> 27.74028395 | D126: =100-D124-D125-D127 -> 12.44819663 | E126: =100-E124-E125-E127 -> 4.553728811 | F126: 2.851689751 | G126: 0.2387765761 | H126: 14.68334457 | I126: 4.565335494 | J126: 3.410221376 | K126: 0.7144786106 | L126: 7.305267502e-14 | M126: 33.11635397 | N126: 27.65493693 | O126: 21.73168675 | P126: 16.28823533 | Q126: 5.402453942 | R126: 23.02429054 | S126: 8.550612682 | T126: 20.17031836 | U126: 8.258992021 | V126: 27.18898017 | W126: 37.70926076 | X126: 14.79809381 | Y126: 54.99538299 | Z126: 11.36124259 | AA126: 18.10299122 | AB126: 5.06526581 | AC126: 18.03126754 | BB126: Unimproved | BC126: 43715.8262 | BD126: 2073.657114 | BE126: 988.101205 | BF126: 617.7969859 | BG126: 0 | BH126: 9809.191485 | BI126: 0 | BJ126: 64.65306993 | BK126: 352.2504231 | BL126: 0 | BM126: 25268.67807 | BN126: 6221.733101 | BO126: 2964.223116 | BP126: 2347.503273 | BQ126: 367.148963 | BR126: 23278.35505 | BS126: 0 | BT126: 5302.354221 | BU126: 3324.3857 | BV126: 1094.126984 | BW126: 595.6242628 | BX126: 865.2081334 | BY126: 6227.446019 | BZ126: 254.2332778 | CA126: 5334.403037 | CB126: 0 | CC126: 1119.244817
B127: Open defecation | C127: 10.26157115 | D127: 0.3183633451 | E127: 0.03332376831 | F127: 0.06998504255 | G127: 0 | H127: 0.8184349823 | I127: 0.03794086967 | J127: 0 | K127: 0 | L127: 0 | M127: 26.96501425 | N127: 4.290975683 | O127: 0.8077816337 | P127: 1.046639808 | Q127: 0.2312061258 | R127: 6.613265236 | S127: 0.6539497792 | T127: 0.3343926565 | U127: 0.2088308535 | V127: 8.415602697 | W127: 21.85284952 | X127: 0.1045587037 | Y127: 44.4569159 | Z127: 0.08327789166 | AA127: 56.07738878 | AB127: 0 | AC127: 1.680490727 | BB127: Open defecation | BC127: 68910.43349 | BD127: 2138.471814 | BE127: 223.6273152 | BF127: 469.7296209 | BG127: 0 | BH127: 3834.482361 | BI127: 177.6043424 | BJ127: 0 | BK127: 0 | BL127: 0 | BM127: 54774.01836 | BN127: 8721.165113 | BO127: 1644.712291 | BP127: 2120.550152 | BQ127: 469.7296209 | BR127: 8416.381689 | BS127: 2662.313704 | BT127: 778.6022262 | BU127: 502.1478613 | BV127: 3428.730393 | BW127: 1042.054976 | BX127: 116.8881232 | BY127: 5034.1143 | BZ127: 76.16187866 | CA127: 46102.51497 | CB127: 0 | CC127: 3582.352122
A128: Shared among Improved Sanitation | B128: Yes | C128: 14.9856507 | D128: 10.31024564 | E128: 5.153110434 | F128: 2.471998868 | G128: 0.7055573278 | H128: 14.78898976 | I128: 6.285695214 | J128: 2.530234929 | K128: 3.138811828 | L128: 0.07953641447 | M128: 19.46760704 | N128: 9.003294453 | O128: 8.118854508 | P128: 10.5842677 | Q128: 3.372861971 | R128: 12.09651891 | S128: 6.493383177 | T128: 8.451599505 | U128: 8.260265984 | V128: 13.12392697 | W128: 15.87484865 | X128: 6.108397362 | Y128: 0 | Z128: 5.2085304 | AA128: 21.94039405 | AB128: 5.067404589 | AC128: 8.349778684 | BA128: Shared among improved sanitation facilities | BB128: Yes | BC128: N/A | BD128: N/A | BE128: N/A | BF128: N/A | BG128: N/A | BH128: N/A | BI128: N/A | BJ128: N/A | BK128: N/A | BL128: N/A | BM128: N/A | BN128: N/A | BO128: N/A | BP128: N/A | BQ128: N/A | BR128: N/A | BS128: N/A | BT128: N/A | BU128: N/A | BV128: N/A | BW128: N/A | BX128: N/A | BY128: N/A | BZ128: N/A | CA128: N/A | CB128: N/A | CC128: N/A
B129: No | C129: 85.0143493 | D129: 89.68975436 | E129: 94.84688957 | F129: 97.52800113 | G129: 99.29444267 | H129: 85.21101024 | I129: 93.71430479 | J129: 97.46976507 | K129: 96.86118817 | L129: 99.92046359 | M129: 80.53239296 | N129: 90.99670555 | O129: 91.88114549 | P129: 89.4157323 | Q129: 96.62713803 | R129: 87.90348109 | S129: 93.50661682 | T129: 91.5484005 | U129: 91.73973402 | V129: 86.87607303 | W129: 84.12515135 | X129: 93.89160264 | Y129: 100 | Z129: 94.7914696 | AA129: 78.05960595 | AB129: 94.93259541 | AC129: 91.65022132 | BB129: No | BC129: N/A | BD129: N/A | BE129: N/A | BF129: N/A | BG129: N/A | BH129: N/A | BI129: N/A | BJ129: N/A | BK129: N/A | BL129: N/A | BM129: N/A | BN129: N/A | BO129: N/A | BP129: N/A | BQ129: N/A | BR129: N/A | BS129: N/A | BT129: N/A | BU129: N/A | BV129: N/A | BW129: N/A | BX129: N/A | BY129: N/A | BZ129: N/A | CA129: N/A | CB129: N/A | CC129: N/A
A130: Manually calculated ratios | B130: Improved latrines
B131: Other
B132: Other
C133: NATIONAL wealth index quintile | H133: URBAN wealth index quintile | M133: RURAL wealth index quintile | R133: SUB-REGIONS: | BA133: Raw numbers of respondents: | BB133: Use of sanitation facilities | BC133: NATIONAL wealth index quintile | BH133: URBAN wealth index quintile | BM133: RURAL wealth index quintile | BR133: SUB-REGIONS:
A134: Percentage based on weighted population | C134: Poorest | D134: Poor | E134: Middle | F134: Rich | G134: Richest | H134: Poorest | I134: Poor | J134: Middle | K134: Rich | L134: Richest | M134: Poorest | N134: Poor | O134: Middle | P134: Rich | Q134: Richest | R134: Bocas del Toro | S134: Chiriquí | T134: Coclé | U134: Colón | V134: Darien | W134: Emberá Wounaan | X134: Herrera | Y134: Kuna Yala | Z134: Los Santos | AA134: Ngöbe Buglé | AB134: Panamá | AC134: Veraguas | BA134: Sanitation data, raw numbers (weighted) | BC134: Poorest | BD134: Poor | BE134: Middle | BF134: Rich | BG134: Richest | BH134: Poorest | BI134: Poor | BJ134: Middle | BK134: Rich | BL134: Richest | BM134: Poorest | BN134: Poor | BO134: Middle | BP134: Rich | BQ134: Richest | BR134: Bocas del Toro | BS134: Chiriquí | BT134: Coclé | BU134: Colón | BV134: Darien | BW134: Emberá Wounaan | BX134: Herrera | BY134: Kuna Yala | BZ134: Los Santos | CA134: Ngöbe Buglé | CB134: Panamá | CC134: Veraguas
A135: Sanitation type | B135: Sewer connection | C135: 4.323451298 | D135: 15.43337347 | E135: 30.99628215 | F135: 45.76596705 | G135: 69.7888378 | H135: 19.42688294 | I135: 32.80910997 | J135: 42.53174384 | K135: 58.85891718 | L135: 81.43573565 | M135: 0.1462439674 | N135: 1.231574791 | O135: 1.29752481 | P135: 2.154975702 | Q135: 2.911826122 | R135: 4.602153445 | S135: 3.364652249 | T135: 5.202175451 | U135: 32.66329004 | V135: 0.8545905707 | W135: 0 | X135: 35.40344616 | Y135: 0 | Z135: 30.00180657 | AA135: 0 | AB135: 50.96514767 | AC135: 11.66472154 | BA135: Sanitation type | BB135: Sewer connection | BC135: N/A | BD135: N/A | BE135: N/A | BF135: N/A | BG135: N/A | BH135: N/A | BI135: N/A | BJ135: N/A | BK135: N/A | BL135: N/A | BM135: N/A | BN135: N/A | BO135: N/A | BP135: N/A | BQ135: N/A | BR135: N/A | BS135: N/A | BT135: N/A | BU135: N/A | BV135: N/A | BW135: N/A | BX135: N/A | BY135: N/A | BZ135: N/A | CA135: N/A | CB135: N/A | CC135: N/A
B136: Septic tank connection | C136: 17.08884602 | D136: 43.68746476 | E136: 52.8103496 | F136: 44.63289232 | G136: 29.28836896 | H136: 36.15152523 | I136: 48.62771585 | J136: 46.41804164 | K136: 38.55254259 | L136: 18.55457431 | M136: 2.038388345 | N136: 18.857298 | O136: 39.71742611 | P136: 47.98417273 | Q136: 77.19272112 | R136: 52.88874656 | S136: 71.91566205 | T136: 49.13236348 | U136: 45.12224728 | V136: 24.69049483 | W136: 2.588211039 | X136: 31.19561069 | Y136: 0.5477011043 | Z136: 39.8426621 | AA136: 0.9232994882 | AB136: 28.69518764 | AC136: 36.96472847 | BB136: Septic tank connection | BC136: N/A | BD136: N/A | BE136: N/A | BF136: N/A | BG136: N/A | BH136: N/A | BI136: N/A | BJ136: N/A | BK136: N/A | BL136: N/A | BM136: N/A | BN136: N/A | BO136: N/A | BP136: N/A | BQ136: N/A | BR136: N/A | BS136: N/A | BT136: N/A | BU136: N/A | BV136: N/A | BW136: N/A | BX136: N/A | BY136: N/A | BZ136: N/A | CA136: N/A | CB136: N/A | CC136: N/A
B137: Improved latrines | C137: 61.81659052 | D137: 40.25208431 | E137: 16.01280283 | F137: 9.439124819 | G137: 0.9227932442 | H137: 41.50947517 | I137: 18.52523331 | J137: 11.03644777 | K137: 2.512869112 | L137: 0.009690035911 | M137: 58.41269423 | N137: 72.55894295 | O137: 56.72142316 | P137: 47.65555472 | Q137: 19.48353184 | R137: 17.60460916 | S137: 24.06573593 | T137: 43.05382304 | U137: 20.62350894 | V137: 63.35384616 | W137: 63.14234563 | X137: 32.52243891 | Y137: 0 | Z137: 29.79426645 | AA137: 36.51074178 | AB137: 20.33966469 | AC137: 49.1650186 | BB137: Improved latrines | BC137: N/A | BD137: N/A | BE137: N/A | BF137: N/A | BG137: N/A | BH137: N/A | BI137: N/A | BJ137: N/A | BK137: N/A | BL137: N/A | BM137: N/A | BN137: N/A | BO137: N/A | BP137: N/A | BQ137: N/A | BR137: N/A | BS137: N/A | BT137: N/A | BU137: N/A | BV137: N/A | BW137: N/A | BX137: N/A | BY137: N/A | BZ137: N/A | CA137: N/A | CB137: N/A | CC137: N/A
B138: Unimproved facilities | C138: 6.509698774 | D138: 0.3087141065 | E138: 0.1472416533 | F138: 0.09203717726 | G138: 0 | H138: 2.093681677 | I138: 0 | J138: 0.01376674745 | K138: 0.07567111413 | L138: 0 | M138: 12.43902961 | N138: 3.061208577 | O138: 1.455844286 | P138: 1.158657046 | Q138: 0.180714789 | R138: 18.2912256 | S138: 0 | T138: 2.277245369 | U138: 1.382176256 | V138: 2.685465738 | W138: 12.46380332 | X138: 0.7739455336 | Y138: 54.99538299 | Z138: 0.2779869895 | AA138: 6.488569945 | AB138: 0 | AC138: 0.5250406636 | BB138: Unimproved facilities | BC138: N/A | BD138: N/A | BE138: N/A | BF138: N/A | BG138: N/A | BH138: N/A | BI138: N/A | BJ138: N/A | BK138: N/A | BL138: N/A | BM138: N/A | BN138: N/A | BO138: N/A | BP138: N/A | BQ138: N/A | BR138: N/A | BS138: N/A | BT138: N/A | BU138: N/A | BV138: N/A | BW138: N/A | BX138: N/A | BY138: N/A | BZ138: N/A | CA138: N/A | CB138: N/A | CC138: N/A
B139: Open defecation | C139: 10.26141339 | D139: 0.3183633451 | E139: 0.03332376831 | F139: 0.06997863273 | G139: 0 | H139: 0.8184349823 | I139: 0.03794086967 | J139: 0 | K139: 0 | L139: 0 | M139: 26.96364385 | N139: 4.290975683 | O139: 0.8077816337 | P139: 1.046639808 | Q139: 0.2312061258 | R139: 6.613265236 | S139: 0.6539497792 | T139: 0.3343926565 | U139: 0.2087774746 | V139: 8.415602697 | W139: 21.80564002 | X139: 0.1045587037 | Y139: 44.4569159 | Z139: 0.08327789166 | AA139: 56.07738878 | AB139: 0 | AC139: 1.680490727 | BB139: Open defecation | BC139: N/A | BD139: N/A | BE139: N/A | BF139: N/A | BG139: N/A | BH139: N/A | BI139: N/A | BJ139: N/A | BK139: N/A | BL139: N/A | BM139: N/A | BN139: N/A | BO139: N/A | BP139: N/A | BQ139: N/A | BR139: N/A | BS139: N/A | BT139: N/A | BU139: N/A | BV139: N/A | BW139: N/A | BX139: N/A | BY139: N/A | BZ139: N/A | CA139: N/A | CB139: N/A | CC139: N/A
A140: Septic tank emptying practices | B140: Not emptied/treated and disposed in situ | C140: N/A | D140: N/A | E140: N/A | F140: N/A | G140: N/A | H140: N/A | I140: N/A | J140: N/A | K140: N/A | L140: N/A | M140: N/A | N140: N/A | O140: N/A | P140: N/A | Q140: N/A | R140: N/A | S140: N/A | T140: N/A | U140: N/A | V140: N/A | W140: N/A | X140: N/A | Y140: N/A | Z140: N/A | AA140: N/A | AB140: N/A | AC140: N/A | BA140: Septic tank emptying practices | BB140: Not emptied/treated and disposed in situ | BC140: N/A | BD140: N/A | BE140: N/A | BF140: N/A | BG140: N/A | BH140: N/A | BI140: N/A | BJ140: N/A | BK140: N/A | BL140: N/A | BM140: N/A | BN140: N/A | BO140: N/A | BP140: N/A | BQ140: N/A | BR140: N/A | BS140: N/A | BT140: N/A | BU140: N/A | BV140: N/A | BW140: N/A | BX140: N/A | BY140: N/A | BZ140: N/A | CA140: N/A | CB140: N/A | CC140: N/A
B141: Emptied and buried on site | C141: N/A | D141: N/A | E141: N/A | F141: N/A | G141: N/A | H141: N/A | I141: N/A | J141: N/A | K141: N/A | L141: N/A | M141: N/A | N141: N/A | O141: N/A | P141: N/A | Q141: N/A | R141: N/A | S141: N/A | T141: N/A | U141: N/A | V141: N/A | W141: N/A | X141: N/A | Y141: N/A | Z141: N/A | AA141: N/A | AB141: N/A | AC141: N/A | BB141: Emptied and buried on site | BC141: N/A | BD141: N/A | BE141: N/A | BF141: N/A | BG141: N/A | BH141: N/A | BI141: N/A | BJ141: N/A | BK141: N/A | BL141: N/A | BM141: N/A | BN141: N/A | BO141: N/A | BP141: N/A | BQ141: N/A | BR141: N/A | BS141: N/A | BT141: N/A | BU141: N/A | BV141: N/A | BW141: N/A | BX141: N/A | BY141: N/A | BZ141: N/A | CA141: N/A | CB141: N/A | CC141: N/A
B142: Emptied and discharged locally | C142: N/A | D142: N/A | E142: N/A | F142: N/A | G142: N/A | H142: N/A | I142: N/A | J142: N/A | K142: N/A | L142: N/A | M142: N/A | N142: N/A | O142: N/A | P142: N/A | Q142: N/A | R142: N/A | S142: N/A | T142: N/A | U142: N/A | V142: N/A | W142: N/A | X142: N/A | Y142: N/A | Z142: N/A | AA142: N/A | AB142: N/A | AC142: N/A | BB142: Emptied and discharged locally | BC142: N/A | BD142: N/A | BE142: N/A | BF142: N/A | BG142: N/A | BH142: N/A | BI142: N/A | BJ142: N/A | BK142: N/A | BL142: N/A | BM142: N/A | BN142: N/A | BO142: N/A | BP142: N/A | BQ142: N/A | BR142: N/A | BS142: N/A | BT142: N/A | BU142: N/A | BV142: N/A | BW142: N/A | BX142: N/A | BY142: N/A | BZ142: N/A | CA142: N/A | CB142: N/A | CC142: N/A
B143: Emptied and removed offsite | C143: N/A | D143: N/A | E143: N/A | F143: N/A | G143: N/A | H143: N/A | I143: N/A | J143: N/A | K143: N/A | L143: N/A | M143: N/A | N143: N/A | O143: N/A | P143: N/A | Q143: N/A | R143: N/A | S143: N/A | T143: N/A | U143: N/A | V143: N/A | W143: N/A | X143: N/A | Y143: N/A | Z143: N/A | AA143: N/A | AB143: N/A | AC143: N/A | BB143: Emptied and removed offsite | BC143: N/A | BD143: N/A | BE143: N/A | BF143: N/A | BG143: N/A | BH143: N/A | BI143: N/A | BJ143: N/A | BK143: N/A | BL143: N/A | BM143: N/A | BN143: N/A | BO143: N/A | BP143: N/A | BQ143: N/A | BR143: N/A | BS143: N/A | BT143: N/A | BU143: N/A | BV143: N/A | BW143: N/A | BX143: N/A | BY143: N/A | BZ143: N/A | CA143: N/A | CB143: N/A | CC143: N/A
A144: Latrine emptying practices | B144: Not emptied/treated and disposed in situ | C144: N/A | D144: N/A | E144: N/A | F144: N/A | G144: N/A | H144: N/A | I144: N/A | J144: N/A | K144: N/A | L144: N/A | M144: N/A | N144: N/A | O144: N/A | P144: N/A | Q144: N/A | R144: N/A | S144: N/A | T144: N/A | U144: N/A | V144: N/A | W144: N/A | X144: N/A | Y144: N/A | Z144: N/A | AA144: N/A | AB144: N/A | AC144: N/A | BA144: Latrine emptying practices | BB144: Not emptied/treated and disposed in situ | BC144: N/A | BD144: N/A | BE144: N/A | BF144: N/A | BG144: N/A | BH144: N/A | BI144: N/A | BJ144: N/A | BK144: N/A | BL144: N/A | BM144: N/A | BN144: N/A | BO144: N/A | BP144: N/A | BQ144: N/A | BR144: N/A | BS144: N/A | BT144: N/A | BU144: N/A | BV144: N/A | BW144: N/A | BX144: N/A | BY144: N/A | BZ144: N/A | CA144: N/A | CB144: N/A | CC144: N/A
B145: Emptied and buried on site | C145: N/A | D145: N/A | E145: N/A | F145: N/A | G145: N/A | H145: N/A | I145: N/A | J145: N/A | K145: N/A | L145: N/A | M145: N/A | N145: N/A | O145: N/A | P145: N/A | Q145: N/A | R145: N/A | S145: N/A | T145: N/A | U145: N/A | V145: N/A | W145: N/A | X145: N/A | Y145: N/A | Z145: N/A | AA145: N/A | AB145: N/A | AC145: N/A | BB145: Emptied and buried on site | BC145: N/A | BD145: N/A | BE145: N/A | BF145: N/A | BG145: N/A | BH145: N/A | BI145: N/A | BJ145: N/A | BK145: N/A | BL145: N/A | BM145: N/A | BN145: N/A | BO145: N/A | BP145: N/A | BQ145: N/A | BR145: N/A | BS145: N/A | BT145: N/A | BU145: N/A | BV145: N/A | BW145: N/A | BX145: N/A | BY145: N/A | BZ145: N/A | CA145: N/A | CB145: N/A | CC145: N/A
B146: Emptied and discharged locally | C146: N/A | D146: N/A | E146: N/A | F146: N/A | G146: N/A | H146: N/A | I146: N/A | J146: N/A | K146: N/A | L146: N/A | M146: N/A | N146: N/A | O146: N/A | P146: N/A | Q146: N/A | R146: N/A | S146: N/A | T146: N/A | U146: N/A | V146: N/A | W146: N/A | X146: N/A | Y146: N/A | Z146: N/A | AA146: N/A | AB146: N/A | AC146: N/A | BB146: Emptied and discharged locally | BC146: N/A | BD146: N/A | BE146: N/A | BF146: N/A | BG146: N/A | BH146: N/A | BI146: N/A | BJ146: N/A | BK146: N/A | BL146: N/A | BM146: N/A | BN146: N/A | BO146: N/A | BP146: N/A | BQ146: N/A | BR146: N/A | BS146: N/A | BT146: N/A | BU146: N/A | BV146: N/A | BW146: N/A | BX146: N/A | BY146: N/A | BZ146: N/A | CA146: N/A | CB146: N/A | CC146: N/A
B147: Emptied and removed offsite | C147: N/A | D147: N/A | E147: N/A | F147: N/A | G147: N/A | H147: N/A | I147: N/A | J147: N/A | K147: N/A | L147: N/A | M147: N/A | N147: N/A | O147: N/A | P147: N/A | Q147: N/A | R147: N/A | S147: N/A | T147: N/A | U147: N/A | V147: N/A | W147: N/A | X147: N/A | Y147: N/A | Z147: N/A | AA147: N/A | AB147: N/A | AC147: N/A | BB147: Emptied and removed offsite | BC147: N/A | BD147: N/A | BE147: N/A | BF147: N/A | BG147: N/A | BH147: N/A | BI147: N/A | BJ147: N/A | BK147: N/A | BL147: N/A | BM147: N/A | BN147: N/A | BO147: N/A | BP147: N/A | BQ147: N/A | BR147: N/A | BS147: N/A | BT147: N/A | BU147: N/A | BV147: N/A | BW147: N/A | BX147: N/A | BY147: N/A | BZ147: N/A | CA147: N/A | CB147: N/A | CC147: N/A
A148: Shared among improved sanitation facilities | B148: Yes | C148: 12.47216004 | D148: 10.24559241 | E148: 5.143805698 | F148: 2.467767433 | G148: 0.7055573278 | H148: 14.35831712 | I148: 6.283310367 | J148: 2.529886598 | K148: 3.136022114 | L148: 0.07953641447 | M148: 11.79586004 | N148: 8.341355656 | O148: 7.935074013 | P148: 10.35085318 | Q148: 3.358968447 | R148: 9.083942469 | S148: 6.450919712 | T148: 8.230874318 | U148: 8.126737583 | V148: 11.66703086 | W148: 10.40033138 | X148: 6.054734832 | Y148: 0 | Z148: 5.189713808 | AA148: 8.213176163 | AB148: 5.067404589 | AC148: 8.165621694 | BA148: Shared among improved sanitation facilities | BB148: Yes | BC148: N/A | BD148: N/A | BE148: N/A | BF148: N/A | BG148: N/A | BH148: N/A | BI148: N/A | BJ148: N/A | BK148: N/A | BL148: N/A | BM148: N/A | BN148: N/A | BO148: N/A | BP148: N/A | BQ148: N/A | BR148: N/A | BS148: N/A | BT148: N/A | BU148: N/A | BV148: N/A | BW148: N/A | BX148: N/A | BY148: N/A | BZ148: N/A | CA148: N/A | CB148: N/A | CC148: N/A
B149: No | C149: 70.75519047 | D149: 89.12733014 | E149: 94.67562888 | F149: 97.36105792 | G149: 99.29444267 | H149: 82.72956622 | I149: 93.67874876 | J149: 97.45634665 | K149: 96.77509986 | L149: 99.92046359 | M149: 48.79638436 | N149: 84.30646008 | O149: 89.80130007 | P149: 87.44384997 | Q149: 96.22911064 | R149: 66.01156669 | S149: 92.89513051 | T149: 89.15748766 | U149: 90.25674787 | V149: 77.23190071 | W149: 55.11419168 | X149: 93.06676093 | Y149: 0.5477011043 | Z149: 94.44902131 | AA149: 29.22086511 | AB149: 94.93259541 | AC149: 89.62884692 | BB149: No | BC149: N/A | BD149: N/A | BE149: N/A | BF149: N/A | BG149: N/A | BH149: N/A | BI149: N/A | BJ149: N/A | BK149: N/A | BL149: N/A | BM149: N/A | BN149: N/A | BO149: N/A | BP149: N/A | BQ149: N/A | BR149: N/A | BS149: N/A | BT149: N/A | BU149: N/A | BV149: N/A | BW149: N/A | BX149: N/A | BY149: N/A | BZ149: N/A | CA149: N/A | CB149: N/A | CC149: N/A
B150: DK/missing | C150: 16.77264949 | D150: 0.6270774516 | E150: 0.1805654216 | F150: 0.1711746452 | G150: 0 | H150: 2.912116659 | I150: 0.03794086967 | J150: 0.01376674745 | K150: 0.08887802802 | L150: 0 | M150: 39.4077556 | N150: 7.35218426 | O150: 2.26362592 | P150: 2.205296854 | Q150: 0.4119209148 | R150: 24.90449084 | S150: 0.6539497792 | T150: 2.611638025 | U150: 1.61651455 | V150: 11.10106843 | W150: 34.48547694 | X150: 0.8785042374 | Y150: 99.4522989 | Z150: 0.3612648812 | AA150: 62.56595873 | AB150: 0 | AC150: 2.20553139 | BB150: DK/missing | BC150: N/A | BD150: N/A | BE150: N/A | BF150: N/A | BG150: N/A | BH150: N/A | BI150: N/A | BJ150: N/A | BK150: N/A | BL150: N/A | BM150: N/A | BN150: N/A | BO150: N/A | BP150: N/A | BQ150: N/A | BR150: N/A | BS150: N/A | BT150: N/A | BU150: N/A | BV150: N/A | BW150: N/A | BX150: N/A | BY150: N/A | BZ150: N/A | CA150: N/A | CB150: N/A | CC150: N/A
A151: Shared among all sanitation facilities | B151: Yes | C151: 16.38792592 | D151: 10.36991919 | E151: 5.231327114 | F151: 2.469495552 | G151: 0.7055573278 | H151: 14.92071598 | I151: 6.285695214 | J151: 2.529886598 | K151: 3.136022114 | L151: 0.07953641447 | M151: 22.48404076 | N151: 10.01716395 | O151: 8.626236333 | P151: 10.91560975 | Q151: 3.37780485 | R151: 14.72395805 | S151: 6.493383177 | T151: 8.380203151 | U151: 9.093734453 | V151: 13.21311693 | W151: 16.33509262 | X151: 6.22046595 | Y151: 49.6520982 | Z151: 5.26181499 | AA151: 27.85213945 | AB151: 5.067404589 | AC151: 8.654915734 | BA151: Shared among all sanitation facilities | BB151: Yes | BC151: N/A | BD151: N/A | BE151: N/A | BF151: N/A | BG151: N/A | BH151: N/A | BI151: N/A | BJ151: N/A | BK151: N/A | BL151: N/A | BM151: N/A | BN151: N/A | BO151: N/A | BP151: N/A | BQ151: N/A | BR151: N/A | BS151: N/A | BT151: N/A | BU151: N/A | BV151: N/A | BW151: N/A | BX151: N/A | BY151: N/A | BZ151: N/A | CA151: N/A | CB151: N/A | CC151: N/A
B152: No | C152: 83.61036097 | D152: 89.63008081 | E152: 94.76867289 | F152: 97.5213392 | G152: 99.29444267 | H152: 85.07928402 | I152: 93.71430479 | J152: 97.4701134 | K152: 96.85077097 | L152: 99.92046359 | M152: 77.50900087 | N152: 89.98283605 | O152: 91.37376367 | P152: 89.08439025 | Q152: 96.62219515 | R152: 85.27604195 | S152: 93.50661682 | T152: 91.61979685 | U152: 90.88065125 | V152: 86.78688307 | W152: 83.38862964 | X152: 93.77953405 | Y152: 50.3479018 | Z152: 94.73818501 | AA152: 72.14786055 | AB152: 94.93259541 | AC152: 91.34508427 | BB152: No | BC152: N/A | BD152: N/A | BE152: N/A | BF152: N/A | BG152: N/A | BH152: N/A | BI152: N/A | BJ152: N/A | BK152: N/A | BL152: N/A | BM152: N/A | BN152: N/A | BO152: N/A | BP152: N/A | BQ152: N/A | BR152: N/A | BS152: N/A | BT152: N/A | BU152: N/A | BV152: N/A | BW152: N/A | BX152: N/A | BY152: N/A | BZ152: N/A | CA152: N/A | CB152: N/A | CC152: N/A
A153: Tipo de servicio sanitario | B153: Servicio conectado al alcantarillado | C153: 4.323451298 | D153: 15.43337347 | E153: 30.99628215 | F153: 45.76596705 | G153: 69.7888378 | H153: 19.42688294 | I153: 32.80910997 | J153: 42.53174384 | K153: 58.85891718 | L153: 81.43573565 | M153: 0.1462439674 | N153: 1.231574791 | O153: 1.29752481 | P153: 2.154975702 | Q153: 2.911826122 | R153: 4.602153445 | S153: 3.364652249 | T153: 5.202175451 | U153: 32.66329004 | V153: 0.8545905707 | W153: 0 | X153: 35.40344616 | Y153: 0 | Z153: 30.00180657 | AA153: 0 | AB153: 50.96514767 | AC153: 11.66472154 | BA153: Tipo de servicio sanitario | BB153: Servicio conectado al alcantarillado | BC153: 29034.10005 | BD153: 103667.1925 | BE153: 208008.1489 | BF153: 307202.7777 | BG153: 469228.532 | BH153: 91017.66369 | BI153: 153582.1517 | BJ153: 199742.7366 | BK153: 273989.3382 | BL153: 383084.8957 | BM153: 297.0803872 | BN153: 2503.106029 | BO153: 2641.871161 | BP153: 4366.099987 | BQ153: 5915.807704 | BR153: 5856.937323 | BS153: 13697.93228 | BT153: 12112.78211 | BU153: 78561.16312 | BV153: 348.1819151 | BW153: 0 | BX153: 39578.17215 | BY153: 0 | BZ153: 27438.18205 | CA153: 0 | CB153: 914681.3659 | CC153: 24866.03425
B154: Servicio conectado a tanque séptico o a fosa séptica | C154: 17.08884602 | D154: 43.68746476 | E154: 52.8103496 | F154: 44.63289232 | G154: 29.28836896 | H154: 36.15152523 | I154: 48.62771585 | J154: 46.41804164 | K154: 38.55254259 | L154: 18.55457431 | M154: 2.038388345 | N154: 18.857298 | O154: 39.71742611 | P154: 47.98417273 | Q154: 77.19272112 | R154: 52.88874656 | S154: 71.91566205 | T154: 49.13236348 | U154: 45.12224728 | V154: 24.69049483 | W154: 2.588211039 | X154: 31.19561069 | Y154: 0.5477011043 | Z154: 39.8426621 | AA154: 0.9232994882 | AB154: 28.69518764 | AC154: 36.96472847 | BB154: Servicio conectado a tanque séptico o a fosa séptica | BC154: 114759.9986 | BD154: 293452.1623 | BE154: 354396.7953 | BF154: 299597.0451 | BG154: 196921.7256 | BH154: 169374.9519 | BI154: 227630.3514 | BJ154: 217994.0399 | BK154: 179462.7923 | BL154: 87283.26832 | BM154: 4140.787547 | BN154: 38326.39044 | BO154: 80868.06652 | BP154: 97218.58845 | BQ154: 156828.4902 | BR154: 67308.94078 | BS154: 292777.9146 | BT154: 114400.1426 | BU154: 108527.225 | BV154: 10059.53502 | BW154: 123.686266 | BX154: 34874.15448 | BY154: 62.019371 | BZ154: 36438.14626 | CA154: 759.0658089 | CB154: 514998.0844 | CC154: 78798.81239
B155: Letrina de arrastre | C155: 4.357036796 | D155: 6.186575043 | E155: 2.027658941 | F155: 0.7287024025 | G155: 0.03751007782 | H155: 9.953472549 | I155: 4.081162984 | J155: 0.9040595792 | K155: 0.008160236588 | L155: 0.009690035911 | M155: 2.252716939 | N155: 3.119369042 | O155: 0.3451584461 | P155: 2.727559296 | Q155: 1.158657974 | R155: 1.274950997 | S155: 0.1604228386 | T155: 0.06015244432 | U155: 0 | V155: 1.52641399 | W155: 0 | X155: 0.06507851273 | Y155: 0 | Z155: 1.596475236 | AA155: 0 | AB155: 4.604847333 | AC155: 1.103108651 | BB155: Letrina de arrastre | BC155: 29259.64318 | BD155: 41555.71475 | BE155: 13607.10232 | BF155: 4891.394557 | BG155: 252.2007717 | BH155: 46633.41101 | BI155: 19104.26077 | BJ155: 4245.754301 | BK155: 37.98605087 | BL155: 45.58326104 | BM155: 4576.175227 | BN155: 6339.940953 | BO155: 702.7720301 | BP155: 5526.186025 | BQ155: 2353.985947 | BR155: 1622.568253 | BS155: 653.1020196 | BT155: 140.0593767 | BU155: 0 | BV155: 621.8998481 | BW155: 0 | BX155: 72.75248202 | BY155: 0 | BZ155: 1460.058015 | CA155: 0 | CB155: 82644.08602 | CC155: 2351.529558
B156: Servicio con conexión al mar, río o quebrada u otro lugar circundante | C156: 2.6872438 | D156: 0.09860694859 | E156: 0.06146351333 | F156: 0.04035201194 | G156: 0 | H156: 1.266281163 | I156: 0 | J156: 0.01376674745 | K156: 0.04179387861 | L156: 0 | M156: 4.218229252 | N156: 1.252895427 | O156: 0.5501704023 | P156: 0.3992323447 | Q156: 0.07654398276 | R156: 14.32998753 | S156: 0 | T156: 0 | U156: 0 | V156: 0.5700480657 | W156: 0 | X156: 0 | Y156: 2.584018822 | Z156: 0 | AA156: 0.7661942339 | AB156: 0 | AC156: 0 | BB156: Servicio con conexión al mar, río o quebrada u otro lugar circundante | BC156: 18046.16266 | BD156: 662.3506866 | BE156: 412.4659715 | BF156: 270.8617549 | BG156: 0 | BH156: 5932.704354 | BI156: 0 | BJ156: 64.65306993 | BK156: 194.5512709 | BL156: 0 | BM156: 8568.922206 | BN156: 2546.439015 | BO156: 1120.193856 | BP156: 808.866816 | BQ156: 155.5104817 | BR156: 18237.07962 | BS156: 0 | BT156: 0 | BU156: 0 | BV156: 232.2520679 | BW156: 0 | BX156: 0 | BY156: 292.6034305 | BZ156: 0 | CA156: 629.905955 | CB156: 0 | CC156: 0
B157: Letrina o servicio de hueco con ventilación | C157: 14.82019888 | D157: 9.786544231 | E157: 5.172169571 | F157: 3.19110445 | G157: 0.4077300142 | H157: 6.367256559 | I157: 5.313399337 | J157: 3.339478937 | K157: 1.227093883 | L157: 0 | M157: 14.27684187 | N157: 20.21160404 | O157: 15.82457979 | P157: 14.66883884 | Q157: 7.88139556 | R157: 6.000347625 | S157: 6.804087723 | T157: 7.207524619 | U157: 6.869770655 | V157: 12.69566016 | W157: 11.61272392 | X157: 4.409063841 | Y157: 0 | Z157: 6.031280006 | AA157: 13.28189923 | AB157: 5.604285734 | AC157: 13.04945619 | BB157: Letrina o servicio de hueco con ventilación | BC157: 99524.91831 | BD157: 65736.99301 | BE157: 34709.11166 | BF157: 21420.19964 | BG157: 2741.391919 | BH157: 29831.48752 | BI157: 24872.46084 | BJ157: 15683.26622 | BK157: 5712.144513 | BL157: 0 | BM157: 29002.01484 | BN157: 41078.94079 | BO157: 32220.19392 | BP157: 29719.87899 | BQ157: 16012.22691 | BR157: 7636.351194 | BS157: 27700.3167 | BT157: 16782.05129 | BU157: 16523.04995 | BV157: 5172.534567 | BW157: 554.9526054 | BX157: 4928.974624 | BY157: 0 | BZ157: 5515.91313 | CA157: 10919.35576 | CB157: 100581.2004 | CC157: 27817.91434
B158: Letrina o servicio de hueco sin ventilación | C158: 42.46148586 | D158: 24.27896504 | E158: 8.812974316 | F158: 5.519317967 | G158: 0.4775531522 | H158: 25.17932579 | I158: 9.130670987 | J158: 6.792909258 | K158: 1.277614993 | L158: 0 | M158: 41.35738953 | N158: 49.18745671 | O158: 40.55168492 | P158: 30.25915658 | Q158: 10.44347831 | R158: 9.466129882 | S158: 17.10122536 | T158: 35.78614598 | U158: 13.75373829 | V158: 49.00702887 | W158: 50.58533389 | X158: 28.04829655 | Y158: 0 | Z158: 22.16651121 | AA158: 23.22884256 | AB158: 10.13053162 | AC158: 35.01245375 | BB158: Letrina o servicio de hueco sin ventilación | BC158: 285149.7436 | BD158: 163083.7319 | BE158: 59141.6243 | BF158: 37048.26795 | BG158: 3210.851071 | BH158: 117968.663 | BI158: 42741.42449 | BJ158: 31901.68476 | BK158: 5947.321207 | BL158: 0 | BM158: 84013.51191 | BN158: 99970.72068 | BO158: 82566.68861 | BP158: 61306.72518 | BQ158: 21217.47894 | BR158: 12047.08406 | BS158: 69621.28911 | BT158: 83324.71537 | BU158: 33080.24622 | BV158: 19966.70891 | BW158: 2417.388292 | BX158: 31355.71336 | BY158: 0 | BZ158: 20272.40488 | CA158: 19096.96733 | CB158: 181814.611 | CC158: 74637.09023
B159: Letrina o servicio hueco sin piso | C159: 1.506087615 | D159: 0.09642171969 | E159: 0.04986764661 | F159: 0.02819171172 | G159: 0 | H159: 0.2474286242 | I159: 0 | J159: 0 | K159: 0 | L159: 0 | M159: 3.92734999 | N159: 0.4494756031 | O159: 0.0721875412 | P159: 0.4435511316 | Q159: 0.09314409544 | R159: 0.9276898831 | S159: 0 | T159: 2.277245369 | U159: 0.5733017365 | V159: 1.185283038 | W159: 10.77039686 | X159: 0.6328805692 | Y159: 0.2268418744 | Z159: 0.2102677362 | AA159: 1.58121305 | AB159: 0 | AC159: 0.09416726097 | BB159: Letrina o servicio hueco sin piso | BC159: 10114.11844 | BD159: 647.6723309 | BE159: 334.6490656 | BF159: 189.2360788 | BG159: 0 | BH159: 1159.23771 | BI159: 0 | BJ159: 0 | BK159: 0 | BL159: 0 | BM159: 7978.029293 | BN159: 913.5337131 | BO159: 146.9799898 | BP159: 898.6591301 | BQ159: 189.2360788 | BR159: 1180.625889 | BS159: 0 | BT159: 5302.354221 | BU159: 1378.89512 | BV159: 482.9144299 | BW159: 514.6992076 | BX159: 707.5089812 | BY159: 25.68662042 | BZ159: 192.3005674 | CA159: 1299.951725 | CB159: 0 | CC159: 200.7391542
B160: Letrina de compostaje | C160: 0.1778689761 | D160: 0 | E160: 0 | F160: 0 | G160: 0 | H160: 0.009420265636 | I160: 0 | J160: 0 | K160: 0 | L160: 0 | M160: 0.5257458931 | N160: 0.04051315977 | O160: 0 | P160: 0 | Q160: 0 | R160: 0.8631806526 | S160: 0 | T160: 0 | U160: 0 | V160: 0.1247431467 | W160: 0.9442878181 | X160: 0 | Y160: 0 | Z160: 0 | AA160: 0 | AB160: 0 | AC160: 0 | BB160: Letrina de compostaje | BC160: 1194.477581 | BD160: 0 | BE160: 0 | BF160: 0 | BG160: 0 | BH160: 44.13526205 | BI160: 0 | BJ160: 0 | BK160: 0 | BL160: 0 | BM160: 1068.001616 | BN160: 82.34070331 | BO160: 0 | BP160: 0 | BQ160: 0 | BR160: 1098.528122 | BS160: 0 | BT160: 0 | BU160: 0 | BV160: 50.82352791 | BW160: 45.12593157 | BX160: 0 | BY160: 0 | BZ160: 0 | CA160: 0 | CB160: 0 | CC160: 0
B161: Servicio colgante sobre el río o el mar | C161: 1.863218974 | D161: 0.0382528207 | E161: 0.003338288395 | F161: 0 | G161: 0 | H161: 0.5038104557 | I161: 0 | J161: 0 | K161: 0 | L161: 0 | M161: 4.022096708 | N161: 0.6992531358 | O161: 0.3710041343 | P161: 0.03053682839 | Q161: 0.01102671083 | R161: 2.685028488 | S161: 0 | T161: 0 | U161: 0 | V161: 0.1496565534 | W161: 0 | X161: 0 | Y161: 52.1845223 | Z161: 0 | AA161: 4.141162661 | AB161: 0 | AC161: 0 | BB161: Servicio colgante sobre el río o el mar | BC161: 12512.43102 | BD161: 256.9472275 | BE161: 22.40240253 | BF161: 0 | BG161: 0 | BH161: 2360.422449 | BI161: 0 | BJ161: 0 | BK161: 0 | BL161: 0 | BM161: 8170.498029 | BN161: 1421.192405 | BO161: 755.3960553 | BP161: 61.86930363 | BQ161: 22.40240253 | BR161: 3417.105438 | BS161: 0 | BT161: 0 | BU161: 0 | BV161: 60.97388288 | BW161: 0 | BX161: 0 | BY161: 5909.155968 | BZ161: 0 | CA161: 3404.545357 | CB161: 0 | CC161: 0
B162: No hay servicio sanitario, va al monte, campo | C162: 10.26141339 | D162: 0.3183633451 | E162: 0.03332376831 | F162: 0.06997863273 | G162: 0 | H162: 0.8184349823 | I162: 0.03794086967 | J162: 0 | K162: 0 | L162: 0 | M162: 26.96364385 | N162: 4.290975683 | O162: 0.8077816337 | P162: 1.046639808 | Q162: 0.2312061258 | R162: 6.613265236 | S162: 0.6539497792 | T162: 0.3343926565 | U162: 0.2087774746 | V162: 8.415602697 | W162: 21.80564002 | X162: 0.1045587037 | Y162: 44.4569159 | Z162: 0.08327789166 | AA162: 56.07738878 | AB162: 0 | AC162: 1.680490727 | BB162: No hay servicio sanitario, va al monte, campo | BC162: 68910.43349 | BD162: 2138.471814 | BE162: 223.6273152 | BF162: 469.7296209 | BG162: 0 | BH162: 3834.482361 | BI162: 177.6043424 | BJ162: 0 | BK162: 0 | BL162: 0 | BM162: 54774.01836 | BN162: 8721.165113 | BO162: 1644.712291 | BP162: 2120.550152 | BQ162: 469.7296209 | BR162: 8416.381689 | BS162: 2662.313704 | BT162: 778.6022262 | BU162: 502.1478613 | BV162: 3428.730393 | BW162: 1042.054976 | BX162: 116.8881232 | BY162: 5034.1143 | BZ162: 76.16187866 | CA162: 46102.51497 | CB162: 0 | CC162: 3582.352122
B163: Otro | C163: 0.4468455275 | D163: 0.07543261756 | E163: 0.03257220499 | F163: 0 | G163: 0 | H163: 0.07616143422 | I163: 0 | J163: 0 | K163: 0 | L163: 0 | M163: 0.2713536561 | N163: 0.6387588439 | O163: 0.4624822083 | P163: 0.2853367413 | Q163: 0 | R163: 0.3485197018 | S163: 0 | T163: 0 | U163: 0.80887452 | V163: 0.7804780808 | W163: 0.8076924936 | X163: 0 | Y163: 0 | Z163: 0.0677192533 | AA163: 0 | AB163: 0 | AC163: 0.4308734026 | BB163: Otro | BC163: 3000.787302 | BD163: 506.6868689 | BE163: 218.5837653 | BF163: 0 | BG163: 0 | BH163: 356.8269715 | BI163: 0 | BJ163: 0 | BK163: 0 | BL163: 0 | BM163: 551.2285441 | BN163: 1298.241182 | BO163: 941.653215 | BP163: 578.1080229 | BQ163: 0 | BR163: 443.544109 | BS163: 0 | BT163: 0 | BU163: 1945.490581 | BV163: 317.9866034 | BW163: 38.59827004 | BX163: 0 | BY163: 0 | BZ163: 61.93271047 | CA163: 0 | CB163: 0 | CC163: 918.5056625
B164: Missing | C164: 0.006302857461 | D164: 0 | E164: 0 | F164: 0.02349345361 | G164: 0 | H164: 0 | I164: 0 | J164: 0 | K164: 0.03387723552 | L164: 0 | M164: 0 | N164: 0.0208255667 | O164: 0 | P164: 0 | Q164: 0 | R164: 0 | S164: 0 | T164: 0 | U164: 0 | V164: 0 | W164: 0.8857139608 | X164: 0.1410649644 | Y164: 0 | Z164: 0 | AA164: 0 | AB164: 0 | AC164: 0 | BB164: Missing | BC164: 42.32678514 | BD164: 0 | BE164: 0 | BF164: 157.6991522 | BG164: 0 | BH164: 0 | BI164: 0 | BJ164: 0 | BK164: 157.6991522 | BL164: 0 | BM164: 0 | BN164: 42.32678514 | BO164: 0 | BP164: 0 | BQ164: 0 | BR164: 0 | BS164: 0 | BT164: 0 | BU164: 0 | BV164: 0 | BW164: 42.32678514 | BX164: 157.6991522 | BY164: 0 | BZ164: 0 | CA164: 0 | CB164: 0 | CC164: 0
BB165: Total | BC165: 671549.141 | BD165: 671707.9233 | BE165: 671074.511 | BF165: 671247.2115 | BG165: 672354.7014 | BH165: 468513.9863 | BI165: 468108.2535 | BJ165: 469632.1348 | BK165: 465501.8327 | BL165: 470413.7473 | BM165: 203140.268 | BN165: 203244.3378 | BO165: 203608.5276 | BP165: 202605.5321 | BQ165: 203164.8683 | BR165: 127265.1465 | BS165: 407112.8684 | BT165: 232840.7072 | BU165: 240518.2179 | BV165: 40742.54117 | BW165: 4778.832333 | BX165: 111791.8634 | BY165: 11323.57969 | BZ165: 91455.09949 | CA165: 82212.30691 | CB165: 1794719.348 | CC165: 213172.9777
A208: =A1026 -> Panama
A209: =A1034 -> 2013
A210: Access to hygiene facilities
A211: by wealth quintile and sub-national region
A212: Notes:
A213: WHO/UNICEF JMP customised wealth index excludes water,
A214: sanitation and hygiene assets.
A215: Survey used for analysis: | B215: =A1025 -> MICS13
A220: Access to handwashing | C220: NATIONAL wealth index quintile | H220: URBAN wealth index quintile | M220: RURAL wealth index quintile | R220: SUB-REGIONS: | BA220: Raw numbers of respondents: | BB220: Access to handwashing | BC220: NATIONAL wealth index quintile | BH220: URBAN wealth index quintile | BM220: RURAL wealth index quintile | BR220: SUB-REGIONS:
A221: Weighted percentage (used in graphs) | C221: Poorest | D221: Poor | E221: Middle | F221: Rich | G221: Richest | H221: Poorest | I221: Poor | J221: Middle | K221: Rich | L221: Richest | M221: Poorest | N221: Poor | O221: Middle | P221: Rich | Q221: Richest | R221: Bocas del Toro | S221: Chiriquí | T221: Coclé | U221: Colón | V221: Darien | W221: Emberá Wounaan | X221: Herrera | Y221: Kuna Yala | Z221: Los Santos | AA221: Ngöbe Buglé | AB221: Panamá | AC221: Veraguas | BA221: Hygiene data, raw numbers (weighted) | BC221: Poorest | BD221: Poor | BE221: Middle | BF221: Rich | BG221: Richest | BH221: Poorest | BI221: Poor | BJ221: Middle | BK221: Rich | BL221: Richest | BM221: Poorest | BN221: Poor | BO221: Middle | BP221: Rich | BQ221: Richest | BR221: Bocas del Toro | BS221: Chiriquí | BT221: Coclé | BU221: Colón | BV221: Darien | BW221: Emberá Wounaan | BX221: Herrera | BY221: Kuna Yala | BZ221: Los Santos | CA221: Ngöbe Buglé | CB221: Panamá | CC221: Veraguas
A222: Hygiene ladder | B222: Basic | C222: N/A | D222: N/A | E222: N/A | F222: N/A | G222: N/A | H222: N/A | I222: N/A | J222: N/A | K222: N/A | L222: N/A | M222: N/A | N222: N/A | O222: N/A | P222: N/A | Q222: N/A | R222: N/A | S222: N/A | T222: N/A | U222: N/A | V222: N/A | W222: N/A | X222: N/A | Y222: N/A | Z222: N/A | AA222: N/A | AB222: N/A | AC222: N/A | BA222: Hygiene ladder | BB222: Basic | BC222: N/A | BD222: N/A | BE222: N/A | BF222: N/A | BG222: N/A | BH222: N/A | BI222: N/A | BJ222: N/A | BK222: N/A | BL222: N/A | BM222: N/A | BN222: N/A | BO222: N/A | BP222: N/A | BQ222: N/A | BR222: N/A | BS222: N/A | BT222: N/A | BU222: N/A | BV222: N/A | BW222: N/A | BX222: N/A | BY222: N/A | BZ222: N/A | CA222: N/A | CB222: N/A | CC222: N/A
B223: Limited | C223: N/A | D223: N/A | E223: N/A | F223: N/A | G223: N/A | H223: N/A | I223: N/A | J223: N/A | K223: N/A | L223: N/A | M223: N/A | N223: N/A | O223: N/A | P223: N/A | Q223: N/A | R223: N/A | S223: N/A | T223: N/A | U223: N/A | V223: N/A | W223: N/A | X223: N/A | Y223: N/A | Z223: N/A | AA223: N/A | AB223: N/A | AC223: N/A | BB223: Limited | BC223: N/A | BD223: N/A | BE223: N/A | BF223: N/A | BG223: N/A | BH223: N/A | BI223: N/A | BJ223: N/A | BK223: N/A | BL223: N/A | BM223: N/A | BN223: N/A | BO223: N/A | BP223: N/A | BQ223: N/A | BR223: N/A | BS223: N/A | BT223: N/A | BU223: N/A | BV223: N/A | BW223: N/A | BX223: N/A | BY223: N/A | BZ223: N/A | CA223: N/A | CB223: N/A | CC223: N/A
B224: No facility | C224: N/A | D224: N/A | E224: N/A | F224: N/A | G224: N/A | H224: N/A | I224: N/A | J224: N/A | K224: N/A | L224: N/A | M224: N/A | N224: N/A | O224: N/A | P224: N/A | Q224: N/A | R224: N/A | S224: N/A | T224: N/A | U224: N/A | V224: N/A | W224: N/A | X224: N/A | Y224: N/A | Z224: N/A | AA224: N/A | AB224: N/A | AC224: N/A | BB224: No facility | BC224: N/A | BD224: N/A | BE224: N/A | BF224: N/A | BG224: N/A | BH224: N/A | BI224: N/A | BJ224: N/A | BK224: N/A | BL224: N/A | BM224: N/A | BN224: N/A | BO224: N/A | BP224: N/A | BQ224: N/A | BR224: N/A | BS224: N/A | BT224: N/A | BU224: N/A | BV224: N/A | BW224: N/A | BX224: N/A | BY224: N/A | BZ224: N/A | CA224: N/A | CB224: N/A | CC224: N/A
BA225: Observed handwashing place | BB225: Fixed | BC225: N/A | BD225: N/A | BE225: N/A | BF225: N/A | BG225: N/A | BH225: N/A | BI225: N/A | BJ225: N/A | BK225: N/A | BL225: N/A | BM225: N/A | BN225: N/A | BO225: N/A | BP225: N/A | BQ225: N/A | BR225: N/A | BS225: N/A | BT225: N/A | BU225: N/A | BV225: N/A | BW225: N/A | BX225: N/A | BY225: N/A | BZ225: N/A | CA225: N/A | CB225: N/A | CC225: N/A
BB226: Mobile | BC226: N/A | BD226: N/A | BE226: N/A | BF226: N/A | BG226: N/A | BH226: N/A | BI226: N/A | BJ226: N/A | BK226: N/A | BL226: N/A | BM226: N/A | BN226: N/A | BO226: N/A | BP226: N/A | BQ226: N/A | BR226: N/A | BS226: N/A | BT226: N/A | BU226: N/A | BV226: N/A | BW226: N/A | BX226: N/A | BY226: N/A | BZ226: N/A | CA226: N/A | CB226: N/A | CC226: N/A
BA227: Water / Soap | BB227: Water and soap | BC227: N/A | BD227: N/A | BE227: N/A | BF227: N/A | BG227: N/A | BH227: N/A | BI227: N/A | BJ227: N/A | BK227: N/A | BL227: N/A | BM227: N/A | BN227: N/A | BO227: N/A | BP227: N/A | BQ227: N/A | BR227: N/A | BS227: N/A | BT227: N/A | BU227: N/A | BV227: N/A | BW227: N/A | BX227: N/A | BY227: N/A | BZ227: N/A | CA227: N/A | CB227: N/A | CC227: N/A
BB228: Water only | BC228: N/A | BD228: N/A | BE228: N/A | BF228: N/A | BG228: N/A | BH228: N/A | BI228: N/A | BJ228: N/A | BK228: N/A | BL228: N/A | BM228: N/A | BN228: N/A | BO228: N/A | BP228: N/A | BQ228: N/A | BR228: N/A | BS228: N/A | BT228: N/A | BU228: N/A | BV228: N/A | BW228: N/A | BX228: N/A | BY228: N/A | BZ228: N/A | CA228: N/A | CB228: N/A | CC228: N/A
BB229: Soap only | BC229: N/A | BD229: N/A | BE229: N/A | BF229: N/A | BG229: N/A | BH229: N/A | BI229: N/A | BJ229: N/A | BK229: N/A | BL229: N/A | BM229: N/A | BN229: N/A | BO229: N/A | BP229: N/A | BQ229: N/A | BR229: N/A | BS229: N/A | BT229: N/A | BU229: N/A | BV229: N/A | BW229: N/A | BX229: N/A | BY229: N/A | BZ229: N/A | CA229: N/A | CB229: N/A | CC229: N/A
BB230: Neither | BC230: N/A | BD230: N/A | BE230: N/A | BF230: N/A | BG230: N/A | BH230: N/A | BI230: N/A | BJ230: N/A | BK230: N/A | BL230: N/A | BM230: N/A | BN230: N/A | BO230: N/A | BP230: N/A | BQ230: N/A | BR230: N/A | BS230: N/A | BT230: N/A | BU230: N/A | BV230: N/A | BW230: N/A | BX230: N/A | BY230: N/A | BZ230: N/A | CA230: N/A | CB230: N/A | CC230: N/A
BA259: Raw numbers of respondents: | BB259: Menstrual health and hygiene | BC259: NATIONAL wealth index quintile | BH259: URBAN wealth index quintile | BM259: RURAL wealth index quintile | BR259: SUB-REGIONS:
BA260: MHH data, raw numbers (weighted) | BC260: Poorest | BD260: Poor | BE260: Middle | BF260: Rich | BG260: Richest | BH260: Poorest | BI260: Poor | BJ260: Middle | BK260: Rich | BL260: Richest | BM260: Poorest | BN260: Poor | BO260: Middle | BP260: Rich | BQ260: Richest | BR260: Bocas del Toro | BS260: Chiriquí | BT260: Coclé | BU260: Colón | BV260: Darien | BW260: Emberá Wounaan | BX260: Herrera | BY260: Kuna Yala | BZ260: Los Santos | CA260: Ngöbe Buglé | CB260: Panamá | CC260: Veraguas
BA261: Private place to wash and change | BB261: Yes | BC261: N/A | BD261: N/A | BE261: N/A | BF261: N/A | BG261: N/A | BH261: N/A | BI261: N/A | BJ261: N/A | BK261: N/A | BL261: N/A | BM261: N/A | BN261: N/A | BO261: N/A | BP261: N/A | BQ261: N/A | BR261: N/A | BS261: N/A | BT261: N/A | BU261: N/A | BV261: N/A | BW261: N/A | BX261: N/A | BY261: N/A | BZ261: N/A | CA261: N/A | CB261: N/A | CC261: N/A
BB262: No | BC262: N/A | BD262: N/A | BE262: N/A | BF262: N/A | BG262: N/A | BH262: N/A | BI262: N/A | BJ262: N/A | BK262: N/A | BL262: N/A | BM262: N/A | BN262: N/A | BO262: N/A | BP262: N/A | BQ262: N/A | BR262: N/A | BS262: N/A | BT262: N/A | BU262: N/A | BV262: N/A | BW262: N/A | BX262: N/A | BY262: N/A | BZ262: N/A | CA262: N/A | CB262: N/A | CC262: N/A
BB263: DK/not sure/missing | BC263: N/A | BD263: N/A | BE263: N/A | BF263: N/A | BG263: N/A | BH263: N/A | BI263: N/A | BJ263: N/A | BK263: N/A | BL263: N/A | BM263: N/A | BN263: N/A | BO263: N/A | BP263: N/A | BQ263: N/A | BR263: N/A | BS263: N/A | BT263: N/A | BU263: N/A | BV263: N/A | BW263: N/A | BX263: N/A | BY263: N/A | BZ263: N/A | CA263: N/A | CB263: N/A | CC263: N/A
BA264: Use of menstrual materials | BB264: Materials reusable | BC264: N/A | BD264: N/A | BE264: N/A | BF264: N/A | BG264: N/A | BH264: N/A | BI264: N/A | BJ264: N/A | BK264: N/A | BL264: N/A | BM264: N/A | BN264: N/A | BO264: N/A | BP264: N/A | BQ264: N/A | BR264: N/A | BS264: N/A | BT264: N/A | BU264: N/A | BV264: N/A | BW264: N/A | BX264: N/A | BY264: N/A | BZ264: N/A | CA264: N/A | CB264: N/A | CC264: N/A
BB265: Materials not reusable | BC265: N/A | BD265: N/A | BE265: N/A | BF265: N/A | BG265: N/A | BH265: N/A | BI265: N/A | BJ265: N/A | BK265: N/A | BL265: N/A | BM265: N/A | BN265: N/A | BO265: N/A | BP265: N/A | BQ265: N/A | BR265: N/A | BS265: N/A | BT265: N/A | BU265: N/A | BV265: N/A | BW265: N/A | BX265: N/A | BY265: N/A | BZ265: N/A | CA265: N/A | CB265: N/A | CC265: N/A
BB266: No materials used | BC266: N/A | BD266: N/A | BE266: N/A | BF266: N/A | BG266: N/A | BH266: N/A | BI266: N/A | BJ266: N/A | BK266: N/A | BL266: N/A | BM266: N/A | BN266: N/A | BO266: N/A | BP266: N/A | BQ266: N/A | BR266: N/A | BS266: N/A | BT266: N/A | BU266: N/A | BV266: N/A | BW266: N/A | BX266: N/A | BY266: N/A | BZ266: N/A | CA266: N/A | CB266: N/A | CC266: N/A
BB267: DK/not sure/missing | BC267: N/A | BD267: N/A | BE267: N/A | BF267: N/A | BG267: N/A | BH267: N/A | BI267: N/A | BJ267: N/A | BK267: N/A | BL267: N/A | BM267: N/A | BN267: N/A | BO267: N/A | BP267: N/A | BQ267: N/A | BR267: N/A | BS267: N/A | BT267: N/A | BU267: N/A | BV267: N/A | BW267: N/A | BX267: N/A | BY267: N/A | BZ267: N/A | CA267: N/A | CB267: N/A | CC267: N/A
BA268: Use of menstrual materials with private place to wash and change | BB268: Materials reusable | BC268: N/A | BD268: N/A | BE268: N/A | BF268: N/A | BG268: N/A | BH268: N/A | BI268: N/A | BJ268: N/A | BK268: N/A | BL268: N/A | BM268: N/A | BN268: N/A | BO268: N/A | BP268: N/A | BQ268: N/A | BR268: N/A | BS268: N/A | BT268: N/A | BU268: N/A | BV268: N/A | BW268: N/A | BX268: N/A | BY268: N/A | BZ268: N/A | CA268: N/A | CB268: N/A | CC268: N/A
BB269: Materials not reusable | BC269: N/A | BD269: N/A | BE269: N/A | BF269: N/A | BG269: N/A | BH269: N/A | BI269: N/A | BJ269: N/A | BK269: N/A | BL269: N/A | BM269: N/A | BN269: N/A | BO269: N/A | BP269: N/A | BQ269: N/A | BR269: N/A | BS269: N/A | BT269: N/A | BU269: N/A | BV269: N/A | BW269: N/A | BX269: N/A | BY269: N/A | BZ269: N/A | CA269: N/A | CB269: N/A | CC269: N/A
BB270: No materials used | BC270: N/A | BD270: N/A | BE270: N/A | BF270: N/A | BG270: N/A | BH270: N/A | BI270: N/A | BJ270: N/A | BK270: N/A | BL270: N/A | BM270: N/A | BN270: N/A | BO270: N/A | BP270: N/A | BQ270: N/A | BR270: N/A | BS270: N/A | BT270: N/A | BU270: N/A | BV270: N/A | BW270: N/A | BX270: N/A | BY270: N/A | BZ270: N/A | CA270: N/A | CB270: N/A | CC270: N/A
BA271: Awareness of menstruation before menarche | BB271: Yes | BC271: N/A | BD271: N/A | BE271: N/A | BF271: N/A | BG271: N/A | BH271: N/A | BI271: N/A | BJ271: N/A | BK271: N/A | BL271: N/A | BM271: N/A | BN271: N/A | BO271: N/A | BP271: N/A | BQ271: N/A | BR271: N/A | BS271: N/A | BT271: N/A | BU271: N/A | BV271: N/A | BW271: N/A | BX271: N/A | BY271: N/A | BZ271: N/A | CA271: N/A | CB271: N/A | CC271: N/A
BB272: No | BC272: N/A | BD272: N/A | BE272: N/A | BF272: N/A | BG272: N/A | BH272: N/A | BI272: N/A | BJ272: N/A | BK272: N/A | BL272: N/A | BM272: N/A | BN272: N/A | BO272: N/A | BP272: N/A | BQ272: N/A | BR272: N/A | BS272: N/A | BT272: N/A | BU272: N/A | BV272: N/A | BW272: N/A | BX272: N/A | BY272: N/A | BZ272: N/A | CA272: N/A | CB272: N/A | CC272: N/A
BB273: DK/not sure/missing | BC273: N/A | BD273: N/A | BE273: N/A | BF273: N/A | BG273: N/A | BH273: N/A | BI273: N/A | BJ273: N/A | BK273: N/A | BL273: N/A | BM273: N/A | BN273: N/A | BO273: N/A | BP273: N/A | BQ273: N/A | BR273: N/A | BS273: N/A | BT273: N/A | BU273: N/A | BV273: N/A | BW273: N/A | BX273: N/A | BY273: N/A | BZ273: N/A | CA273: N/A | CB273: N/A | CC273: N/A
BA274: Participation in (all) activities during menstruation | BB274: Yes | BC274: N/A | BD274: N/A | BE274: N/A | BF274: N/A | BG274: N/A | BH274: N/A | BI274: N/A | BJ274: N/A | BK274: N/A | BL274: N/A | BM274: N/A | BN274: N/A | BO274: N/A | BP274: N/A | BQ274: N/A | BR274: N/A | BS274: N/A | BT274: N/A | BU274: N/A | BV274: N/A | BW274: N/A | BX274: N/A | BY274: N/A | BZ274: N/A | CA274: N/A | CB274: N/A | CC274: N/A
BB275: No | BC275: N/A | BD275: N/A | BE275: N/A | BF275: N/A | BG275: N/A | BH275: N/A | BI275: N/A | BJ275: N/A | BK275: N/A | BL275: N/A | BM275: N/A | BN275: N/A | BO275: N/A | BP275: N/A | BQ275: N/A | BR275: N/A | BS275: N/A | BT275: N/A | BU275: N/A | BV275: N/A | BW275: N/A | BX275: N/A | BY275: N/A | BZ275: N/A | CA275: N/A | CB275: N/A | CC275: N/A
BB276: DK/not sure/missing/no such activity | BC276: N/A | BD276: N/A | BE276: N/A | BF276: N/A | BG276: N/A | BH276: N/A | BI276: N/A | BJ276: N/A | BK276: N/A | BL276: N/A | BM276: N/A | BN276: N/A | BO276: N/A | BP276: N/A | BQ276: N/A | BR276: N/A | BS276: N/A | BT276: N/A | BU276: N/A | BV276: N/A | BW276: N/A | BX276: N/A | BY276: N/A | BZ276: N/A | CA276: N/A | CB276: N/A | CC276: N/A
BA277: Participation in specific activities during menstruation | BB277: Did not go to school (amongst those usually attending school) | BC277: N/A | BD277: N/A | BE277: N/A | BF277: N/A | BG277: N/A | BH277: N/A | BI277: N/A | BJ277: N/A | BK277: N/A | BL277: N/A | BM277: N/A | BN277: N/A | BO277: N/A | BP277: N/A | BQ277: N/A | BR277: N/A | BS277: N/A | BT277: N/A | BU277: N/A | BV277: N/A | BW277: N/A | BX277: N/A | BY277: N/A | BZ277: N/A | CA277: N/A | CB277: N/A | CC277: N/A
BB278: Did not go to work (amongst those who usually work) | BC278: N/A | BD278: N/A | BE278: N/A | BF278: N/A | BG278: N/A | BH278: N/A | BI278: N/A | BJ278: N/A | BK278: N/A | BL278: N/A | BM278: N/A | BN278: N/A | BO278: N/A | BP278: N/A | BQ278: N/A | BR278: N/A | BS278: N/A | BT278: N/A | BU278: N/A | BV278: N/A | BW278: N/A | BX278: N/A | BY278: N/A | BZ278: N/A | CA278: N/A | CB278: N/A | CC278: N/A
BB279: Did not participate in social activities | BC279: N/A | BD279: N/A | BE279: N/A | BF279: N/A | BG279: N/A | BH279: N/A | BI279: N/A | BJ279: N/A | BK279: N/A | BL279: N/A | BM279: N/A | BN279: N/A | BO279: N/A | BP279: N/A | BQ279: N/A | BR279: N/A | BS279: N/A | BT279: N/A | BU279: N/A | BV279: N/A | BW279: N/A | BX279: N/A | BY279: N/A | BZ279: N/A | CA279: N/A | CB279: N/A | CC279: N/A
BB280: Did not cook food | BC280: N/A | BD280: N/A | BE280: N/A | BF280: N/A | BG280: N/A | BH280: N/A | BI280: N/A | BJ280: N/A | BK280: N/A | BL280: N/A | BM280: N/A | BN280: N/A | BO280: N/A | BP280: N/A | BQ280: N/A | BR280: N/A | BS280: N/A | BT280: N/A | BU280: N/A | BV280: N/A | BW280: N/A | BX280: N/A | BY280: N/A | BZ280: N/A | CA280: N/A | CB280: N/A | CC280: N/A
BB281: Did not eat with others | BC281: N/A | BD281: N/A | BE281: N/A | BF281: N/A | BG281: N/A | BH281: N/A | BI281: N/A | BJ281: N/A | BK281: N/A | BL281: N/A | BM281: N/A | BN281: N/A | BO281: N/A | BP281: N/A | BQ281: N/A | BR281: N/A | BS281: N/A | BT281: N/A | BU281: N/A | BV281: N/A | BW281: N/A | BX281: N/A | BY281: N/A | BZ281: N/A | CA281: N/A | CB281: N/A | CC281: N/A
BB282: Did not bathe in regular place | BC282: N/A | BD282: N/A | BE282: N/A | BF282: N/A | BG282: N/A | BH282: N/A | BI282: N/A | BJ282: N/A | BK282: N/A | BL282: N/A | BM282: N/A | BN282: N/A | BO282: N/A | BP282: N/A | BQ282: N/A | BR282: N/A | BS282: N/A | BT282: N/A | BU282: N/A | BV282: N/A | BW282: N/A | BX282: N/A | BY282: N/A | BZ282: N/A | CA282: N/A | CB282: N/A | CC282: N/A
BB283: Did not participate in other activities | BC283: N/A | BD283: N/A | BE283: N/A | BF283: N/A | BG283: N/A | BH283: N/A | BI283: N/A | BJ283: N/A | BK283: N/A | BL283: N/A | BM283: N/A | BN283: N/A | BO283: N/A | BP283: N/A | BQ283: N/A | BR283: N/A | BS283: N/A | BT283: N/A | BU283: N/A | BV283: N/A | BW283: N/A | BX283: N/A | BY283: N/A | BZ283: N/A | CA283: N/A | CB283: N/A | CC283: N/A
BB284: DK/not sure/missing/no such activity | BC284: N/A | BD284: N/A | BE284: N/A | BF284: N/A | BG284: N/A | BH284: N/A | BI284: N/A | BJ284: N/A | BK284: N/A | BL284: N/A | BM284: N/A | BN284: N/A | BO284: N/A | BP284: N/A | BQ284: N/A | BR284: N/A | BS284: N/A | BT284: N/A | BU284: N/A | BV284: N/A | BW284: N/A | BX284: N/A | BY284: N/A | BZ284: N/A | CA284: N/A | CB284: N/A | CC284: N/A
BA339: Raw numbers of respondents: | BB339: Basic water, sanitation and hygiene | BC339: NATIONAL wealth index quintile | BH339: URBAN wealth index quintile | BM339: RURAL wealth index quintile | BR339: SUB-REGIONS:
BA340: WatSan data, raw numbers (weighted) | BC340: Poorest | BD340: Poor | BE340: Middle | BF340: Rich | BG340: Richest | BH340: Poorest | BI340: Poor | BJ340: Middle | BK340: Rich | BL340: Richest | BM340: Poorest | BN340: Poor | BO340: Middle | BP340: Rich | BQ340: Richest | BR340: Bocas del Toro | BS340: Chiriquí | BT340: Coclé | BU340: Colón | BV340: Darien | BW340: Emberá Wounaan | BX340: Herrera | BY340: Kuna Yala | BZ340: Los Santos | CA340: Ngöbe Buglé | CB340: Panamá | CC340: Veraguas
BA341: Use of Basic Water Sanitation and Hygiene | BB341: Yes | BC341: N/A | BD341: N/A | BE341: N/A | BF341: N/A | BG341: N/A | BH341: N/A | BI341: N/A | BJ341: N/A | BK341: N/A | BL341: N/A | BM341: N/A | BN341: N/A | BO341: N/A | BP341: N/A | BQ341: N/A | BR341: N/A | BS341: N/A | BT341: N/A | BU341: N/A | BV341: N/A | BW341: N/A | BX341: N/A | BY341: N/A | BZ341: N/A | CA341: N/A | CB341: N/A | CC341: N/A
BB342: No | BC342: N/A | BD342: N/A | BE342: N/A | BF342: N/A | BG342: N/A | BH342: N/A | BI342: N/A | BJ342: N/A | BK342: N/A | BL342: N/A | BM342: N/A | BN342: N/A | BO342: N/A | BP342: N/A | BQ342: N/A | BR342: N/A | BS342: N/A | BT342: N/A | BU342: N/A | BV342: N/A | BW342: N/A | BX342: N/A | BY342: N/A | BZ342: N/A | CA342: N/A | CB342: N/A | CC342: N/A
BA343: Use of Basic Water and Sanitation | BB343: Yes | BC343: N/A | BD343: N/A | BE343: N/A | BF343: N/A | BG343: N/A | BH343: N/A | BI343: N/A | BJ343: N/A | BK343: N/A | BL343: N/A | BM343: N/A | BN343: N/A | BO343: N/A | BP343: N/A | BQ343: N/A | BR343: N/A | BS343: N/A | BT343: N/A | BU343: N/A | BV343: N/A | BW343: N/A | BX343: N/A | BY343: N/A | BZ343: N/A | CA343: N/A | CB343: N/A | CC343: N/A
BB344: No | BC344: N/A | BD344: N/A | BE344: N/A | BF344: N/A | BG344: N/A | BH344: N/A | BI344: N/A | BJ344: N/A | BK344: N/A | BL344: N/A | BM344: N/A | BN344: N/A | BO344: N/A | BP344: N/A | BQ344: N/A | BR344: N/A | BS344: N/A | BT344: N/A | BU344: N/A | BV344: N/A | BW344: N/A | BX344: N/A | BY344: N/A | BZ344: N/A | CA344: N/A | CB344: N/A | CC344: N/A
BA345: Use of Basic Water and Hygiene | BB345: Yes | BC345: N/A | BD345: N/A | BE345: N/A | BF345: N/A | BG345: N/A | BH345: N/A | BI345: N/A | BJ345: N/A | BK345: N/A | BL345: N/A | BM345: N/A | BN345: N/A | BO345: N/A | BP345: N/A | BQ345: N/A | BR345: N/A | BS345: N/A | BT345: N/A | BU345: N/A | BV345: N/A | BW345: N/A | BX345: N/A | BY345: N/A | BZ345: N/A | CA345: N/A | CB345: N/A | CC345: N/A
BB346: No | BC346: N/A | BD346: N/A | BE346: N/A | BF346: N/A | BG346: N/A | BH346: N/A | BI346: N/A | BJ346: N/A | BK346: N/A | BL346: N/A | BM346: N/A | BN346: N/A | BO346: N/A | BP346: N/A | BQ346: N/A | BR346: N/A | BS346: N/A | BT346: N/A | BU346: N/A | BV346: N/A | BW346: N/A | BX346: N/A | BY346: N/A | BZ346: N/A | CA346: N/A | CB346: N/A | CC346: N/A
BA347: Use of Basic Sanitation and Hygiene | BB347: Yes | BC347: N/A | BD347: N/A | BE347: N/A | BF347: N/A | BG347: N/A | BH347: N/A | BI347: N/A | BJ347: N/A | BK347: N/A | BL347: N/A | BM347: N/A | BN347: N/A | BO347: N/A | BP347: N/A | BQ347: N/A | BR347: N/A | BS347: N/A | BT347: N/A | BU347: N/A | BV347: N/A | BW347: N/A | BX347: N/A | BY347: N/A | BZ347: N/A | CA347: N/A | CB347: N/A | CC347: N/A
BB348: No | BC348: N/A | BD348: N/A | BE348: N/A | BF348: N/A | BG348: N/A | BH348: N/A | BI348: N/A | BJ348: N/A | BK348: N/A | BL348: N/A | BM348: N/A | BN348: N/A | BO348: N/A | BP348: N/A | BQ348: N/A | BR348: N/A | BS348: N/A | BT348: N/A | BU348: N/A | BV348: N/A | BW348: N/A | BX348: N/A | BY348: N/A | BZ348: N/A | CA348: N/A | CB348: N/A | CC348: N/A
BA349: Use of Basic Water | BB349: Yes | BC349: N/A | BD349: N/A | BE349: N/A | BF349: N/A | BG349: N/A | BH349: N/A | BI349: N/A | BJ349: N/A | BK349: N/A | BL349: N/A | BM349: N/A | BN349: N/A | BO349: N/A | BP349: N/A | BQ349: N/A | BR349: N/A | BS349: N/A | BT349: N/A | BU349: N/A | BV349: N/A | BW349: N/A | BX349: N/A | BY349: N/A | BZ349: N/A | CA349: N/A | CB349: N/A | CC349: N/A
BB350: No | BC350: N/A | BD350: N/A | BE350: N/A | BF350: N/A | BG350: N/A | BH350: N/A | BI350: N/A | BJ350: N/A | BK350: N/A | BL350: N/A | BM350: N/A | BN350: N/A | BO350: N/A | BP350: N/A | BQ350: N/A | BR350: N/A | BS350: N/A | BT350: N/A | BU350: N/A | BV350: N/A | BW350: N/A | BX350: N/A | BY350: N/A | BZ350: N/A | CA350: N/A | CB350: N/A | CC350: N/A
BA351: Use of Basic Sanitation | BB351: Yes | BC351: N/A | BD351: N/A | BE351: N/A | BF351: N/A | BG351: N/A | BH351: N/A | BI351: N/A | BJ351: N/A | BK351: N/A | BL351: N/A | BM351: N/A | BN351: N/A | BO351: N/A | BP351: N/A | BQ351: N/A | BR351: N/A | BS351: N/A | BT351: N/A | BU351: N/A | BV351: N/A | BW351: N/A | BX351: N/A | BY351: N/A | BZ351: N/A | CA351: N/A | CB351: N/A | CC351: N/A
BB352: No | BC352: N/A | BD352: N/A | BE352: N/A | BF352: N/A | BG352: N/A | BH352: N/A | BI352: N/A | BJ352: N/A | BK352: N/A | BL352: N/A | BM352: N/A | BN352: N/A | BO352: N/A | BP352: N/A | BQ352: N/A | BR352: N/A | BS352: N/A | BT352: N/A | BU352: N/A | BV352: N/A | BW352: N/A | BX352: N/A | BY352: N/A | BZ352: N/A | CA352: N/A | CB352: N/A | CC352: N/A
BA353: Access to Basic Hygiene | BB353: Yes | BC353: N/A | BD353: N/A | BE353: N/A | BF353: N/A | BG353: N/A | BH353: N/A | BI353: N/A | BJ353: N/A | BK353: N/A | BL353: N/A | BM353: N/A | BN353: N/A | BO353: N/A | BP353: N/A | BQ353: N/A | BR353: N/A | BS353: N/A | BT353: N/A | BU353: N/A | BV353: N/A | BW353: N/A | BX353: N/A | BY353: N/A | BZ353: N/A | CA353: N/A | CB353: N/A | CC353: N/A
BB354: No | BC354: N/A | BD354: N/A | BE354: N/A | BF354: N/A | BG354: N/A | BH354: N/A | BI354: N/A | BJ354: N/A | BK354: N/A | BL354: N/A | BM354: N/A | BN354: N/A | BO354: N/A | BP354: N/A | BQ354: N/A | BR354: N/A | BS354: N/A | BT354: N/A | BU354: N/A | BV354: N/A | BW354: N/A | BX354: N/A | BY354: N/A | BZ354: N/A | CA354: N/A | CB354: N/A | CC354: N/A
C399: INITIAL (national) Wealth Index | H399: URBAN Wealth Index | M399: RURAL Wealth Index
C400: Component Matrix | H400: Component Matrix | M400: Component Matrix
E401: Component | J401: Component | O401: Component
B402: Note: The INITIAL (national) Wealth Index is based on the first component of the Principal Component Analysis (PCA) which has been obtained at national level. The final national-level (NATIONAL) Wealth Index is based on the URBAN and RURAL specific wealth indexes. Regression procedures are used to establish the relationships between the two sets of scores (urban and rural) and the initial (national) wealth factors. This allows best use of the available information for each area and a better precision of the FINAL (NATIONAL) Wealth Index. For dependency reasons, all WASH variables (contained in the generic MICS and DHS scripts) have been excluded from the sets of asset variables used in the PCAs. The PCA can extracts as many components as there are asset variables in the input. Only the first of the components is used to represent the Wealth Index. The scores represent the weights of the asset variables on the Wealth Index (correlations between the variables and the component). The communalities are the proportion of each variable's variance that can be explained by the component. Proportion of explained variance is the part of the model's total variance that is explained by the component. For more information on the procedure used: The DHS Wealth Index, DHS Comparative Reports No. 6, Shea Oscar Rutstein, Kiersten Johnson, ORC Macro International Inc., 2004. The DHS Wealth Index: Approaches for Rural and Urban Areas, Shea O. Rutstein, ORC Macro International Inc., 2008. MICS Methodological Paper No. 4, Review of options for reporting water, sanitation and hygiene coverage by wealth quintile, UNICEF, 2016. | E402: 1 | J402: 1 | O402: 1
C403: Block, brick, stone, concrete walls | E403: 0.8156456555 | H403: Cement floor | J403: 0.7969039717 | M403: Block, brick, stone, concrete walls | O403: 0.7768737622
C404: Cement floor | E404: 0.8095642608 | H404: Block, brick, stone, concrete walls | J404: 0.7918256456 | M404: Cement floor | O404: 0.7679023476
C405: Refrigetaror | E405: 0.7506570522 | H405: Wood walls | J405: -0.7508584802 | M405: Television | O405: 0.7195127906
C406: Television | E406: 0.7436709531 | H406: Wood floor | J406: -0.7479525745 | M406: Refrigetaror | O406: 0.7032755436
C407: Electricity | E407: 0.712666864 | H407: Refrigetaror | J407: 0.4658009449 | M407: Electricity | O407: 0.6933202447
C408: Wood walls | E408: -0.6540611183 | H408: Internet connection | J408: 0.4190920828 | M408: Wood walls | O408: -0.5929665605
C409: Wood floor | E409: -0.5458667325 | H409: Car/truck | J409: 0.4167869731 | M409: Earth floor | O409: -0.4918187833
C410: Earth floor | E410: -0.5163339962 | H410: Non-mobile telephone | J410: 0.3914080047 | M410: Wood floor | O410: -0.4633806061
C411: Internet connection | E411: 0.4929882345 | H411: Computer | J411: 0.38222219 | M411: No agricultural land | O411: 0.4602100545
C412: Household owns bank account | E412: 0.4855417234 | H412: Electricity | J412: 0.3751824774 | M412: Palma roof | O412: -0.4551365743
C413: Car/truck | E413: 0.4822959872 | H413: Television | J413: 0.3583827623 | M413: Mobile telephone | O413: 0.4078533287
... 210 more rows

Sheet data_summary
A1: iso3 | B1: year | C1: data_source | D1: row | E1: var1 | F1: var2 | G1: varname | H1: total_q1 | I1: total_q2 | J1: total_q3 | K1: total_q4 | L1: total_q5 | M1: urban_q1 | N1: urban_q2 | O1: urban_q3 | P1: urban_q4 | Q1: urban_q5 | R1: rural_q1 | S1: rural_q2 | T1: rural_q3 | U1: rural_q4 | V1: rural_q5 | W1: region_1_name | X1: region_2_name | Y1: region_3_name | Z1: region_4_name | AA1: region_5_name | AB1: region_6_name | AC1: region_7_name | AD1: region_8_name | AE1: region_9_name | AF1: region_10_name | AG1: region_11_name | AH1: region_12_name | AI1: region_1 | AJ1: region_2 | AK1: region_3 | AL1: region_4 | AM1: region_5 | AN1: region_6 | AO1: region_7 | AP1: region_8 | AQ1: region_9 | AR1: region_10 | AS1: region_11 | AT1: region_12 | AU1: n_total_q1 | AV1: n_total_q2 | AW1: n_total_q3 | AX1: n_total_q4 | AY1: n_total_q5 | AZ1: n_urban_q1 | BA1: n_urban_q2 | BB1: n_urban_q3 | BC1: n_urban_q4 | BD1: n_urban_q5 | BE1: n_rural_q1 | BF1: n_rural_q2 | BG1: n_rural_q3 | BH1: n_rural_q4 | BI1: n_rural_q5 | BJ1: n_region_1 | BK1: n_region_2 | BL1: n_region_3 | BM1: n_region_4 | BN1: n_region_5 | BO1: n_region_6 | BP1: n_region_7 | BQ1: n_region_8 | BR1: n_region_9 | BS1: n_region_10 | BT1: n_region_11 | BU1: n_region_12
A2: PAN | B2: 2013 | C2: PAN_2013_MICS | D2: 16 | E2: Water | F2: Improved | G2: w_imp | H2: 86.75003257 | I2: 99.83208607 | J2: 99.86535941 | K2: 100 | L2: 99.77626678 | M2: 99.8388013 | N2: 99.98774218 | O2: 100 | P2: 99.93070535 | Q2: 100 | R2: 66.86020805 | S2: 91.24301295 | T2: 98.46499552 | U2: 99.30334948 | V2: 99.15075281 | W2: Bocas del Toro | X2: Chiriquí | Y2: Coclé | Z2: Colón | AA2: Darien | AB2: Emberá Wounaan | AC2: Herrera | AD2: Kuna Yala | AE2: Los Santos | AF2: Ngöbe Buglé | AG2: Panamá | AH2: Veraguas | AI2: 93.56282327 | AJ2: 97.70598742 | AK2: 99.21299998 | AL2: 97.66920989 | AM2: 88.42670877 | AN2: 47.36322149 | AO2: 97.49720419 | AP2: 83.14086362 | AQ2: 99.92536732 | AR2: 54.31190064 | AS2: 99.71551007 | AT2: 93.96130253
A3: PAN | B3: 2013 | C3: PAN_2013_MICS | D3: 17 | E3: Water | F3: Not Improved | H3: 13.24996743 | I3: 0.1679139281 | J3: 0.1346405853 | K3: 0 | L3: 0.2237332241 | M3: 0.1611986989 | N3: 0.01225781943 | O3: 0 | P3: 0.0692946545 | Q3: 0 | R3: 33.13979195 | S3: 8.756987045 | T3: 1.535004476 | U3: 0.6966505204 | V3: 0.8492471938 | W3: Bocas del Toro | X3: Chiriquí | Y3: Coclé | Z3: Colón | AA3: Darien | AB3: Emberá Wounaan | AC3: Herrera | AD3: Kuna Yala | AE3: Los Santos | AF3: Ngöbe Buglé | AG3: Panamá | AH3: Veraguas | AI3: 6.437176734 | AJ3: 2.29401258 | AK3: 0.787000017 | AL3: 2.330790109 | AM3: 11.57329123 | AN3: 52.63677851 | AO3: 2.502795808 | AP3: 16.85913638 | AQ3: 0.07463268298 | AR3: 45.68809936 | AS3: 0.2844899329 | AT3: 6.038697472
A4: PAN | B4: 2013 | C4: PAN_2013_MICS | D4: 18 | E4: Water ladder | F4: Basic | G4: w_bas | H4: 86.5765325 | I4: 99.83208607 | J4: 99.86535941 | K4: 100 | L4: 99.77626678 | M4: 99.7389625 | N4: 99.98774218 | O4: 100 | P4: 99.93070535 | Q4: 100 | R4: 66.59276722 | S4: 91.24301295 | T4: 98.46499552 | U4: 99.30334948 | V4: 99.15075281 | W4: Bocas del Toro | X4: Chiriquí | Y4: Coclé | Z4: Colón | AA4: Darien | AB4: Emberá Wounaan | AC4: Herrera | AD4: Kuna Yala | AE4: Los Santos | AF4: Ngöbe Buglé | AG4: Panamá | AH4: Veraguas | AI4: 93.56282327 | AJ4: 97.70598742 | AK4: 99.21299998 | AL4: 97.47387147 | AM4: 88.07300193 | AN4: 47.36322149 | AO4: 97.49720419 | AP4: 83.14086362 | AQ4: 99.92536732 | AR4: 53.76878163 | AS4: 99.71551007 | AT4: 93.96130253
A5: PAN | B5: 2013 | C5: PAN_2013_MICS | D5: 19 | E5: Water ladder | F5: Limited | G5: w_lim | H5: 0.1735000651 | I5: 0 | J5: 0 | K5: 0 | L5: 0 | M5: 0.0998388013 | N5: 0 | O5: 0 | P5: 0 | Q5: 0 | R5: 0.2674408322 | S5: 0 | T5: 0 | U5: 0 | V5: 0 | W5: Bocas del Toro | X5: Chiriquí | Y5: Coclé | Z5: Colón | AA5: Darien | AB5: Emberá Wounaan | AC5: Herrera | AD5: Kuna Yala | AE5: Los Santos | AF5: Ngöbe Buglé | AG5: Panamá | AH5: Veraguas | AI5: 0 | AJ5: 0 | AK5: 0 | AL5: 0.1953384198 | AM5: 0.3537068351 | AN5: 0 | AO5: 0 | AP5: 0 | AQ5: 0 | AR5: 0.5431190064 | AS5: 0 | AT5: 0
A6: PAN | B6: 2013 | C6: PAN_2013_MICS | D6: 20 | E6: Water ladder | F6: Unimproved | G6: w_unimp | H6: 10.18372863 | I6: 0.1573737283 | J6: 0.1312502103 | K6: 0 | L6: 0.2237332241 | M6: 0.1611986989 | N6: 0.01225781943 | O6: 0 | P6: 0.0692946545 | Q6: 0 | R6: 26.13940892 | S6: 6.010236172 | T6: 1.15572588 | U6: 0.6595769084 | V6: 0.8492471938 | W6: Bocas del Toro | X6: Chiriquí | Y6: Coclé | Z6: Colón | AA6: Darien | AB6: Emberá Wounaan | AC6: Herrera | AD6: Kuna Yala | AE6: Los Santos | AF6: Ngöbe Buglé | AG6: Panamá | AH6: Veraguas | AI6: 4.032312097 | AJ6: 2.29401258 | AK6: 0.3445512505 | AL6: 1.289844189 | AM6: 2.586899188 | AN6: 1.563194019e-13 | AO6: 1.586417694 | AP6: 1.681509455 | AQ6: 0.07463268298 | AR6: 41.10796651 | AS6: 0.2844899329 | AT6: 5.322872564
A7: PAN | B7: 2013 | C7: PAN_2013_MICS | D7: 21 | E7: Water ladder | F7: Surface water | G7: w_sur | H7: 3.066238805 | I7: 0.01054019975 | J7: 0.003390375011 | K7: 0 | L7: 0 | M7: 0 | N7: 0 | O7: 0 | P7: 0 | Q7: 0 | R7: 7.000383027 | S7: 2.746750873 | T7: 0.3792785958 | U7: 0.03707361198 | V7: 0 | W7: Bocas del Toro | X7: Chiriquí | Y7: Coclé | Z7: Colón | AA7: Darien | AB7: Emberá Wounaan | AC7: Herrera | AD7: Kuna Yala | AE7: Los Santos | AF7: Ngöbe Buglé | AG7: Panamá | AH7: Veraguas | AI7: 2.404864637 | AJ7: 0 | AK7: 0.4424487664 | AL7: 1.04094592 | AM7: 8.986392045 | AN7: 52.63677851 | AO7: 0.9163781142 | AP7: 15.17762693 | AQ7: 0 | AR7: 4.580132857 | AS7: 0 | AT7: 0.7158249088
A8: PAN | B8: 2013 | C8: PAN_2013_MICS | D8: 22 | E8: Improved water point at more than 30 minutes | F8: Yes | H8: 0.2 | I8: 0 | J8: 0 | K8: 0 | L8: 0 | M8: 0.1 | N8: 0 | O8: 0 | P8: 0 | Q8: 0 | R8: 0.4 | S8: 0 | T8: 0 | U8: 0 | V8: 0 | W8: Bocas del Toro | X8: Chiriquí | Y8: Coclé | Z8: Colón | AA8: Darien | AB8: Emberá Wounaan | AC8: Herrera | AD8: Kuna Yala | AE8: Los Santos | AF8: Ngöbe Buglé | AG8: Panamá | AH8: Veraguas | AI8: 0 | AJ8: 0 | AK8: 0 | AL8: 0.2 | AM8: 0.4 | AN8: 0 | AO8: 0 | AP8: 0 | AQ8: 0 | AR8: 1 | AS8: 0 | AT8: 0
A9: PAN | B9: 2013 | C9: PAN_2013_MICS | D9: 23 | E9: Improved water point at more than 30 minutes | F9: No | H9: 99.8 | I9: 100 | J9: 100 | K9: 100 | L9: 100 | M9: 99.9 | N9: 100 | O9: 100 | P9: 100 | Q9: 100 | R9: 99.6 | S9: 100 | T9: 100 | U9: 100 | V9: 100 | W9: Bocas del Toro | X9: Chiriquí | Y9: Coclé | Z9: Colón | AA9: Darien | AB9: Emberá Wounaan | AC9: Herrera | AD9: Kuna Yala | AE9: Los Santos | AF9: Ngöbe Buglé | AG9: Panamá | AH9: Veraguas | AI9: 100 | AJ9: 100 | AK9: 100 | AL9: 99.8 | AM9: 99.6 | AN9: 100 | AO9: 100 | AP9: 100 | AQ9: 100 | AR9: 99 | AS9: 100 | AT9: 100
A10: PAN | B10: 2013 | C10: PAN_2013_MICS | D10: 29 | E10: Piped water | F10: Yes | G10: w_pip | H10: 78.9 | I10: 96.2 | J10: 98.1 | K10: 98.7 | L10: 95.7 | M10: 97.5 | N10: 99 | O10: 99.3 | P10: 99.1 | Q10: 95.2 | R10: 56.6 | S10: 83.2 | T10: 89.8 | U10: 92.3 | V10: 93.9 | W10: Bocas del Toro | X10: Chiriquí | Y10: Coclé | Z10: Colón | AA10: Darien | AB10: Emberá Wounaan | AC10: Herrera | AD10: Kuna Yala | AE10: Los Santos | AF10: Ngöbe Buglé | AG10: Panamá | AH10: Veraguas | AI10: 79.3 | AJ10: 87.4 | AK10: 95.4 | AL10: 91.7 | AM10: 81.5 | AN10: 27.7 | AO10: 95.3 | AP10: 83 | AQ10: 98.8 | AR10: 49.6 | AS10: 98.2 | AT10: 92
A11: PAN | B11: 2013 | C11: PAN_2013_MICS | D11: 30 | E11: Piped water | F11: No | H11: 21.1 | I11: 3.8 | J11: 1.9 | K11: 1.3 | L11: 4.3 | M11: 2.5 | N11: 1 | O11: 0.7 | P11: 0.9 | Q11: 4.8 | R11: 43.4 | S11: 16.8 | T11: 10.2 | U11: 7.7 | V11: 6.1 | W11: Bocas del Toro | X11: Chiriquí | Y11: Coclé | Z11: Colón | AA11: Darien | AB11: Emberá Wounaan | AC11: Herrera | AD11: Kuna Yala | AE11: Los Santos | AF11: Ngöbe Buglé | AG11: Panamá | AH11: Veraguas | AI11: 20.7 | AJ11: 12.6 | AK11: 4.6 | AL11: 8.3 | AM11: 18.5 | AN11: 72.3 | AO11: 4.7 | AP11: 17 | AQ11: 1.2 | AR11: 50.4 | AS11: 1.8 | AT11: 8
A12: PAN | B12: 2013 | C12: PAN_2013_MICS | D12: 31 | E12: Piped water on premises | F12: Yes | G12: w_pop | H12: 78.9 | I12: 96.2 | J12: 98.1 | K12: 98.7 | L12: 95.7 | M12: 97.5 | N12: 99 | O12: 99.3 | P12: 99.1 | Q12: 95.2 | R12: 56.6 | S12: 83.2 | T12: 89.8 | U12: 92.3 | V12: 93.9 | W12: Bocas del Toro | X12: Chiriquí | Y12: Coclé | Z12: Colón | AA12: Darien | AB12: Emberá Wounaan | AC12: Herrera | AD12: Kuna Yala | AE12: Los Santos | AF12: Ngöbe Buglé | AG12: Panamá | AH12: Veraguas | AI12: 79.3 | AJ12: 87.4 | AK12: 95.4 | AL12: 91.7 | AM12: 81.5 | AN12: 27.7 | AO12: 95.3 | AP12: 83 | AQ12: 98.8 | AR12: 49.6 | AS12: 98.2 | AT12: 92
A13: PAN | B13: 2013 | C13: PAN_2013_MICS | D13: 32 | E13: Piped water on premises | F13: No | H13: 21.1 | I13: 3.8 | J13: 1.9 | K13: 1.3 | L13: 4.3 | M13: 2.5 | N13: 1 | O13: 0.7 | P13: 0.9 | Q13: 4.8 | R13: 43.4 | S13: 16.8 | T13: 10.2 | U13: 7.7 | V13: 6.1 | W13: Bocas del Toro | X13: Chiriquí | Y13: Coclé | Z13: Colón | AA13: Darien | AB13: Emberá Wounaan | AC13: Herrera | AD13: Kuna Yala | AE13: Los Santos | AF13: Ngöbe Buglé | AG13: Panamá | AH13: Veraguas | AI13: 20.7 | AJ13: 12.6 | AK13: 4.6 | AL13: 8.3 | AM13: 18.5 | AN13: 72.3 | AO13: 4.7 | AP13: 17 | AQ13: 1.2 | AR13: 50.4 | AS13: 1.8 | AT13: 8
A14: PAN | B14: 2013 | C14: PAN_2013_MICS | D14: 35 | E14: Water source on premises | F14: Yes | H14: 89.3 | I14: 98.9 | J14: 99 | K14: 99.3 | L14: 96.2 | M14: 99.3 | N14: 99.2 | O14: 99.4 | P14: 99.1 | Q14: 95.3 | R14: 77.6 | S14: 90.5 | T14: 96.7 | U14: 97.4 | V14: 98.5 | W14: Bocas del Toro | X14: Chiriquí | Y14: Coclé | Z14: Colón | AA14: Darien | AB14: Emberá Wounaan | AC14: Herrera | AD14: Kuna Yala | AE14: Los Santos | AF14: Ngöbe Buglé | AG14: Panamá | AH14: Veraguas | AI14: 91.8 | AJ14: 96.4 | AK14: 99.4 | AL14: 93.1 | AM14: 87.8 | AN14: 47 | AO14: 97.8 | AP14: 84 | AQ14: 99.5 | AR14: 73.9 | AS14: 98.4 | AT14: 94.9
A15: PAN | B15: 2013 | C15: PAN_2013_MICS | D15: 36 | E15: Water source on premises | F15: No | H15: 10.7 | I15: 1.1 | J15: 1 | K15: 0.7 | L15: 3.8 | M15: 0.7 | N15: 0.8 | O15: 0.6 | P15: 0.9 | Q15: 4.7 | R15: 22.4 | S15: 9.5 | T15: 3.3 | U15: 2.6 | V15: 1.5 | W15: Bocas del Toro | X15: Chiriquí | Y15: Coclé | Z15: Colón | AA15: Darien | AB15: Emberá Wounaan | AC15: Herrera | AD15: Kuna Yala | AE15: Los Santos | AF15: Ngöbe Buglé | AG15: Panamá | AH15: Veraguas | AI15: 8.2 | AJ15: 3.6 | AK15: 0.6 | AL15: 6.9 | AM15: 12.2 | AN15: 53 | AO15: 2.2 | AP15: 16 | AQ15: 0.5 | AR15: 26.1 | AS15: 1.6 | AT15: 5.1
A16: PAN | B16: 2013 | C16: PAN_2013_MICS | D16: 37 | E16: Improved Water source on premises | F16: Yes | G16: w_premises | H16: 84.1 | I16: 98.9 | J16: 99 | K16: 99.3 | L16: 96.1 | M16: 99.2 | N16: 99.2 | O16: 99.4 | P16: 99.1 | Q16: 95.3 | R16: 63.2 | S16: 88.5 | T16: 96.1 | U16: 97.2 | V16: 98 | W16: Bocas del Toro | X16: Chiriquí | Y16: Coclé | Z16: Colón | AA16: Darien | AB16: Emberá Wounaan | AC16: Herrera | AD16: Kuna Yala | AE16: Los Santos | AF16: Ngöbe Buglé | AG16: Panamá | AH16: Veraguas | AI16: 88.8 | AJ16: 95.2 | AK16: 99.2 | AL16: 92.5 | AM16: 84.9 | AN16: 46.5 | AO16: 96.9 | AP16: 83 | AQ16: 99.5 | AR16: 52.4 | AS16: 98.4 | AT16: 92.4
A17: PAN | B17: 2013 | C17: PAN_2013_MICS | D17: 38 | E17: Improved Water source on premises | F17: No | H17: 15.9 | I17: 1.1 | J17: 1 | K17: 0.7 | L17: 3.9 | M17: 0.8 | N17: 0.8 | O17: 0.6 | P17: 0.9 | Q17: 4.7 | R17: 36.8 | S17: 11.5 | T17: 3.9 | U17: 2.8 | V17: 2 | W17: Bocas del Toro | X17: Chiriquí | Y17: Coclé | Z17: Colón | AA17: Darien | AB17: Emberá Wounaan | AC17: Herrera | AD17: Kuna Yala | AE17: Los Santos | AF17: Ngöbe Buglé | AG17: Panamá | AH17: Veraguas | AI17: 11.2 | AJ17: 4.8 | AK17: 0.8 | AL17: 7.5 | AM17: 15.1 | AN17: 53.5 | AO17: 3.1 | AP17: 17 | AQ17: 0.5 | AR17: 47.6 | AS17: 1.6 | AT17: 7.6
A18: PAN | B18: 2013 | C18: PAN_2013_MICS | D18: 41 | E18: Water point at more than 30 minutes | F18: Yes | H18: 0.6 | I18: 0.1 | J18: 0.1 | K18: 0 | L18: 0 | M18: 0.1 | N18: 0 | O18: 0 | P18: 0.1 | Q18: 0 | R18: 1.6 | S18: 0.3 | T18: 0 | U18: 0.2 | V18: 0.3 | W18: Bocas del Toro | X18: Chiriquí | Y18: Coclé | Z18: Colón | AA18: Darien | AB18: Emberá Wounaan | AC18: Herrera | AD18: Kuna Yala | AE18: Los Santos | AF18: Ngöbe Buglé | AG18: Panamá | AH18: Veraguas | AI18: 0.2 | AJ18: 0 | AK18: 0 | AL18: 0.7 | AM18: 0.7 | AN18: 0 | AO18: 0 | AP18: 7.3 | AQ18: 0 | AR18: 2.3 | AS18: 0 | AT18: 0.3
A19: PAN | B19: 2013 | C19: PAN_2013_MICS | D19: 42 | E19: Water point at more than 30 minutes | F19: No | G19: w_30min | H19: 99.4 | I19: 99.9 | J19: 99.9 | K19: 100 | L19: 100 | M19: 99.9 | N19: 100 | O19: 100 | P19: 99.9 | Q19: 100 | R19: 98.4 | S19: 99.7 | T19: 100 | U19: 99.8 | V19: 99.7 | W19: Bocas del Toro | X19: Chiriquí | Y19: Coclé | Z19: Colón | AA19: Darien | AB19: Emberá Wounaan | AC19: Herrera | AD19: Kuna Yala | AE19: Los Santos | AF19: Ngöbe Buglé | AG19: Panamá | AH19: Veraguas | AI19: 99.8 | AJ19: 100 | AK19: 100 | AL19: 99.3 | AM19: 99.3 | AN19: 100 | AO19: 100 | AP19: 92.7 | AQ19: 100 | AR19: 97.7 | AS19: 100 | AT19: 99.7
A20: PAN | B20: 2013 | C20: PAN_2013_MICS | D20: 58 | E20: Fuente principal de agua potable | F20: Acueducto público del IDAAN | H20: 24.99895602 | I20: 67.84838014 | J20: 84.44993544 | K20: 89.31416793 | L20: 87.89287964 | M20: 78.84458794 | N20: 91.07915753 | O20: 94.79694201 | P20: 93.70085655 | Q20: 93.86594547 | R20: 1.950021579 | S20: 19.73641553 | T20: 27.4349007 | U20: 35.58189169 | V20: 44.35288608 | W20: Bocas del Toro | X20: Chiriquí | Y20: Coclé | Z20: Colón | AA20: Darien | AB20: Emberá Wounaan | AC20: Herrera | AD20: Kuna Yala | AE20: Los Santos | AF20: Ngöbe Buglé | AG20: Panamá | AH20: Veraguas | AI20: 42.10913769 | AJ20: 62.69349512 | AK20: 41.11571501 | AL20: 66.8771163 | AM20: 33.09895081 | AN20: 0 | AO20: 69.25544461 | AP20: 0 | AQ20: 61.17902328 | AR20: 0.9104361827 | AS20: 86.683516 | AT20: 52.57406665
A21: PAN | B21: 2013 | C21: PAN_2013_MICS | D21: 59 | E21: Fuente principal de agua potable | F21: Acueducto público de la comunidad | H21: 51.45807924 | I21: 27.62548611 | J21: 13.32558538 | K21: 9.335449717 | L21: 7.511668143 | M21: 18.30524149 | N21: 7.729389659 | O21: 4.392519037 | P21: 5.365025102 | Q21: 1.081162375 | R21: 52.47957165 | S21: 59.14966563 | T21: 60.58400848 | U21: 55.10919466 | V21: 48.85444381 | W21: Bocas del Toro | X21: Chiriquí | Y21: Coclé | Z21: Colón | AA21: Darien | AB21: Emberá Wounaan | AC21: Herrera | AD21: Kuna Yala | AE21: Los Santos | AF21: Ngöbe Buglé | AG21: Panamá | AH21: Veraguas | AI21: 35.33936747 | AJ21: 23.80277041 | AK21: 51.76985991 | AL21: 24.31447427 | AM21: 47.02393189 | AN21: 27.26312352 | AO21: 25.36979112 | AP21: 83.03694843 | AQ21: 36.60179539 | AR21: 47.85590408 | AS21: 11.45380983 | AT21: 35.75240879
A22: PAN | B22: 2013 | C22: PAN_2013_MICS | D22: 60 | E22: Fuente principal de agua potable | F22: Acueducto particular | H22: 2.395962711 | I22: 0.7161297942 | J22: 0.3602510726 | K22: 0.06318974344 | L22: 0.2853378165 | M22: 0.3357039786 | N22: 0.2095889929 | O22: 0.08818813875 | P22: 0 | Q22: 0.2628599812 | R22: 2.17961388 | S22: 4.320326811 | T22: 1.75202993 | U22: 1.606553414 | V22: 0.7015031693 | W22: Bocas del Toro | X22: Chiriquí | Y22: Coclé | Z22: Colón | AA22: Darien | AB22: Emberá Wounaan | AC22: Herrera | AD22: Kuna Yala | AE22: Los Santos | AF22: Ngöbe Buglé | AG22: Panamá | AH22: Veraguas | AI22: 1.852184011 | AJ22: 0.9194270901 | AK22: 2.466990333 | AL22: 0.5203276188 | AM22: 1.378322405 | AN22: 0.4042008712 | AO22: 0.702889434 | AP22: 0 | AQ22: 0.9973008107 | AR22: 0.8196591202 | AS22: 0.1029710854 | AT22: 3.642109469
A23: PAN | B23: 2013 | C23: PAN_2013_MICS | D23: 61 | E23: Fuente principal de agua potable | F23: Pozo brocal protegido | H23: 1.516970236 | I23: 1.641135601 | J23: 0.6136989302 | K23: 0.385105424 | L23: 0.3230297568 | M23: 1.222411649 | N23: 0.1245658946 | O23: 0.07272645693 | P23: 0 | Q23: 0.03060370706 | R23: 0.7439344098 | S23: 1.161248348 | T23: 4.066135092 | U23: 2.490505633 | V23: 2.999556611 | W23: Bocas del Toro | X23: Chiriquí | Y23: Coclé | Z23: Colón | AA23: Darien | AB23: Emberá Wounaan | AC23: Herrera | AD23: Kuna Yala | AE23: Los Santos | AF23: Ngöbe Buglé | AG23: Panamá | AH23: Veraguas | AI23: 0.7302025475 | AJ23: 5.795556006 | AK23: 0 | AL23: 0.822292087 | AM23: 0.9138297433 | AN23: 1.172580452 | AO23: 0 | AP23: 0 | AQ23: 0.7329124846 | AR23: 0.1645261715 | AS23: 0.1058133448 | AT23: 0.211878885
A24: PAN | B24: 2013 | C24: PAN_2013_MICS | D24: 62 | E24: Fuente principal de agua potable | F24: Pozo artesanal protegido | H24: 1.723471767 | I24: 0.7040325805 | J24: 0.08138554655 | K24: 0 | L24: 0.09960914411 | M24: 0.3494260394 | N24: 0 | O24: 0 | P24: 0 | Q24: 0.1423697261 | R24: 1.361649688 | S24: 1.975617553 | T24: 2.191566886 | U24: 1.68913744 | V24: 0.268824853 | W24: Bocas del Toro | X24: Chiriquí | Y24: Coclé | Z24: Colón | AA24: Darien | AB24: Emberá Wounaan | AC24: Herrera | AD24: Kuna Yala | AE24: Los Santos | AF24: Ngöbe Buglé | AG24: Panamá | AH24: Veraguas | AI24: 1.98945931 | AJ24: 2.556926942 | AK24: 0.1857070672 | AL24: 0 | AM24: 1.024056699 | AN24: 0 | AO24: 0.3594205441 | AP24: 0 | AQ24: 0 | AR24: 1.09893106 | AS24: 0.04364334198 | AT24: 0.7689795468
A25: PAN | B25: 2013 | C25: PAN_2013_MICS | D25: 63 | E25: Fuente principal de agua potable | F25: Pozo artesanal no protegido | H25: 4.652260938 | I25: 0.06392734906 | J25: 0 | K25: 0 | L25: 0.1394490234 | M25: 0.1584623255 | N25: 0 | O25: 0 | P25: 0 | Q25: 0 | R25: 9.914377369 | S25: 4.059215325 | T25: 1.036097147 | U25: 0.2119414334 | V25: 0.4614932065 | W25: Bocas del Toro | X25: Chiriquí | Y25: Coclé | Z25: Colón | AA25: Darien | AB25: Emberá Wounaan | AC25: Herrera | AD25: Kuna Yala | AE25: Los Santos | AF25: Ngöbe Buglé | AG25: Panamá | AH25: Veraguas | AI25: 3.952021034 | AJ25: 2.141756883 | AK25: 0 | AL25: 0.396987312 | AM25: 1.70834829 | AN25: 0 | AO25: 0.1174107111 | AP25: 1.697281314 | AQ25: 0 | AR25: 11.54176844 | AS25: 0.1551763271 | AT25: 2.163627263
A26: PAN | B26: 2013 | C26: PAN_2013_MICS | D26: 64 | E26: Fuente principal de agua potable | F26: Manantial protegido | H26: 3.123996897 | I26: 0.3422145731 | J26: 0 | K26: 0.0858901939 | L26: 0.03073043294 | M26: 0 | N26: 0 | O26: 0 | P26: 0 | Q26: 0 | R26: 6.312223885 | S26: 3.569759204 | T26: 0.559110572 | U26: 1.017473677 | V26: 0.3854766077 | W26: Bocas del Toro | X26: Chiriquí | Y26: Coclé | Z26: Colón | AA26: Darien | AB26: Emberá Wounaan | AC26: Herrera | AD26: Kuna Yala | AE26: Los Santos | AF26: Ngöbe Buglé | AG26: Panamá | AH26: Veraguas | AI26: 0.4711665704 | AJ26: 0.4657707464 | AK26: 3.626312278 | AL26: 0.1681871968 | AM26: 0 | AN26: 0 | AO26: 1.809658478 | AP26: 0 | AQ26: 0 | AR26: 2.350690468 | AS26: 0.374605352 | AT26: 0.9562148987
A27: PAN | B27: 2013 | C27: PAN_2013_MICS | D27: 65 | E27: Fuente principal de agua potable | F27: Manantial no protegido | H27: 5.348202309 | I27: 0.04202195324 | J27: 0 | K27: 0 | L27: 0.03630835011 | M27: 0 | N27: 0 | O27: 0 | P27: 0 | Q27: 0 | R27: 15.79362715 | S27: 1.784046087 | T27: 0.1014778276 | U27: 0.1393174148 | V27: 0.1201590123 | W27: Bocas del Toro | X27: Chiriquí | Y27: Coclé | Z27: Colón | AA27: Darien | AB27: Emberá Wounaan | AC27: Herrera | AD27: Kuna Yala | AE27: Los Santos | AF27: Ngöbe Buglé | AG27: Panamá | AH27: Veraguas | AI27: 0 | AJ27: 0.1522556962 | AK27: 0.2945427978 | AL27: 0.3667466902 | AM27: 0.7337643563 | AN27: 0 | AO27: 1.020785098 | AP27: 0 | AQ27: 0.07463268298 | AR27: 29.44647949 | AS27: 0.1293136059 | AT27: 2.916233117
A28: PAN | B28: 2013 | C28: PAN_2013_MICS | D28: 66 | E28: Fuente principal de agua potable | F28: Recogen agua de lluvia | H28: 0.9964021297 | I28: 0.2809626782 | J28: 0.09182158501 | K28: 0.09756847455 | L28: 0.02263438921 | M28: 0.3053890497 | N28: 0.06954254306 | O28: 0.07763472444 | P28: 0.02777779394 | Q28: 0.03235096357 | R28: 1.77130585 | S28: 0.8204074362 | T28: 0.4732259389 | U28: 0.444060497 | V28: 0.231624827 | W28: Bocas del Toro | X28: Chiriquí | Y28: Coclé | Z28: Colón | AA28: Darien | AB28: Emberá Wounaan | AC28: Herrera | AD28: Kuna Yala | AE28: Los Santos | AF28: Ngöbe Buglé | AG28: Panamá | AH28: Veraguas | AI28: 5.720374436 | AJ28: 0 | AK28: 0 | AL28: 0 | AM28: 2.382776842 | AN28: 17.51544666 | AO28: 0 | AP28: 0 | AQ28: 0 | AR28: 1.111753553 | AS28: 0 | AT28: 0
A29: PAN | B29: 2013 | C29: PAN_2013_MICS | D29: 67 | E29: Fuente principal de agua potable | F29: Carrotanque / camión cisterna | H29: 0.3276685477 | I29: 0.1603249053 | J29: 0.5837654497 | K29: 0.1179922018 | L29: 0 | M29: 0.2516918997 | N29: 0.6805152549 | O29: 0.2343643132 | P29: 0.01237404545 | Q29: 0 | R29: 0.06188711112 | S29: 0.2495471408 | T29: 0.4664044337 | U29: 0.387069531 | V29: 0.04779762792 | W29: Bocas del Toro | X29: Chiriquí | Y29: Coclé | Z29: Colón | AA29: Darien | AB29: Emberá Wounaan | AC29: Herrera | AD29: Kuna Yala | AE29: Los Santos | AF29: Ngöbe Buglé | AG29: Panamá | AH29: Veraguas | AI29: 1.441287418 | AJ29: 0 | AK29: 0 | AL29: 2.33667096 | AM29: 1.307024554 | AN29: 0 | AO29: 0 | AP29: 0 | AQ29: 0 | AR29: 0 | AS29: 0 | AT29: 0
A30: PAN | B30: 2013 | C30: PAN_2013_MICS | D30: 68 | E30: Fuente principal de agua potable | F30: Agua de superficie (río, arroyo, represa, lago, estanque, canal, canal de irrigación) | H30: 3.049163255 | I30: 0.0104926676 | J30: 0.003375764946 | K30: 0 | L30: 0 | M30: 0 | N30: 0 | O30: 0 | P30: 0 | Q30: 0 | R30: 6.974293784 | S30: 2.738124431 | T30: 0.3746828183 | U30: 0.03662067101 | V30: 0 | W30: Bocas del Toro | X30: Chiriquí | Y30: Coclé | Z30: Colón | AA30: Darien | AB30: Emberá Wounaan | AC30: Herrera | AD30: Kuna Yala | AE30: Los Santos | AF30: Ngöbe Buglé | AG30: Panamá | AH30: Veraguas | AI30: 2.313243573 | AJ30: 0 | AK30: 0.4422345531 | AL30: 1.01594896 | AM30: 8.888946157 | AN30: 52.63677851 | AO30: 0.9117301136 | AP30: 15.16185507 | AQ30: 0 | AR30: 4.566663575 | AS30: 0 | AT30: 0.7154265931
A31: PAN | B31: 2013 | C31: PAN_2013_MICS | D31: 69 | E31: Fuente principal de agua potable | F31: Agua embotellada/envasada | H31: 0.208525027 | I31: 0.513419694 | J31: 0.3589160092 | K31: 0.6006363188 | L31: 3.610377455 | M31: 0.2243492517 | N31: 0.09498230503 | O31: 0.3376253182 | P31: 0.8246718516 | Q31: 4.58470778 | R31: 0 | S31: 0.2600253067 | T31: 0.9376134932 | U31: 0.9774629378 | V31: 1.308639216 | W31: Bocas del Toro | X31: Chiriquí | Y31: Coclé | Z31: Colón | AA31: Darien | AB31: Emberá Wounaan | AC31: Herrera | AD31: Kuna Yala | AE31: Los Santos | AF31: Ngöbe Buglé | AG31: Panamá | AH31: Veraguas | AI31: 3.909643809 | AJ31: 1.472041101 | AK31: 0.04841538201 | AL31: 2.630141459 | AM31: 1.297815822 | AN31: 1.007869976 | AO31: 0 | AP31: 0.1039151825 | AQ31: 0.4143353524 | AR31: 0 | AS31: 0.9511511162 | AT31: 0.05564429057
A32: PAN | B32: 2013 | C32: PAN_2013_MICS | D32: 70 | E32: Fuente principal de agua potable | F32: Otra | H32: 0.2003409319 | I32: 0.05147195818 | J32: 0.1312648204 | K32: 0 | L32: 0.04797585055 | M32: 0.002736373416 | N32: 0.01225781943 | O32: 0 | P32: 0.0692946545 | Q32: 0 | R32: 0.4574936512 | S32: 0.1756012023 | T32: 0.02274668258 | U32: 0.3087710012 | V32: 0.2675949751 | W32: Bocas del Toro | X32: Chiriquí | Y32: Coclé | Z32: Colón | AA32: Darien | AB32: Emberá Wounaan | AC32: Herrera | AD32: Kuna Yala | AE32: Los Santos | AF32: Ngöbe Buglé | AG32: Panamá | AH32: Veraguas | AI32: 0.171912127 | AJ32: 0 | AK32: 0.05022266598 | AL32: 0.5511071466 | AM32: 0.2422324304 | AN32: 0 | AO32: 0.4528698856 | AP32: 0 | AQ32: 0 | AR32: 0.1331878531 | AS32: 0 | AT32: 0.2434104998
A33: PAN | B33: 2013 | C33: PAN_2013_MICS | D33: 122 | E33: Sanitation | F33: Improved | G33: s_imp | H33: 61.9981449 | I33: 87.23344003 | J33: 95.41294742 | K33: 97.07832521 | L33: 99.76122342 | M33: 84.49822044 | N33: 95.39672364 | O33: 96.58977862 | P33: 99.28552139 | Q33: 100 | R33: 39.91863178 | S33: 68.05408738 | T33: 77.46053162 | U33: 82.66512486 | V33: 94.36633993 | W33: Bocas del Toro | X33: Chiriquí | Y33: Coclé | Z33: Colón | AA33: Darien | AB33: Emberá Wounaan | AC33: Herrera | AD33: Kuna Yala | AE33: Los Santos | AF33: Ngöbe Buglé | AG33: Panamá | AH33: Veraguas | AI33: 70.36244422 | AJ33: 90.79543754 | AK33: 79.49528899 | AL33: 91.53217713 | AM33: 64.39541713 | AN33: 40.43788972 | AO33: 85.09734749 | AP33: 0.5477011043 | AQ33: 88.55547951 | AR33: 25.81961999 | AS33: 94.93473419 | AT33: 80.28824173 | AU33: 558922.8813 | AV33: 667495.7944 | AW33: 669862.7825 | AX33: 670159.6849 | AY33: 672354.7014 | AZ33: 454870.3124 | BA33: 467930.6491 | BB33: 469567.4817 | BC33: 465149.5823 | BD33: 470413.7473 | BE33: 123097.5715 | BF33: 188301.4396 | BG33: 198999.5922 | BH33: 198137.4786 | BI33: 202327.9897 | BJ33: 95570.40973 | BK33: 404450.5547 | BL33: 226759.7507 | BM33: 236691.6843 | BN33: 36219.68379 | BO33: 3141.153095 | BP33: 110809.7671 | BQ33: 62.019371 | BR33: 91124.70433 | BS33: 30775.3889 | BT33: 1794719.348 | BU33: 208471.3808
A34: PAN | B34: 2013 | C34: PAN_2013_MICS | D34: 123 | E34: Sanitation | F34: Not Improved | H34: 38.0018551 | I34: 12.76655997 | J34: 4.58705258 | K34: 2.921674793 | L34: 0.2387765761 | M34: 15.50177956 | N34: 4.603276363 | O34: 3.410221376 | P34: 0.7144786106 | Q34: 0 | R34: 60.08136822 | S34: 31.94591262 | T34: 22.53946838 | U34: 17.33487514 | V34: 5.633660068 | W34: Bocas del Toro | X34: Chiriquí | Y34: Coclé | Z34: Colón | AA34: Darien | AB34: Emberá Wounaan | AC34: Herrera | AD34: Kuna Yala | AE34: Los Santos | AF34: Ngöbe Buglé | AG34: Panamá | AH34: Veraguas | AI34: 29.63755578 | AJ34: 9.204562461 | AK34: 20.50471101 | AL34: 8.467822874 | AM34: 35.60458287 | AN34: 59.56211028 | AO34: 14.90265251 | AP34: 99.4522989 | AQ34: 11.44452049 | AR34: 74.18038001 | AS34: 5.06526581 | AT34: 19.71175827 | AU34: 112626.2597 | AV34: 4212.128928 | AW34: 1211.72852 | AX34: 1087.526607 | AY34: 0 | AZ34: 13643.67385 | BA34: 177.6043424 | BB34: 64.65306993 | BC34: 352.2504231 | BD34: 0 | BE34: 80042.69644 | BF34: 14942.89821 | BG34: 4608.935407 | BH34: 4468.053425 | BI34: 836.8785839 | BJ34: 31694.73674 | BK34: 2662.313704 | BL34: 6080.956447 | BM34: 3826.533562 | BN34: 4522.857378 | BO34: 1637.679238 | BP34: 982.0962566 | BQ34: 11261.56032 | BR34: 330.3951565 | BS34: 51436.91801 | BT34: 0 | BU34: 4701.596939
A35: PAN | B35: 2013 | C35: PAN_2013_MICS | D35: 124 | E35: Sanitation ladder | F35: Basic | G35: s_bas | H35: 52.70731946 | I35: 78.23945808 | J35: 90.49621287 | K35: 94.67855011 | L35: 99.0573508 | M35: 72.00178728 | N35: 89.40037634 | O35: 94.14583031 | P35: 96.1691357 | Q35: 99.92046359 | R35: 32.14742941 | S35: 61.92697751 | T35: 71.17162376 | U35: 73.91562675 | V35: 91.18349354 | W35: Bocas del Toro | X35: Chiriquí | Y35: Coclé | Z35: Colón | AA35: Darien | AB35: Emberá Wounaan | AC35: Herrera | AD35: Kuna Yala | AE35: Los Santos | AF35: Ngöbe Buglé | AG35: Panamá | AH35: Veraguas | AI35: 61.85103785 | AJ35: 84.89974187 | AK35: 72.77666554 | AL35: 83.97137583 | AM35: 55.94420962 | AN35: 34.01843593 | AO35: 79.89926336 | AP35: 0.5477011043 | AQ35: 83.94304044 | AR35: 20.15469363 | AS35: 90.12400711 | AT35: 73.58435124 | AU35: 475155.8739 | AV35: 598675.3383 | AW35: 635344.0135 | AX35: 653533.3864 | AY35: 667610.8535 | AZ35: 387599.5885 | BA35: 438517.9547 | BB35: 457686.3213 | BC35: 450489.8634 | BD35: 470039.5971 | BE35: 99125.10595 | BF35: 171348.1065 | BG35: 182843.1049 | BH35: 177166.0775 | BI35: 195503.7459 | BJ35: 84009.71704 | BK35: 378188.0304 | BL35: 207594.9248 | BM35: 217083.9215 | BN35: 31466.23894 | BO35: 2633.814812 | BP35: 104041.0662 | BQ35: 62.019371 | BR35: 86378.4464 | BS35: 24023.1473 | BT35: 1703773.657 | BU35: 191064.4818
A36: PAN | B36: 2013 | C36: PAN_2013_MICS | D36: 125 | E36: Sanitation ladder | F36: Limited | G36: s_lim | H36: 9.290825437 | I36: 8.993981945 | J36: 4.916734549 | K36: 2.3997751 | L36: 0.7038726222 | M36: 12.49643317 | N36: 5.996347292 | O36: 2.443948316 | P36: 3.116385688 | Q36: 0.07953641447 | R36: 7.771202372 | S36: 6.127109875 | T36: 6.288907863 | U36: 8.749498108 | V36: 3.182846393 | W36: Bocas del Toro | X36: Chiriquí | Y36: Coclé | Z36: Colón | AA36: Darien | AB36: Emberá Wounaan | AC36: Herrera | AD36: Kuna Yala | AE36: Los Santos | AF36: Ngöbe Buglé | AG36: Panamá | AH36: Veraguas | AI36: 8.511406373 | AJ36: 5.895695667 | AK36: 6.71862345 | AL36: 7.560801292 | AM36: 8.451207516 | AN36: 6.419453791 | AO36: 5.198084129 | AP36: 0 | AQ36: 4.612439071 | AR36: 5.664926368 | AS36: 4.810727077 | AT36: 6.703890494 | AU36: 83756.6836 | AV36: 68820.45602 | AW36: 34518.76894 | AX36: 16564.82008 | AY36: 4743.847864 | AZ36: 67270.72391 | BA36: 29412.69442 | BB36: 11881.16044 | BC36: 14598.24041 | BD36: 374.1502278 | BE36: 23962.14169 | BF36: 16953.33307 | BG36: 16156.48737 | BH36: 20971.40115 | BI36: 6824.24382 | BJ36: 11560.69269 | BK36: 26262.52428 | BL36: 19164.82597 | BM36: 19546.28441 | BN36: 4753.44485 | BO36: 497.0143987 | BP36: 6768.70089 | BQ36: 0 | BR36: 4746.257927 | BS36: 6752.241594 | BT36: 90945.69058 | BU36: 17406.89891
A37: PAN | B37: 2013 | C37: PAN_2013_MICS | D37: 126 | E37: Sanitation ladder | F37: Unimproved | G37: s_unimp | H37: 27.74028395 | I37: 12.44819663 | J37: 4.553728811 | K37: 2.851689751 | L37: 0.2387765761 | M37: 14.68334457 | N37: 4.565335494 | O37: 3.410221376 | P37: 0.7144786106 | Q37: 7.305267502e-14 | R37: 33.11635397 | S37: 27.65493693 | T37: 21.73168675 | U37: 16.28823533 | V37: 5.402453942 | W37: Bocas del Toro | X37: Chiriquí | Y37: Coclé | Z37: Colón | AA37: Darien | AB37: Emberá Wounaan | AC37: Herrera | AD37: Kuna Yala | AE37: Los Santos | AF37: Ngöbe Buglé | AG37: Panamá | AH37: Veraguas | AI37: 23.02429054 | AJ37: 8.550612682 | AK37: 20.17031836 | AL37: 8.258992021 | AM37: 27.18898017 | AN37: 37.70926076 | AO37: 14.79809381 | AP37: 54.99538299 | AQ37: 11.36124259 | AR37: 18.10299122 | AS37: 5.06526581 | AT37: 18.03126754 | AU37: 43715.8262 | AV37: 2073.657114 | AW37: 988.101205 | AX37: 617.7969859 | AY37: 0 | AZ37: 9809.191485 | BA37: 0 | BB37: 64.65306993 | BC37: 352.2504231 | BD37: 0 | BE37: 25268.67807 | BF37: 6221.733101 | BG37: 2964.223116 | BH37: 2347.503273 | BI37: 367.148963 | BJ37: 23278.35505 | BK37: 0 | BL37: 5302.354221 | BM37: 3324.3857 | BN37: 1094.126984 | BO37: 595.6242628 | BP37: 865.2081334 | BQ37: 6227.446019 | BR37: 254.2332778 | BS37: 5334.403037 | BT37: 0 | BU37: 1119.244817
A38: PAN | B38: 2013 | C38: PAN_2013_MICS | D38: 127 | E38: Sanitation ladder | F38: Open defecation | G38: s_od | H38: 10.26157115 | I38: 0.3183633451 | J38: 0.03332376831 | K38: 0.06998504255 | L38: 0 | M38: 0.8184349823 | N38: 0.03794086967 | O38: 0 | P38: 0 | Q38: 0 | R38: 26.96501425 | S38: 4.290975683 | T38: 0.8077816337 | U38: 1.046639808 | V38: 0.2312061258 | W38: Bocas del Toro | X38: Chiriquí | Y38: Coclé | Z38: Colón | AA38: Darien | AB38: Emberá Wounaan | AC38: Herrera | AD38: Kuna Yala | AE38: Los Santos | AF38: Ngöbe Buglé | AG38: Panamá | AH38: Veraguas | AI38: 6.613265236 | AJ38: 0.6539497792 | AK38: 0.3343926565 | AL38: 0.2088308535 | AM38: 8.415602697 | AN38: 21.85284952 | AO38: 0.1045587037 | AP38: 44.4569159 | AQ38: 0.08327789166 | AR38: 56.07738878 | AS38: 0 | AT38: 1.680490727 | AU38: 68910.43349 | AV38: 2138.471814 | AW38: 223.6273152 | AX38: 469.7296209 | AY38: 0 | AZ38: 3834.482361 | BA38: 177.6043424 | BB38: 0 | BC38: 0 | BD38: 0 | BE38: 54774.01836 | BF38: 8721.165113 | BG38: 1644.712291 | BH38: 2120.550152 | BI38: 469.7296209 | BJ38: 8416.381689 | BK38: 2662.313704 | BL38: 778.6022262 | BM38: 502.1478613 | BN38: 3428.730393 | BO38: 1042.054976 | BP38: 116.8881232 | BQ38: 5034.1143 | BR38: 76.16187866 | BS38: 46102.51497 | BT38: 0 | BU38: 3582.352122
A39: PAN | B39: 2013 | C39: PAN_2013_MICS | D39: 128 | E39: Shared among Improved Sanitation | F39: Yes | G39: s_shared | H39: 14.9856507 | I39: 10.31024564 | J39: 5.153110434 | K39: 2.471998868 | L39: 0.7055573278 | M39: 14.78898976 | N39: 6.285695214 | O39: 2.530234929 | P39: 3.138811828 | Q39: 0.07953641447 | R39: 19.46760704 | S39: 9.003294453 | T39: 8.118854508 | U39: 10.5842677 | V39: 3.372861971 | W39: Bocas del Toro | X39: Chiriquí | Y39: Coclé | Z39: Colón | AA39: Darien | AB39: Emberá Wounaan | AC39: Herrera | AD39: Kuna Yala | AE39: Los Santos | AF39: Ngöbe Buglé | AG39: Panamá | AH39: Veraguas | AI39: 12.09651891 | AJ39: 6.493383177 | AK39: 8.451599505 | AL39: 8.260265984 | AM39: 13.12392697 | AN39: 15.87484865 | AO39: 6.108397362 | AP39: 0 | AQ39: 5.2085304 | AR39: 21.94039405 | AS39: 5.067404589 | AT39: 8.349778684
A40: PAN | B40: 2013 | C40: PAN_2013_MICS | D40: 129 | E40: Shared among Improved Sanitation | F40: No | H40: 85.0143493 | I40: 89.68975436 | J40: 94.84688957 | K40: 97.52800113 | L40: 99.29444267 | M40: 85.21101024 | N40: 93.71430479 | O40: 97.46976507 | P40: 96.86118817 | Q40: 99.92046359 | R40: 80.53239296 | S40: 90.99670555 | T40: 91.88114549 | U40: 89.4157323 | V40: 96.62713803 | W40: Bocas del Toro | X40: Chiriquí | Y40: Coclé | Z40: Colón | AA40: Darien | AB40: Emberá Wounaan | AC40: Herrera | AD40: Kuna Yala | AE40: Los Santos | AF40: Ngöbe Buglé | AG40: Panamá | AH40: Veraguas | AI40: 87.90348109 | AJ40: 93.50661682 | AK40: 91.5484005 | AL40: 91.73973402 | AM40: 86.87607303 | AN40: 84.12515135 | AO40: 93.89160264 | AP40: 100 | AQ40: 94.7914696 | AR40: 78.05960595 | AS40: 94.93259541 | AT40: 91.65022132
A41: PAN | B41: 2013 | C41: PAN_2013_MICS | D41: 135 | E41: Sanitation type | F41: Sewer connection | G41: s_sew | H41: 4.323451298 | I41: 15.43337347 | J41: 30.99628215 | K41: 45.76596705 | L41: 69.7888378 | M41: 19.42688294 | N41: 32.80910997 | O41: 42.53174384 | P41: 58.85891718 | Q41: 81.43573565 | R41: 0.1462439674 | S41: 1.231574791 | T41: 1.29752481 | U41: 2.154975702 | V41: 2.911826122 | W41: Bocas del Toro | X41: Chiriquí | Y41: Coclé | Z41: Colón | AA41: Darien | AB41: Emberá Wounaan | AC41: Herrera | AD41: Kuna Yala | AE41: Los Santos | AF41: Ngöbe Buglé | AG41: Panamá | AH41: Veraguas | AI41: 4.602153445 | AJ41: 3.364652249 | AK41: 5.202175451 | AL41: 32.66329004 | AM41: 0.8545905707 | AN41: 0 | AO41: 35.40344616 | AP41: 0 | AQ41: 30.00180657 | AR41: 0 | AS41: 50.96514767 | AT41: 11.66472154
A42: PAN | B42: 2013 | C42: PAN_2013_MICS | D42: 136 | E42: Sanitation type | F42: Septic tank connection | G42: s_sep | H42: 17.08884602 | I42: 43.68746476 | J42: 52.8103496 | K42: 44.63289232 | L42: 29.28836896 | M42: 36.15152523 | N42: 48.62771585 | O42: 46.41804164 | P42: 38.55254259 | Q42: 18.55457431 | R42: 2.038388345 | S42: 18.857298 | T42: 39.71742611 | U42: 47.98417273 | V42: 77.19272112 | W42: Bocas del Toro | X42: Chiriquí | Y42: Coclé | Z42: Colón | AA42: Darien | AB42: Emberá Wounaan | AC42: Herrera | AD42: Kuna Yala | AE42: Los Santos | AF42: Ngöbe Buglé | AG42: Panamá | AH42: Veraguas | AI42: 52.88874656 | AJ42: 71.91566205 | AK42: 49.13236348 | AL42: 45.12224728 | AM42: 24.69049483 | AN42: 2.588211039 | AO42: 31.19561069 | AP42: 0.5477011043 | AQ42: 39.8426621 | AR42: 0.9232994882 | AS42: 28.69518764 | AT42: 36.96472847
A43: PAN | B43: 2013 | C43: PAN_2013_MICS | D43: 137 | E43: Sanitation type | F43: Improved latrines | G43: s_lat | H43: 61.81659052 | I43: 40.25208431 | J43: 16.01280283 | K43: 9.439124819 | L43: 0.9227932442 | M43: 41.50947517 | N43: 18.52523331 | O43: 11.03644777 | P43: 2.512869112 | Q43: 0.009690035911 | R43: 58.41269423 | S43: 72.55894295 | T43: 56.72142316 | U43: 47.65555472 | V43: 19.48353184 | W43: Bocas del Toro | X43: Chiriquí | Y43: Coclé | Z43: Colón | AA43: Darien | AB43: Emberá Wounaan | AC43: Herrera | AD43: Kuna Yala | AE43: Los Santos | AF43: Ngöbe Buglé | AG43: Panamá | AH43: Veraguas | AI43: 17.60460916 | AJ43: 24.06573593 | AK43: 43.05382304 | AL43: 20.62350894 | AM43: 63.35384616 | AN43: 63.14234563 | AO43: 32.52243891 | AP43: 0 | AQ43: 29.79426645 | AR43: 36.51074178 | AS43: 20.33966469 | AT43: 49.1650186
A44: PAN | B44: 2013 | C44: PAN_2013_MICS | D44: 138 | E44: Sanitation type | F44: Unimproved facilities | H44: 6.509698774 | I44: 0.3087141065 | J44: 0.1472416533 | K44: 0.09203717726 | L44: 0 | M44: 2.093681677 | N44: 0 | O44: 0.01376674745 | P44: 0.07567111413 | Q44: 0 | R44: 12.43902961 | S44: 3.061208577 | T44: 1.455844286 | U44: 1.158657046 | V44: 0.180714789 | W44: Bocas del Toro | X44: Chiriquí | Y44: Coclé | Z44: Colón | AA44: Darien | AB44: Emberá Wounaan | AC44: Herrera | AD44: Kuna Yala | AE44: Los Santos | AF44: Ngöbe Buglé | AG44: Panamá | AH44: Veraguas | AI44: 18.2912256 | AJ44: 0 | AK44: 2.277245369 | AL44: 1.382176256 | AM44: 2.685465738 | AN44: 12.46380332 | AO44: 0.7739455336 | AP44: 54.99538299 | AQ44: 0.2779869895 | AR44: 6.488569945 | AS44: 0 | AT44: 0.5250406636
A45: PAN | B45: 2013 | C45: PAN_2013_MICS | D45: 139 | E45: Sanitation type | F45: Open defecation | H45: 10.26141339 | I45: 0.3183633451 | J45: 0.03332376831 | K45: 0.06997863273 | L45: 0 | M45: 0.8184349823 | N45: 0.03794086967 | O45: 0 | P45: 0 | Q45: 0 | R45: 26.96364385 | S45: 4.290975683 | T45: 0.8077816337 | U45: 1.046639808 | V45: 0.2312061258 | W45: Bocas del Toro | X45: Chiriquí | Y45: Coclé | Z45: Colón | AA45: Darien | AB45: Emberá Wounaan | AC45: Herrera | AD45: Kuna Yala | AE45: Los Santos | AF45: Ngöbe Buglé | AG45: Panamá | AH45: Veraguas | AI45: 6.613265236 | AJ45: 0.6539497792 | AK45: 0.3343926565 | AL45: 0.2087774746 | AM45: 8.415602697 | AN45: 21.80564002 | AO45: 0.1045587037 | AP45: 44.4569159 | AQ45: 0.08327789166 | AR45: 56.07738878 | AS45: 0 | AT45: 1.680490727
A46: PAN | B46: 2013 | C46: PAN_2013_MICS | D46: 148 | E46: Shared among improved sanitation facilities | F46: Yes | H46: 12.47216004 | I46: 10.24559241 | J46: 5.143805698 | K46: 2.467767433 | L46: 0.7055573278 | M46: 14.35831712 | N46: 6.283310367 | O46: 2.529886598 | P46: 3.136022114 | Q46: 0.07953641447 | R46: 11.79586004 | S46: 8.341355656 | T46: 7.935074013 | U46: 10.35085318 | V46: 3.358968447 | W46: Bocas del Toro | X46: Chiriquí | Y46: Coclé | Z46: Colón | AA46: Darien | AB46: Emberá Wounaan | AC46: Herrera | AD46: Kuna Yala | AE46: Los Santos | AF46: Ngöbe Buglé | AG46: Panamá | AH46: Veraguas | AI46: 9.083942469 | AJ46: 6.450919712 | AK46: 8.230874318 | AL46: 8.126737583 | AM46: 11.66703086 | AN46: 10.40033138 | AO46: 6.054734832 | AP46: 0 | AQ46: 5.189713808 | AR46: 8.213176163 | AS46: 5.067404589 | AT46: 8.165621694
A47: PAN | B47: 2013 | C47: PAN_2013_MICS | D47: 149 | E47: Shared among improved sanitation facilities | F47: No | H47: 70.75519047 | I47: 89.12733014 | J47: 94.67562888 | K47: 97.36105792 | L47: 99.29444267 | M47: 82.72956622 | N47: 93.67874876 | O47: 97.45634665 | P47: 96.77509986 | Q47: 99.92046359 | R47: 48.79638436 | S47: 84.30646008 | T47: 89.80130007 | U47: 87.44384997 | V47: 96.22911064 | W47: Bocas del Toro | X47: Chiriquí | Y47: Coclé | Z47: Colón | AA47: Darien | AB47: Emberá Wounaan | AC47: Herrera | AD47: Kuna Yala | AE47: Los Santos | AF47: Ngöbe Buglé | AG47: Panamá | AH47: Veraguas | AI47: 66.01156669 | AJ47: 92.89513051 | AK47: 89.15748766 | AL47: 90.25674787 | AM47: 77.23190071 | AN47: 55.11419168 | AO47: 93.06676093 | AP47: 0.5477011043 | AQ47: 94.44902131 | AR47: 29.22086511 | AS47: 94.93259541 | AT47: 89.62884692
A48: PAN | B48: 2013 | C48: PAN_2013_MICS | D48: 150 | E48: Shared among improved sanitation facilities | F48: DK/missing | H48: 16.77264949 | I48: 0.6270774516 | J48: 0.1805654216 | K48: 0.1711746452 | L48: 0 | M48: 2.912116659 | N48: 0.03794086967 | O48: 0.01376674745 | P48: 0.08887802802 | Q48: 0 | R48: 39.4077556 | S48: 7.35218426 | T48: 2.26362592 | U48: 2.205296854 | V48: 0.4119209148 | W48: Bocas del Toro | X48: Chiriquí | Y48: Coclé | Z48: Colón | AA48: Darien | AB48: Emberá Wounaan | AC48: Herrera | AD48: Kuna Yala | AE48: Los Santos | AF48: Ngöbe Buglé | AG48: Panamá | AH48: Veraguas | AI48: 24.90449084 | AJ48: 0.6539497792 | AK48: 2.611638025 | AL48: 1.61651455 | AM48: 11.10106843 | AN48: 34.48547694 | AO48: 0.8785042374 | AP48: 99.4522989 | AQ48: 0.3612648812 | AR48: 62.56595873 | AS48: 0 | AT48: 2.20553139
A49: PAN | B49: 2013 | C49: PAN_2013_MICS | D49: 151 | E49: Shared among all sanitation facilities | F49: Yes | H49: 16.38792592 | I49: 10.36991919 | J49: 5.231327114 | K49: 2.469495552 | L49: 0.7055573278 | M49: 14.92071598 | N49: 6.285695214 | O49: 2.529886598 | P49: 3.136022114 | Q49: 0.07953641447 | R49: 22.48404076 | S49: 10.01716395 | T49: 8.626236333 | U49: 10.91560975 | V49: 3.37780485 | W49: Bocas del Toro | X49: Chiriquí | Y49: Coclé | Z49: Colón | AA49: Darien | AB49: Emberá Wounaan | AC49: Herrera | AD49: Kuna Yala | AE49: Los Santos | AF49: Ngöbe Buglé | AG49: Panamá | AH49: Veraguas | AI49: 14.72395805 | AJ49: 6.493383177 | AK49: 8.380203151 | AL49: 9.093734453 | AM49: 13.21311693 | AN49: 16.33509262 | AO49: 6.22046595 | AP49: 49.6520982 | AQ49: 5.26181499 | AR49: 27.85213945 | AS49: 5.067404589 | AT49: 8.654915734
A50: PAN | B50: 2013 | C50: PAN_2013_MICS | D50: 152 | E50: Shared among all sanitation facilities | F50: No | H50: 83.61036097 | I50: 89.63008081 | J50: 94.76867289 | K50: 97.5213392 | L50: 99.29444267 | M50: 85.07928402 | N50: 93.71430479 | O50: 97.4701134 | P50: 96.85077097 | Q50: 99.92046359 | R50: 77.50900087 | S50: 89.98283605 | T50: 91.37376367 | U50: 89.08439025 | V50: 96.62219515 | W50: Bocas del Toro | X50: Chiriquí | Y50: Coclé | Z50: Colón | AA50: Darien | AB50: Emberá Wounaan | AC50: Herrera | AD50: Kuna Yala | AE50: Los Santos | AF50: Ngöbe Buglé | AG50: Panamá | AH50: Veraguas | AI50: 85.27604195 | AJ50: 93.50661682 | AK50: 91.61979685 | AL50: 90.88065125 | AM50: 86.78688307 | AN50: 83.38862964 | AO50: 93.77953405 | AP50: 50.3479018 | AQ50: 94.73818501 | AR50: 72.14786055 | AS50: 94.93259541 | AT50: 91.34508427
A51: PAN | B51: 2013 | C51: PAN_2013_MICS | D51: 153 | E51: Tipo de servicio sanitario | F51: Servicio conectado al alcantarillado | H51: 4.323451298 | I51: 15.43337347 | J51: 30.99628215 | K51: 45.76596705 | L51: 69.7888378 | M51: 19.42688294 | N51: 32.80910997 | O51: 42.53174384 | P51: 58.85891718 | Q51: 81.43573565 | R51: 0.1462439674 | S51: 1.231574791 | T51: 1.29752481 | U51: 2.154975702 | V51: 2.911826122 | W51: Bocas del Toro | X51: Chiriquí | Y51: Coclé | Z51: Colón | AA51: Darien | AB51: Emberá Wounaan | AC51: Herrera | AD51: Kuna Yala | AE51: Los Santos | AF51: Ngöbe Buglé | AG51: Panamá | AH51: Veraguas | AI51: 4.602153445 | AJ51: 3.364652249 | AK51: 5.202175451 | AL51: 32.66329004 | AM51: 0.8545905707 | AN51: 0 | AO51: 35.40344616 | AP51: 0 | AQ51: 30.00180657 | AR51: 0 | AS51: 50.96514767 | AT51: 11.66472154 | AU51: 29034.10005 | AV51: 103667.1925 | AW51: 208008.1489 | AX51: 307202.7777 | AY51: 469228.532 | AZ51: 91017.66369 | BA51: 153582.1517 | BB51: 199742.7366 | BC51: 273989.3382 | BD51: 383084.8957 | BE51: 297.0803872 | BF51: 2503.106029 | BG51: 2641.871161 | BH51: 4366.099987 | BI51: 5915.807704 | BJ51: 5856.937323 | BK51: 13697.93228 | BL51: 12112.78211 | BM51: 78561.16312 | BN51: 348.1819151 | BO51: 0 | BP51: 39578.17215 | BQ51: 0 | BR51: 27438.18205 | BS51: 0 | BT51: 914681.3659 | BU51: 24866.03425
A52: PAN | B52: 2013 | C52: PAN_2013_MICS | D52: 154 | E52: Tipo de servicio sanitario | F52: Servicio conectado a tanque séptico o a fosa séptica | H52: 17.08884602 | I52: 43.68746476 | J52: 52.8103496 | K52: 44.63289232 | L52: 29.28836896 | M52: 36.15152523 | N52: 48.62771585 | O52: 46.41804164 | P52: 38.55254259 | Q52: 18.55457431 | R52: 2.038388345 | S52: 18.857298 | T52: 39.71742611 | U52: 47.98417273 | V52: 77.19272112 | W52: Bocas del Toro | X52: Chiriquí | Y52: Coclé | Z52: Colón | AA52: Darien | AB52: Emberá Wounaan | AC52: Herrera | AD52: Kuna Yala | AE52: Los Santos | AF52: Ngöbe Buglé | AG52: Panamá | AH52: Veraguas | AI52: 52.88874656 | AJ52: 71.91566205 | AK52: 49.13236348 | AL52: 45.12224728 | AM52: 24.69049483 | AN52: 2.588211039 | AO52: 31.19561069 | AP52: 0.5477011043 | AQ52: 39.8426621 | AR52: 0.9232994882 | AS52: 28.69518764 | AT52: 36.96472847 | AU52: 114759.9986 | AV52: 293452.1623 | AW52: 354396.7953 | AX52: 299597.0451 | AY52: 196921.7256 | AZ52: 169374.9519 | BA52: 227630.3514 | BB52: 217994.0399 | BC52: 179462.7923 | BD52: 87283.26832 | BE52: 4140.787547 | BF52: 38326.39044 | BG52: 80868.06652 | BH52: 97218.58845 | BI52: 156828.4902 | BJ52: 67308.94078 | BK52: 292777.9146 | BL52: 114400.1426 | BM52: 108527.225 | BN52: 10059.53502 | BO52: 123.686266 | BP52: 34874.15448 | BQ52: 62.019371 | BR52: 36438.14626 | BS52: 759.0658089 | BT52: 514998.0844 | BU52: 78798.81239
A53: PAN | B53: 2013 | C53: PAN_2013_MICS | D53: 155 | E53: Tipo de servicio sanitario | F53: Letrina de arrastre | H53: 4.357036796 | I53: 6.186575043 | J53: 2.027658941 | K53: 0.7287024025 | L53: 0.03751007782 | M53: 9.953472549 | N53: 4.081162984 | O53: 0.9040595792 | P53: 0.008160236588 | Q53: 0.009690035911 | R53: 2.252716939 | S53: 3.119369042 | T53: 0.3451584461 | U53: 2.727559296 | V53: 1.158657974 | W53: Bocas del Toro | X53: Chiriquí | Y53: Coclé | Z53: Colón | AA53: Darien | AB53: Emberá Wounaan | AC53: Herrera | AD53: Kuna Yala | AE53: Los Santos | AF53: Ngöbe Buglé | AG53: Panamá | AH53: Veraguas | AI53: 1.274950997 | AJ53: 0.1604228386 | AK53: 0.06015244432 | AL53: 0 | AM53: 1.52641399 | AN53: 0 | AO53: 0.06507851273 | AP53: 0 | AQ53: 1.596475236 | AR53: 0 | AS53: 4.604847333 | AT53: 1.103108651 | AU53: 29259.64318 | AV53: 41555.71475 | AW53: 13607.10232 | AX53: 4891.394557 | AY53: 252.2007717 | AZ53: 46633.41101 | BA53: 19104.26077 | BB53: 4245.754301 | BC53: 37.98605087 | BD53: 45.58326104 | BE53: 4576.175227 | BF53: 6339.940953 | BG53: 702.7720301 | BH53: 5526.186025 | BI53: 2353.985947 | BJ53: 1622.568253 | BK53: 653.1020196 | BL53: 140.0593767 | BM53: 0 | BN53: 621.8998481 | BO53: 0 | BP53: 72.75248202 | BQ53: 0 | BR53: 1460.058015 | BS53: 0 | BT53: 82644.08602 | BU53: 2351.529558
A54: PAN | B54: 2013 | C54: PAN_2013_MICS | D54: 156 | E54: Tipo de servicio sanitario | F54: Servicio con conexión al mar, río o quebrada u otro lugar circundante | H54: 2.6872438 | I54: 0.09860694859 | J54: 0.06146351333 | K54: 0.04035201194 | L54: 0 | M54: 1.266281163 | N54: 0 | O54: 0.01376674745 | P54: 0.04179387861 | Q54: 0 | R54: 4.218229252 | S54: 1.252895427 | T54: 0.5501704023 | U54: 0.3992323447 | V54: 0.07654398276 | W54: Bocas del Toro | X54: Chiriquí | Y54: Coclé | Z54: Colón | AA54: Darien | AB54: Emberá Wounaan | AC54: Herrera | AD54: Kuna Yala | AE54: Los Santos | AF54: Ngöbe Buglé | AG54: Panamá | AH54: Veraguas | AI54: 14.32998753 | AJ54: 0 | AK54: 0 | AL54: 0 | AM54: 0.5700480657 | AN54: 0 | AO54: 0 | AP54: 2.584018822 | AQ54: 0 | AR54: 0.7661942339 | AS54: 0 | AT54: 0 | AU54: 18046.16266 | AV54: 662.3506866 | AW54: 412.4659715 | AX54: 270.8617549 | AY54: 0 | AZ54: 5932.704354 | BA54: 0 | BB54: 64.65306993 | BC54: 194.5512709 | BD54: 0 | BE54: 8568.922206 | BF54: 2546.439015 | BG54: 1120.193856 | BH54: 808.866816 | BI54: 155.5104817 | BJ54: 18237.07962 | BK54: 0 | BL54: 0 | BM54: 0 | BN54: 232.2520679 | BO54: 0 | BP54: 0 | BQ54: 292.6034305 | BR54: 0 | BS54: 629.905955 | BT54: 0 | BU54: 0
A55: PAN | B55: 2013 | C55: PAN_2013_MICS | D55: 157 | E55: Tipo de servicio sanitario | F55: Letrina o servicio de hueco con ventilación | H55: 14.82019888 | I55: 9.786544231 | J55: 5.172169571 | K55: 3.19110445 | L55: 0.4077300142 | M55: 6.367256559 | N55: 5.313399337 | O55: 3.339478937 | P55: 1.227093883 | Q55: 0 | R55: 14.27684187 | S55: 20.21160404 | T55: 15.82457979 | U55: 14.66883884 | V55: 7.88139556 | W55: Bocas del Toro | X55: Chiriquí | Y55: Coclé | Z55: Colón | AA55: Darien | AB55: Emberá Wounaan | AC55: Herrera | AD55: Kuna Yala | AE55: Los Santos | AF55: Ngöbe Buglé | AG55: Panamá | AH55: Veraguas | AI55: 6.000347625 | AJ55: 6.804087723 | AK55: 7.207524619 | AL55: 6.869770655 | AM55: 12.69566016 | AN55: 11.61272392 | AO55: 4.409063841 | AP55: 0 | AQ55: 6.031280006 | AR55: 13.28189923 | AS55: 5.604285734 | AT55: 13.04945619 | AU55: 99524.91831 | AV55: 65736.99301 | AW55: 34709.11166 | AX55: 21420.19964 | AY55: 2741.391919 | AZ55: 29831.48752 | BA55: 24872.46084 | BB55: 15683.26622 | BC55: 5712.144513 | BD55: 0 | BE55: 29002.01484 | BF55: 41078.94079 | BG55: 32220.19392 | BH55: 29719.87899 | BI55: 16012.22691 | BJ55: 7636.351194 | BK55: 27700.3167 | BL55: 16782.05129 | BM55: 16523.04995 | BN55: 5172.534567 | BO55: 554.9526054 | BP55: 4928.974624 | BQ55: 0 | BR55: 5515.91313 | BS55: 10919.35576 | BT55: 100581.2004 | BU55: 27817.91434
A56: PAN | B56: 2013 | C56: PAN_2013_MICS | D56: 158 | E56: Tipo de servicio sanitario | F56: Letrina o servicio de hueco sin ventilación | H56: 42.46148586 | I56: 24.27896504 | J56: 8.812974316 | K56: 5.519317967 | L56: 0.4775531522 | M56: 25.17932579 | N56: 9.130670987 | O56: 6.792909258 | P56: 1.277614993 | Q56: 0 | R56: 41.35738953 | S56: 49.18745671 | T56: 40.55168492 | U56: 30.25915658 | V56: 10.44347831 | W56: Bocas del Toro | X56: Chiriquí | Y56: Coclé | Z56: Colón | AA56: Darien | AB56: Emberá Wounaan | AC56: Herrera | AD56: Kuna Yala | AE56: Los Santos | AF56: Ngöbe Buglé | AG56: Panamá | AH56: Veraguas | AI56: 9.466129882 | AJ56: 17.10122536 | AK56: 35.78614598 | AL56: 13.75373829 | AM56: 49.00702887 | AN56: 50.58533389 | AO56: 28.04829655 | AP56: 0 | AQ56: 22.16651121 | AR56: 23.22884256 | AS56: 10.13053162 | AT56: 35.01245375 | AU56: 285149.7436 | AV56: 163083.7319 | AW56: 59141.6243 | AX56: 37048.26795 | AY56: 3210.851071 | AZ56: 117968.663 | BA56: 42741.42449 | BB56: 31901.68476 | BC56: 5947.321207 | BD56: 0 | BE56: 84013.51191 | BF56: 99970.72068 | BG56: 82566.68861 | BH56: 61306.72518 | BI56: 21217.47894 | BJ56: 12047.08406 | BK56: 69621.28911 | BL56: 83324.71537 | BM56: 33080.24622 | BN56: 19966.70891 | BO56: 2417.388292 | BP56: 31355.71336 | BQ56: 0 | BR56: 20272.40488 | BS56: 19096.96733 | BT56: 181814.611 | BU56: 74637.09023
A57: PAN | B57: 2013 | C57: PAN_2013_MICS | D57: 159 | E57: Tipo de servicio sanitario | F57: Letrina o servicio hueco sin piso | H57: 1.506087615 | I57: 0.09642171969 | J57: 0.04986764661 | K57: 0.02819171172 | L57: 0 | M57: 0.2474286242 | N57: 0 | O57: 0 | P57: 0 | Q57: 0 | R57: 3.92734999 | S57: 0.4494756031 | T57: 0.0721875412 | U57: 0.4435511316 | V57: 0.09314409544 | W57: Bocas del Toro | X57: Chiriquí | Y57: Coclé | Z57: Colón | AA57: Darien | AB57: Emberá Wounaan | AC57: Herrera | AD57: Kuna Yala | AE57: Los Santos | AF57: Ngöbe Buglé | AG57: Panamá | AH57: Veraguas | AI57: 0.9276898831 | AJ57: 0 | AK57: 2.277245369 | AL57: 0.5733017365 | AM57: 1.185283038 | AN57: 10.77039686 | AO57: 0.6328805692 | AP57: 0.2268418744 | AQ57: 0.2102677362 | AR57: 1.58121305 | AS57: 0 | AT57: 0.09416726097 | AU57: 10114.11844 | AV57: 647.6723309 | AW57: 334.6490656 | AX57: 189.2360788 | AY57: 0 | AZ57: 1159.23771 | BA57: 0 | BB57: 0 | BC57: 0 | BD57: 0 | BE57: 7978.029293 | BF57: 913.5337131 | BG57: 146.9799898 | BH57: 898.6591301 | BI57: 189.2360788 | BJ57: 1180.625889 | BK57: 0 | BL57: 5302.354221 | BM57: 1378.89512 | BN57: 482.9144299 | BO57: 514.6992076 | BP57: 707.5089812 | BQ57: 25.68662042 | BR57: 192.3005674 | BS57: 1299.951725 | BT57: 0 | BU57: 200.7391542
A58: PAN | B58: 2013 | C58: PAN_2013_MICS | D58: 160 | E58: Tipo de servicio sanitario | F58: Letrina de compostaje | H58: 0.1778689761 | I58: 0 | J58: 0 | K58: 0 | L58: 0 | M58: 0.009420265636 | N58: 0 | O58: 0 | P58: 0 | Q58: 0 | R58: 0.5257458931 | S58: 0.04051315977 | T58: 0 | U58: 0 | V58: 0 | W58: Bocas del Toro | X58: Chiriquí | Y58: Coclé | Z58: Colón | AA58: Darien | AB58: Emberá Wounaan | AC58: Herrera | AD58: Kuna Yala | AE58: Los Santos | AF58: Ngöbe Buglé | AG58: Panamá | AH58: Veraguas | AI58: 0.8631806526 | AJ58: 0 | AK58: 0 | AL58: 0 | AM58: 0.1247431467 | AN58: 0.9442878181 | AO58: 0 | AP58: 0 | AQ58: 0 | AR58: 0 | AS58: 0 | AT58: 0 | AU58: 1194.477581 | AV58: 0 | AW58: 0 | AX58: 0 | AY58: 0 | AZ58: 44.13526205 | BA58: 0 | BB58: 0 | BC58: 0 | BD58: 0 | BE58: 1068.001616 | BF58: 82.34070331 | BG58: 0 | BH58: 0 | BI58: 0 | BJ58: 1098.528122 | BK58: 0 | BL58: 0 | BM58: 0 | BN58: 50.82352791 | BO58: 45.12593157 | BP58: 0 | BQ58: 0 | BR58: 0 | BS58: 0 | BT58: 0 | BU58: 0
A59: PAN | B59: 2013 | C59: PAN_2013_MICS | D59: 161 | E59: Tipo de servicio sanitario | F59: Servicio colgante sobre el río o el mar | H59: 1.863218974 | I59: 0.0382528207 | J59: 0.003338288395 | K59: 0 | L59: 0 | M59: 0.5038104557 | N59: 0 | O59: 0 | P59: 0 | Q59: 0 | R59: 4.022096708 | S59: 0.6992531358 | T59: 0.3710041343 | U59: 0.03053682839 | V59: 0.01102671083 | W59: Bocas del Toro | X59: Chiriquí | Y59: Coclé | Z59: Colón | AA59: Darien | AB59: Emberá Wounaan | AC59: Herrera | AD59: Kuna Yala | AE59: Los Santos | AF59: Ngöbe Buglé | AG59: Panamá | AH59: Veraguas | AI59: 2.685028488 | AJ59: 0 | AK59: 0 | AL59: 0 | AM59: 0.1496565534 | AN59: 0 | AO59: 0 | AP59: 52.1845223 | AQ59: 0 | AR59: 4.141162661 | AS59: 0 | AT59: 0 | AU59: 12512.43102 | AV59: 256.9472275 | AW59: 22.40240253 | AX59: 0 | AY59: 0 | AZ59: 2360.422449 | BA59: 0 | BB59: 0 | BC59: 0 | BD59: 0 | BE59: 8170.498029 | BF59: 1421.192405 | BG59: 755.3960553 | BH59: 61.86930363 | BI59: 22.40240253 | BJ59: 3417.105438 | BK59: 0 | BL59: 0 | BM59: 0 | BN59: 60.97388288 | BO59: 0 | BP59: 0 | BQ59: 5909.155968 | BR59: 0 | BS59: 3404.545357 | BT59: 0 | BU59: 0
A60: PAN | B60: 2013 | C60: PAN_2013_MICS | D60: 162 | E60: Tipo de servicio sanitario | F60: No hay servicio sanitario, va al monte, campo | H60: 10.26141339 | I60: 0.3183633451 | J60: 0.03332376831 | K60: 0.06997863273 | L60: 0 | M60: 0.8184349823 | N60: 0.03794086967 | O60: 0 | P60: 0 | Q60: 0 | R60: 26.96364385 | S60: 4.290975683 | T60: 0.8077816337 | U60: 1.046639808 | V60: 0.2312061258 | W60: Bocas del Toro | X60: Chiriquí | Y60: Coclé | Z60: Colón | AA60: Darien | AB60: Emberá Wounaan | AC60: Herrera | AD60: Kuna Yala | AE60: Los Santos | AF60: Ngöbe Buglé | AG60: Panamá | AH60: Veraguas | AI60: 6.613265236 | AJ60: 0.6539497792 | AK60: 0.3343926565 | AL60: 0.2087774746 | AM60: 8.415602697 | AN60: 21.80564002 | AO60: 0.1045587037 | AP60: 44.4569159 | AQ60: 0.08327789166 | AR60: 56.07738878 | AS60: 0 | AT60: 1.680490727 | AU60: 68910.43349 | AV60: 2138.471814 | AW60: 223.6273152 | AX60: 469.7296209 | AY60: 0 | AZ60: 3834.482361 | BA60: 177.6043424 | BB60: 0 | BC60: 0 | BD60: 0 | BE60: 54774.01836 | BF60: 8721.165113 | BG60: 1644.712291 | BH60: 2120.550152 | BI60: 469.7296209 | BJ60: 8416.381689 | BK60: 2662.313704 | BL60: 778.6022262 | BM60: 502.1478613 | BN60: 3428.730393 | BO60: 1042.054976 | BP60: 116.8881232 | BQ60: 5034.1143 | BR60: 76.16187866 | BS60: 46102.51497 | BT60: 0 | BU60: 3582.352122
A61: PAN | B61: 2013 | C61: PAN_2013_MICS | D61: 163 | E61: Tipo de servicio sanitario | F61: Otro | H61: 0.4468455275 | I61: 0.07543261756 | J61: 0.03257220499 | K61: 0 | L61: 0 | M61: 0.07616143422 | N61: 0 | O61: 0 | P61: 0 | Q61: 0 | R61: 0.2713536561 | S61: 0.6387588439 | T61: 0.4624822083 | U61: 0.2853367413 | V61: 0 | W61: Bocas del Toro | X61: Chiriquí | Y61: Coclé | Z61: Colón | AA61: Darien | AB61: Emberá Wounaan | AC61: Herrera | AD61: Kuna Yala | AE61: Los Santos | AF61: Ngöbe Buglé | AG61: Panamá | AH61: Veraguas | AI61: 0.3485197018 | AJ61: 0 | AK61: 0 | AL61: 0.80887452 | AM61: 0.7804780808 | AN61: 0.8076924936 | AO61: 0 | AP61: 0 | AQ61: 0.0677192533 | AR61: 0 | AS61: 0 | AT61: 0.4308734026 | AU61: 3000.787302 | AV61: 506.6868689 | AW61: 218.5837653 | AX61: 0 | AY61: 0 | AZ61: 356.8269715 | BA61: 0 | BB61: 0 | BC61: 0 | BD61: 0 | BE61: 551.2285441 | BF61: 1298.241182 | BG61: 941.653215 | BH61: 578.1080229 | BI61: 0 | BJ61: 443.544109 | BK61: 0 | BL61: 0 | BM61: 1945.490581 | BN61: 317.9866034 | BO61: 38.59827004 | BP61: 0 | BQ61: 0 | BR61: 61.93271047 | BS61: 0 | BT61: 0 | BU61: 918.5056625
A62: PAN | B62: 2013 | C62: PAN_2013_MICS | D62: 164 | E62: Tipo de servicio sanitario | F62: Missing | H62: 0.006302857461 | I62: 0 | J62: 0 | K62: 0.02349345361 | L62: 0 | M62: 0 | N62: 0 | O62: 0 | P62: 0.03387723552 | Q62: 0 | R62: 0 | S62: 0.0208255667 | T62: 0 | U62: 0 | V62: 0 | W62: Bocas del Toro | X62: Chiriquí | Y62: Coclé | Z62: Colón | AA62: Darien | AB62: Emberá Wounaan | AC62: Herrera | AD62: Kuna Yala | AE62: Los Santos | AF62: Ngöbe Buglé | AG62: Panamá | AH62: Veraguas | AI62: 0 | AJ62: 0 | AK62: 0 | AL62: 0 | AM62: 0 | AN62: 0.8857139608 | AO62: 0.1410649644 | AP62: 0 | AQ62: 0 | AR62: 0 | AS62: 0 | AT62: 0 | AU62: 42.32678514 | AV62: 0 | AW62: 0 | AX62: 157.6991522 | AY62: 0 | AZ62: 0 | BA62: 0 | BB62: 0 | BC62: 157.6991522 | BD62: 0 | BE62: 0 | BF62: 42.32678514 | BG62: 0 | BH62: 0 | BI62: 0 | BJ62: 0 | BK62: 0 | BL62: 0 | BM62: 0 | BN62: 0 | BO62: 42.32678514 | BP62: 157.6991522 | BQ62: 0 | BR62: 0 | BS62: 0 | BT62: 0 | BU62: 0
